Publisher Label,Publisher URI,"Directorate code","Directorate","Service code","Service","Revenue or capital code","Revenue capital","Cost centre","Cost centre description","Bvsub Category","Bvsub description","Bvsum code","Bvsum description","Account code","Account description","Transaction No","Period","Transaction Date","Amount","Classification code","Classification description","Supplier ID","Supplier description","Company registration number","Company registration number Uri","VAT registration number"
"London Borough of Redbridge","http://opendatacommunities.org/doc/london-borough-council/redbridge","2BCULTUR&REL","Cultural & Related Services","2CREC&SPORT","Recreation & Sport","REV","Revenue","R6999","Leisure Client","05-THIRD","Third Party Payments","05H","Private contractors","6915","Contractor Payments","60346897","201803",27/06/2017 00:00:00,2433157.75,"48583","Local Government","REDACTED DATA","VISION REDBRIDGE CULTURE AND LEISURE","6032714","http://opencorporates.com/companies/gb/6032714","906429031"
"London Borough of Redbridge","http://opendatacommunities.org/doc/london-borough-council/redbridge","9BNONBVO","Outside the BVACOP Objective Structure","9CNONBVO","Outside the BVACOP Objective Structure","REV","Revenue","R0026","Collection Fund","05-THIRD","Third Party Payments","05E","Government departments","6752","GLA Council Tax � Precepts","60344468","201802",01/06/2017 00:00:00,2497664.75,"48583","Local Government","REDACTED DATA","GREATER LONDON AUTHORITY","",,""
"London Borough of Redbridge","http://opendatacommunities.org/doc/london-borough-council/redbridge","5BGFHOUSING","General Fund Housing","5CHOMELESS","Homelessness","REV","Revenue","R5630","HAC Temporary Accomodation","05-THIRD","Third Party Payments","05H","Private contractors","6900","Nightly Let Plus Charges","3476314","201803",05/06/2017 00:00:00,1178,"31230","Employment and Recruitment Agencies","REDACTED DATA","ADAM HTT LIMITED T/A ADAM","7718565","http://opencorporates.com/companies/gb/7718565","198573349"
"London Borough of Redbridge","http://opendatacommunities.org/doc/london-borough-council/redbridge","5BGFHOUSING","General Fund Housing","5CHOMELESS","Homelessness","REV","Revenue","R5630","HAC Temporary Accomodation","05-THIRD","Third Party Payments","05H","Private contractors","6900","Nightly Let Plus Charges","3476314","201803",05/06/2017 00:00:00,1705,"31230","Employment and Recruitment Agencies","REDACTED DATA","ADAM HTT LIMITED T/A ADAM","7718565","http://opencorporates.com/companies/gb/7718565","198573349"
"London Borough of Redbridge","http://opendatacommunities.org/doc/london-borough-council/redbridge","5BGFHOUSING","General Fund Housing","5CHOMELESS","Homelessness","REV","Revenue","R5630","HAC Temporary Accomodation","05-THIRD","Third Party Payments","05H","Private contractors","6900","Nightly Let Plus Charges","3476314","201803",05/06/2017 00:00:00,868,"31230","Employment and Recruitment Agencies","REDACTED DATA","ADAM HTT LIMITED T/A ADAM","7718565","http://opencorporates.com/companies/gb/7718565","198573349"
"London Borough of Redbridge","http://opendatacommunities.org/doc/london-borough-council/redbridge","5BGFHOUSING","General Fund Housing","5CHOMELESS","Homelessness","REV","Revenue","R5630","HAC Temporary Accomodation","05-THIRD","Third Party Payments","05H","Private contractors","6900","Nightly Let Plus Charges","3476314","201803",05/06/2017 00:00:00,1178,"31230","Employment and Recruitment Agencies","REDACTED DATA","ADAM HTT LIMITED T/A ADAM","7718565","http://opencorporates.com/companies/gb/7718565","198573349"
"London Borough of Redbridge","http://opendatacommunities.org/doc/london-borough-council/redbridge","5BGFHOUSING","General Fund Housing","5CHOMELESS","Homelessness","REV","Revenue","R5630","HAC Temporary Accomodation","05-THIRD","Third Party Payments","05H","Private contractors","6900","Nightly Let Plus Charges","3476314","201803",04/06/2017 00:00:00,1441.5,"31230","Employment and Recruitment Agencies","REDACTED DATA","ADAM HTT LIMITED T/A ADAM","7718565","http://opencorporates.com/companies/gb/7718565","198573349"
"London Borough of Redbridge","http://opendatacommunities.org/doc/london-borough-council/redbridge","5BGFHOUSING","General Fund Housing","5CHOMELESS","Homelessness","REV","Revenue","R5630","HAC Temporary Accomodation","05-THIRD","Third Party Payments","05H","Private contractors","6900","Nightly Let Plus Charges","3476314","201803",05/06/2017 00:00:00,899,"31230","Employment and Recruitment Agencies","REDACTED DATA","ADAM HTT LIMITED T/A ADAM","7718565","http://opencorporates.com/companies/gb/7718565","198573349"
"London Borough of Redbridge","http://opendatacommunities.org/doc/london-borough-council/redbridge","5BGFHOUSING","General Fund Housing","5CHOMELESS","Homelessness","REV","Revenue","R5630","HAC Temporary Accomodation","05-THIRD","Third Party Payments","05H","Private contractors","6900","Nightly Let Plus Charges","3476314","201803",05/06/2017 00:00:00,1519,"31230","Employment and Recruitment Agencies","REDACTED DATA","ADAM HTT LIMITED T/A ADAM","7718565","http://opencorporates.com/companies/gb/7718565","198573349"
"London Borough of Redbridge","http://opendatacommunities.org/doc/london-borough-council/redbridge","5BGFHOUSING","General Fund Housing","5CHOMELESS","Homelessness","REV","Revenue","R5630","HAC Temporary Accomodation","05-THIRD","Third Party Payments","05H","Private contractors","6900","Nightly Let Plus Charges","3476314","201803",05/06/2017 00:00:00,797.94,"31230","Employment and Recruitment Agencies","REDACTED DATA","ADAM HTT LIMITED T/A ADAM","7718565","http://opencorporates.com/companies/gb/7718565","198573349"
"London Borough of Redbridge","http://opendatacommunities.org/doc/london-borough-council/redbridge","5BGFHOUSING","General Fund Housing","5CHOMELESS","Homelessness","REV","Revenue","R5630","HAC Temporary Accomodation","05-THIRD","Third Party Payments","05H","Private contractors","6900","Nightly Let Plus Charges","3476314","201803",05/06/2017 00:00:00,1426,"31230","Employment and Recruitment Agencies","REDACTED DATA","ADAM HTT LIMITED T/A ADAM","7718565","http://opencorporates.com/companies/gb/7718565","198573349"
"London Borough of Redbridge","http://opendatacommunities.org/doc/london-borough-council/redbridge","5BGFHOUSING","General Fund Housing","5CHOMELESS","Homelessness","REV","Revenue","R5630","HAC Temporary Accomodation","05-THIRD","Third Party Payments","05H","Private contractors","6900","Nightly Let Plus Charges","3476314","201803",05/06/2017 00:00:00,775,"31230","Employment and Recruitment Agencies","REDACTED DATA","ADAM HTT LIMITED T/A ADAM","7718565","http://opencorporates.com/companies/gb/7718565","198573349"
"London Borough of Redbridge","http://opendatacommunities.org/doc/london-borough-council/redbridge","5BGFHOUSING","General Fund Housing","5CHOMELESS","Homelessness","REV","Revenue","R5630","HAC Temporary Accomodation","05-THIRD","Third Party Payments","05H","Private contractors","6900","Nightly Let Plus Charges","3476314","201803",05/06/2017 00:00:00,930,"31230","Employment and Recruitment Agencies","REDACTED DATA","ADAM HTT LIMITED T/A ADAM","7718565","http://opencorporates.com/companies/gb/7718565","198573349"
"London Borough of Redbridge","http://opendatacommunities.org/doc/london-borough-council/redbridge","5BGFHOUSING","General Fund Housing","5CHOMELESS","Homelessness","REV","Revenue","R5630","HAC Temporary Accomodation","05-THIRD","Third Party Payments","05H","Private contractors","6900","Nightly Let Plus Charges","3476314","201803",04/06/2017 00:00:00,1674,"31230","Employment and Recruitment Agencies","REDACTED DATA","ADAM HTT LIMITED T/A ADAM","7718565","http://opencorporates.com/companies/gb/7718565","198573349"
"London Borough of Redbridge","http://opendatacommunities.org/doc/london-borough-council/redbridge","5BGFHOUSING","General Fund Housing","5CHOMELESS","Homelessness","REV","Revenue","R5630","HAC Temporary Accomodation","05-THIRD","Third Party Payments","05H","Private contractors","6900","Nightly Let Plus Charges","3476314","201803",04/06/2017 00:00:00,1441.5,"31230","Employment and Recruitment Agencies","REDACTED DATA","ADAM HTT LIMITED T/A ADAM","7718565","http://opencorporates.com/companies/gb/7718565","198573349"
"London Borough of Redbridge","http://opendatacommunities.org/doc/london-borough-council/redbridge","5BGFHOUSING","General Fund Housing","5CHOMELESS","Homelessness","REV","Revenue","R5630","HAC Temporary Accomodation","05-THIRD","Third Party Payments","05H","Private contractors","6900","Nightly Let Plus Charges","3476314","201803",05/06/2017 00:00:00,1178,"31230","Employment and Recruitment Agencies","REDACTED DATA","ADAM HTT LIMITED T/A ADAM","7718565","http://opencorporates.com/companies/gb/7718565","198573349"
"London Borough of Redbridge","http://opendatacommunities.org/doc/london-borough-council/redbridge","5BGFHOUSING","General Fund Housing","5CHOMELESS","Homelessness","REV","Revenue","R5630","HAC Temporary Accomodation","05-THIRD","Third Party Payments","05H","Private contractors","6900","Nightly Let Plus Charges","3476314","201803",05/06/2017 00:00:00,1302,"31230","Employment and Recruitment Agencies","REDACTED DATA","ADAM HTT LIMITED T/A ADAM","7718565","http://opencorporates.com/companies/gb/7718565","198573349"
"London Borough of Redbridge","http://opendatacommunities.org/doc/london-borough-council/redbridge","5BGFHOUSING","General Fund Housing","5CHOMELESS","Homelessness","REV","Revenue","R5630","HAC Temporary Accomodation","05-THIRD","Third Party Payments","05H","Private contractors","6900","Nightly Let Plus Charges","3476314","201803",05/06/2017 00:00:00,1116,"31230","Employment and Recruitment Agencies","REDACTED DATA","ADAM HTT LIMITED T/A ADAM","7718565","http://opencorporates.com/companies/gb/7718565","198573349"
"London Borough of Redbridge","http://opendatacommunities.org/doc/london-borough-council/redbridge","5BGFHOUSING","General Fund Housing","5CHOMELESS","Homelessness","REV","Revenue","R5630","HAC Temporary Accomodation","05-THIRD","Third Party Payments","05H","Private contractors","6900","Nightly Let Plus Charges","3476314","201803",05/06/2017 00:00:00,1878.6,"31230","Employment and Recruitment Agencies","REDACTED DATA","ADAM HTT LIMITED T/A ADAM","7718565","http://opencorporates.com/companies/gb/7718565","198573349"
"London Borough of Redbridge","http://opendatacommunities.org/doc/london-borough-council/redbridge","5BGFHOUSING","General Fund Housing","5CHOMELESS","Homelessness","REV","Revenue","R5630","HAC Temporary Accomodation","05-THIRD","Third Party Payments","05H","Private contractors","6900","Nightly Let Plus Charges","3476314","201803",23/05/2017 00:00:00,930,"31230","Employment and Recruitment Agencies","REDACTED DATA","ADAM HTT LIMITED T/A ADAM","7718565","http://opencorporates.com/companies/gb/7718565","198573349"
"London Borough of Redbridge","http://opendatacommunities.org/doc/london-borough-council/redbridge","5BGFHOUSING","General Fund Housing","5CHOMELESS","Homelessness","REV","Revenue","R5630","HAC Temporary Accomodation","05-THIRD","Third Party Payments","05H","Private contractors","6900","Nightly Let Plus Charges","3476314","201803",05/06/2017 00:00:00,1116,"31230","Employment and Recruitment Agencies","REDACTED DATA","ADAM HTT LIMITED T/A ADAM","7718565","http://opencorporates.com/companies/gb/7718565","198573349"
"London Borough of Redbridge","http://opendatacommunities.org/doc/london-borough-council/redbridge","5BGFHOUSING","General Fund Housing","5CHOMELESS","Homelessness","REV","Revenue","R5630","HAC Temporary Accomodation","05-THIRD","Third Party Payments","05H","Private contractors","6900","Nightly Let Plus Charges","3476314","201803",11/05/2017 00:00:00,418.5,"31230","Employment and Recruitment Agencies","REDACTED DATA","ADAM HTT LIMITED T/A ADAM","7718565","http://opencorporates.com/companies/gb/7718565","198573349"
"London Borough of Redbridge","http://opendatacommunities.org/doc/london-borough-council/redbridge","5BGFHOUSING","General Fund Housing","5CHOMELESS","Homelessness","REV","Revenue","R5630","HAC Temporary Accomodation","05-THIRD","Third Party Payments","05H","Private contractors","6900","Nightly Let Plus Charges","3476314","201803",05/06/2017 00:00:00,1550,"31230","Employment and Recruitment Agencies","REDACTED DATA","ADAM HTT LIMITED T/A ADAM","7718565","http://opencorporates.com/companies/gb/7718565","198573349"
"London Borough of Redbridge","http://opendatacommunities.org/doc/london-borough-council/redbridge","5BGFHOUSING","General Fund Housing","5CHOMELESS","Homelessness","REV","Revenue","R5630","HAC Temporary Accomodation","05-THIRD","Third Party Payments","05H","Private contractors","6900","Nightly Let Plus Charges","3476314","201803",05/06/2017 00:00:00,899,"31230","Employment and Recruitment Agencies","REDACTED DATA","ADAM HTT LIMITED T/A ADAM","7718565","http://opencorporates.com/companies/gb/7718565","198573349"
"London Borough of Redbridge","http://opendatacommunities.org/doc/london-borough-council/redbridge","5BGFHOUSING","General Fund Housing","5CHOMELESS","Homelessness","REV","Revenue","R5630","HAC Temporary Accomodation","05-THIRD","Third Party Payments","05H","Private contractors","6900","Nightly Let Plus Charges","3476314","201803",05/06/2017 00:00:00,1395,"31230","Employment and Recruitment Agencies","REDACTED DATA","ADAM HTT LIMITED T/A ADAM","7718565","http://opencorporates.com/companies/gb/7718565","198573349"
"London Borough of Redbridge","http://opendatacommunities.org/doc/london-borough-council/redbridge","5BGFHOUSING","General Fund Housing","5CHOMELESS","Homelessness","REV","Revenue","R5630","HAC Temporary Accomodation","05-THIRD","Third Party Payments","05H","Private contractors","6900","Nightly Let Plus Charges","3476314","201803",05/06/2017 00:00:00,899,"31230","Employment and Recruitment Agencies","REDACTED DATA","ADAM HTT LIMITED T/A ADAM","7718565","http://opencorporates.com/companies/gb/7718565","198573349"
"London Borough of Redbridge","http://opendatacommunities.org/doc/london-borough-council/redbridge","5BGFHOUSING","General Fund Housing","5CHOMELESS","Homelessness","REV","Revenue","R5630","HAC Temporary Accomodation","05-THIRD","Third Party Payments","05H","Private contractors","6900","Nightly Let Plus Charges","3476314","201803",05/06/2017 00:00:00,1426,"31230","Employment and Recruitment Agencies","REDACTED DATA","ADAM HTT LIMITED T/A ADAM","7718565","http://opencorporates.com/companies/gb/7718565","198573349"
"London Borough of Redbridge","http://opendatacommunities.org/doc/london-borough-council/redbridge","5BGFHOUSING","General Fund Housing","5CHOMELESS","Homelessness","REV","Revenue","R5630","HAC Temporary Accomodation","05-THIRD","Third Party Payments","05H","Private contractors","6900","Nightly Let Plus Charges","3476314","201803",04/06/2017 00:00:00,1441.5,"31230","Employment and Recruitment Agencies","REDACTED DATA","ADAM HTT LIMITED T/A ADAM","7718565","http://opencorporates.com/companies/gb/7718565","198573349"
"London Borough of Redbridge","http://opendatacommunities.org/doc/london-borough-council/redbridge","5BGFHOUSING","General Fund Housing","5CHOMELESS","Homelessness","REV","Revenue","R5630","HAC Temporary Accomodation","05-THIRD","Third Party Payments","05H","Private contractors","6900","Nightly Let Plus Charges","3476314","201803",05/06/2017 00:00:00,1488,"31230","Employment and Recruitment Agencies","REDACTED DATA","ADAM HTT LIMITED T/A ADAM","7718565","http://opencorporates.com/companies/gb/7718565","198573349"
"London Borough of Redbridge","http://opendatacommunities.org/doc/london-borough-council/redbridge","5BGFHOUSING","General Fund Housing","5CHOMELESS","Homelessness","REV","Revenue","R5630","HAC Temporary Accomodation","05-THIRD","Third Party Payments","05H","Private contractors","6900","Nightly Let Plus Charges","3476314","201803",05/06/2017 00:00:00,1426,"31230","Employment and Recruitment Agencies","REDACTED DATA","ADAM HTT LIMITED T/A ADAM","7718565","http://opencorporates.com/companies/gb/7718565","198573349"
"London Borough of Redbridge","http://opendatacommunities.org/doc/london-borough-council/redbridge","5BGFHOUSING","General Fund Housing","5CHOMELESS","Homelessness","REV","Revenue","R5630","HAC Temporary Accomodation","05-THIRD","Third Party Payments","05H","Private contractors","6900","Nightly Let Plus Charges","3476314","201803",05/06/2017 00:00:00,1178,"31230","Employment and Recruitment Agencies","REDACTED DATA","ADAM HTT LIMITED T/A ADAM","7718565","http://opencorporates.com/companies/gb/7718565","198573349"
"London Borough of Redbridge","http://opendatacommunities.org/doc/london-borough-council/redbridge","5BGFHOUSING","General Fund Housing","5CHOMELESS","Homelessness","REV","Revenue","R5630","HAC Temporary Accomodation","05-THIRD","Third Party Payments","05H","Private contractors","6900","Nightly Let Plus Charges","3476314","201803",23/05/2017 00:00:00,-927.9,"31230","Employment and Recruitment Agencies","REDACTED DATA","ADAM HTT LIMITED T/A ADAM","7718565","http://opencorporates.com/companies/gb/7718565","198573349"
"London Borough of Redbridge","http://opendatacommunities.org/doc/london-borough-council/redbridge","5BGFHOUSING","General Fund Housing","5CHOMELESS","Homelessness","REV","Revenue","R5630","HAC Temporary Accomodation","05-THIRD","Third Party Payments","05H","Private contractors","6900","Nightly Let Plus Charges","3476314","201803",05/06/2017 00:00:00,775,"31230","Employment and Recruitment Agencies","REDACTED DATA","ADAM HTT LIMITED T/A ADAM","7718565","http://opencorporates.com/companies/gb/7718565","198573349"
"London Borough of Redbridge","http://opendatacommunities.org/doc/london-borough-council/redbridge","5BGFHOUSING","General Fund Housing","5CHOMELESS","Homelessness","REV","Revenue","R5630","HAC Temporary Accomodation","05-THIRD","Third Party Payments","05H","Private contractors","6900","Nightly Let Plus Charges","3476314","201803",04/06/2017 00:00:00,1798,"31230","Employment and Recruitment Agencies","REDACTED DATA","ADAM HTT LIMITED T/A ADAM","7718565","http://opencorporates.com/companies/gb/7718565","198573349"
"London Borough of Redbridge","http://opendatacommunities.org/doc/london-borough-council/redbridge","5BGFHOUSING","General Fund Housing","5CHOMELESS","Homelessness","REV","Revenue","R5630","HAC Temporary Accomodation","05-THIRD","Third Party Payments","05H","Private contractors","6900","Nightly Let Plus Charges","3476314","201803",05/06/2017 00:00:00,1395,"31230","Employment and Recruitment Agencies","REDACTED DATA","ADAM HTT LIMITED T/A ADAM","7718565","http://opencorporates.com/companies/gb/7718565","198573349"
"London Borough of Redbridge","http://opendatacommunities.org/doc/london-borough-council/redbridge","5BGFHOUSING","General Fund Housing","5CHOMELESS","Homelessness","REV","Revenue","R5630","HAC Temporary Accomodation","05-THIRD","Third Party Payments","05H","Private contractors","6900","Nightly Let Plus Charges","3476314","201803",05/06/2017 00:00:00,1550,"31230","Employment and Recruitment Agencies","REDACTED DATA","ADAM HTT LIMITED T/A ADAM","7718565","http://opencorporates.com/companies/gb/7718565","198573349"
"London Borough of Redbridge","http://opendatacommunities.org/doc/london-borough-council/redbridge","5BGFHOUSING","General Fund Housing","5CHOMELESS","Homelessness","REV","Revenue","R5630","HAC Temporary Accomodation","05-THIRD","Third Party Payments","05H","Private contractors","6900","Nightly Let Plus Charges","3476314","201803",05/06/2017 00:00:00,713,"31230","Employment and Recruitment Agencies","REDACTED DATA","ADAM HTT LIMITED T/A ADAM","7718565","http://opencorporates.com/companies/gb/7718565","198573349"
"London Borough of Redbridge","http://opendatacommunities.org/doc/london-borough-council/redbridge","5BGFHOUSING","General Fund Housing","5CHOMELESS","Homelessness","REV","Revenue","R5630","HAC Temporary Accomodation","05-THIRD","Third Party Payments","05H","Private contractors","6900","Nightly Let Plus Charges","3476314","201803",05/06/2017 00:00:00,1395,"31230","Employment and Recruitment Agencies","REDACTED DATA","ADAM HTT LIMITED T/A ADAM","7718565","http://opencorporates.com/companies/gb/7718565","198573349"
"London Borough of Redbridge","http://opendatacommunities.org/doc/london-borough-council/redbridge","5BGFHOUSING","General Fund Housing","5CHOMELESS","Homelessness","REV","Revenue","R5630","HAC Temporary Accomodation","05-THIRD","Third Party Payments","05H","Private contractors","6900","Nightly Let Plus Charges","3476314","201803",05/06/2017 00:00:00,775,"31230","Employment and Recruitment Agencies","REDACTED DATA","ADAM HTT LIMITED T/A ADAM","7718565","http://opencorporates.com/companies/gb/7718565","198573349"
"London Borough of Redbridge","http://opendatacommunities.org/doc/london-borough-council/redbridge","5BGFHOUSING","General Fund Housing","5CHOMELESS","Homelessness","REV","Revenue","R5630","HAC Temporary Accomodation","05-THIRD","Third Party Payments","05H","Private contractors","6900","Nightly Let Plus Charges","3476314","201803",04/06/2017 00:00:00,1333,"31230","Employment and Recruitment Agencies","REDACTED DATA","ADAM HTT LIMITED T/A ADAM","7718565","http://opencorporates.com/companies/gb/7718565","198573349"
"London Borough of Redbridge","http://opendatacommunities.org/doc/london-borough-council/redbridge","5BGFHOUSING","General Fund Housing","5CHOMELESS","Homelessness","REV","Revenue","R5630","HAC Temporary Accomodation","05-THIRD","Third Party Payments","05H","Private contractors","6900","Nightly Let Plus Charges","3476314","201803",05/06/2017 00:00:00,1054,"31230","Employment and Recruitment Agencies","REDACTED DATA","ADAM HTT LIMITED T/A ADAM","7718565","http://opencorporates.com/companies/gb/7718565","198573349"
"London Borough of Redbridge","http://opendatacommunities.org/doc/london-borough-council/redbridge","5BGFHOUSING","General Fund Housing","5CHOMELESS","Homelessness","REV","Revenue","R5630","HAC Temporary Accomodation","05-THIRD","Third Party Payments","05H","Private contractors","6900","Nightly Let Plus Charges","3476314","201803",05/06/2017 00:00:00,1142.97,"31230","Employment and Recruitment Agencies","REDACTED DATA","ADAM HTT LIMITED T/A ADAM","7718565","http://opencorporates.com/companies/gb/7718565","198573349"
"London Borough of Redbridge","http://opendatacommunities.org/doc/london-borough-council/redbridge","5BGFHOUSING","General Fund Housing","5CHOMELESS","Homelessness","REV","Revenue","R5630","HAC Temporary Accomodation","05-THIRD","Third Party Payments","05H","Private contractors","6900","Nightly Let Plus Charges","3476314","201803",05/06/2017 00:00:00,1550,"31230","Employment and Recruitment Agencies","REDACTED DATA","ADAM HTT LIMITED T/A ADAM","7718565","http://opencorporates.com/companies/gb/7718565","198573349"
"London Borough of Redbridge","http://opendatacommunities.org/doc/london-borough-council/redbridge","5BGFHOUSING","General Fund Housing","5CHOMELESS","Homelessness","REV","Revenue","R5630","HAC Temporary Accomodation","05-THIRD","Third Party Payments","05H","Private contractors","6900","Nightly Let Plus Charges","3476314","201803",05/06/2017 00:00:00,1395,"31230","Employment and Recruitment Agencies","REDACTED DATA","ADAM HTT LIMITED T/A ADAM","7718565","http://opencorporates.com/companies/gb/7718565","198573349"
"London Borough of Redbridge","http://opendatacommunities.org/doc/london-borough-council/redbridge","5BGFHOUSING","General Fund Housing","5CHOMELESS","Homelessness","REV","Revenue","R5630","HAC Temporary Accomodation","05-THIRD","Third Party Payments","05H","Private contractors","6900","Nightly Let Plus Charges","3476314","201803",05/06/2017 00:00:00,1705,"31230","Employment and Recruitment Agencies","REDACTED DATA","ADAM HTT LIMITED T/A ADAM","7718565","http://opencorporates.com/companies/gb/7718565","198573349"
"London Borough of Redbridge","http://opendatacommunities.org/doc/london-borough-council/redbridge","5BGFHOUSING","General Fund Housing","5CHOMELESS","Homelessness","REV","Revenue","R5630","HAC Temporary Accomodation","05-THIRD","Third Party Payments","05H","Private contractors","6900","Nightly Let Plus Charges","3476314","201803",05/06/2017 00:00:00,1705,"31230","Employment and Recruitment Agencies","REDACTED DATA","ADAM HTT LIMITED T/A ADAM","7718565","http://opencorporates.com/companies/gb/7718565","198573349"
"London Borough of Redbridge","http://opendatacommunities.org/doc/london-borough-council/redbridge","5BGFHOUSING","General Fund Housing","5CHOMELESS","Homelessness","REV","Revenue","R5630","HAC Temporary Accomodation","05-THIRD","Third Party Payments","05H","Private contractors","6900","Nightly Let Plus Charges","3476314","201803",04/06/2017 00:00:00,1240,"31230","Employment and Recruitment Agencies","REDACTED DATA","ADAM HTT LIMITED T/A ADAM","7718565","http://opencorporates.com/companies/gb/7718565","198573349"
"London Borough of Redbridge","http://opendatacommunities.org/doc/london-borough-council/redbridge","5BGFHOUSING","General Fund Housing","5CHOMELESS","Homelessness","REV","Revenue","R5630","HAC Temporary Accomodation","05-THIRD","Third Party Payments","05H","Private contractors","6900","Nightly Let Plus Charges","3476314","201803",05/06/2017 00:00:00,1705,"31230","Employment and Recruitment Agencies","REDACTED DATA","ADAM HTT LIMITED T/A ADAM","7718565","http://opencorporates.com/companies/gb/7718565","198573349"
"London Borough of Redbridge","http://opendatacommunities.org/doc/london-borough-council/redbridge","5BGFHOUSING","General Fund Housing","5CHOMELESS","Homelessness","REV","Revenue","R5630","HAC Temporary Accomodation","05-THIRD","Third Party Payments","05H","Private contractors","6900","Nightly Let Plus Charges","3476314","201803",05/06/2017 00:00:00,1550,"31230","Employment and Recruitment Agencies","REDACTED DATA","ADAM HTT LIMITED T/A ADAM","7718565","http://opencorporates.com/companies/gb/7718565","198573349"
"London Borough of Redbridge","http://opendatacommunities.org/doc/london-borough-council/redbridge","5BGFHOUSING","General Fund Housing","5CHOMELESS","Homelessness","REV","Revenue","R5630","HAC Temporary Accomodation","05-THIRD","Third Party Payments","05H","Private contractors","6900","Nightly Let Plus Charges","3476314","201803",04/06/2017 00:00:00,1674,"31230","Employment and Recruitment Agencies","REDACTED DATA","ADAM HTT LIMITED T/A ADAM","7718565","http://opencorporates.com/companies/gb/7718565","198573349"
"London Borough of Redbridge","http://opendatacommunities.org/doc/london-borough-council/redbridge","5BGFHOUSING","General Fund Housing","5CHOMELESS","Homelessness","REV","Revenue","R5630","HAC Temporary Accomodation","05-THIRD","Third Party Payments","05H","Private contractors","6900","Nightly Let Plus Charges","3476314","201803",05/06/2017 00:00:00,1860,"31230","Employment and Recruitment Agencies","REDACTED DATA","ADAM HTT LIMITED T/A ADAM","7718565","http://opencorporates.com/companies/gb/7718565","198573349"
"London Borough of Redbridge","http://opendatacommunities.org/doc/london-borough-council/redbridge","5BGFHOUSING","General Fund Housing","5CHOMELESS","Homelessness","REV","Revenue","R5630","HAC Temporary Accomodation","05-THIRD","Third Party Payments","05H","Private contractors","6900","Nightly Let Plus Charges","3476314","201803",05/06/2017 00:00:00,775,"31230","Employment and Recruitment Agencies","REDACTED DATA","ADAM HTT LIMITED T/A ADAM","7718565","http://opencorporates.com/companies/gb/7718565","198573349"
"London Borough of Redbridge","http://opendatacommunities.org/doc/london-borough-council/redbridge","5BGFHOUSING","General Fund Housing","5CHOMELESS","Homelessness","REV","Revenue","R5630","HAC Temporary Accomodation","05-THIRD","Third Party Payments","05H","Private contractors","6900","Nightly Let Plus Charges","3476314","201803",04/06/2017 00:00:00,1441.5,"31230","Employment and Recruitment Agencies","REDACTED DATA","ADAM HTT LIMITED T/A ADAM","7718565","http://opencorporates.com/companies/gb/7718565","198573349"
"London Borough of Redbridge","http://opendatacommunities.org/doc/london-borough-council/redbridge","5BGFHOUSING","General Fund Housing","5CHOMELESS","Homelessness","REV","Revenue","R5630","HAC Temporary Accomodation","05-THIRD","Third Party Payments","05H","Private contractors","6900","Nightly Let Plus Charges","3476314","201803",05/06/2017 00:00:00,1426,"31230","Employment and Recruitment Agencies","REDACTED DATA","ADAM HTT LIMITED T/A ADAM","7718565","http://opencorporates.com/companies/gb/7718565","198573349"
"London Borough of Redbridge","http://opendatacommunities.org/doc/london-borough-council/redbridge","5BGFHOUSING","General Fund Housing","5CHOMELESS","Homelessness","REV","Revenue","R5630","HAC Temporary Accomodation","05-THIRD","Third Party Payments","05H","Private contractors","6900","Nightly Let Plus Charges","3476314","201803",04/06/2017 00:00:00,1674,"31230","Employment and Recruitment Agencies","REDACTED DATA","ADAM HTT LIMITED T/A ADAM","7718565","http://opencorporates.com/companies/gb/7718565","198573349"
"London Borough of Redbridge","http://opendatacommunities.org/doc/london-borough-council/redbridge","5BGFHOUSING","General Fund Housing","5CHOMELESS","Homelessness","REV","Revenue","R5630","HAC Temporary Accomodation","05-THIRD","Third Party Payments","05H","Private contractors","6900","Nightly Let Plus Charges","3476314","201803",05/06/2017 00:00:00,979.6,"31230","Employment and Recruitment Agencies","REDACTED DATA","ADAM HTT LIMITED T/A ADAM","7718565","http://opencorporates.com/companies/gb/7718565","198573349"
"London Borough of Redbridge","http://opendatacommunities.org/doc/london-borough-council/redbridge","5BGFHOUSING","General Fund Housing","5CHOMELESS","Homelessness","REV","Revenue","R5630","HAC Temporary Accomodation","05-THIRD","Third Party Payments","05H","Private contractors","6900","Nightly Let Plus Charges","3476314","201803",05/06/2017 00:00:00,1395,"31230","Employment and Recruitment Agencies","REDACTED DATA","ADAM HTT LIMITED T/A ADAM","7718565","http://opencorporates.com/companies/gb/7718565","198573349"
"London Borough of Redbridge","http://opendatacommunities.org/doc/london-borough-council/redbridge","5BGFHOUSING","General Fund Housing","5CHOMELESS","Homelessness","REV","Revenue","R5630","HAC Temporary Accomodation","05-THIRD","Third Party Payments","05H","Private contractors","6900","Nightly Let Plus Charges","3476314","201803",05/06/2017 00:00:00,1395,"31230","Employment and Recruitment Agencies","REDACTED DATA","ADAM HTT LIMITED T/A ADAM","7718565","http://opencorporates.com/companies/gb/7718565","198573349"
"London Borough of Redbridge","http://opendatacommunities.org/doc/london-borough-council/redbridge","5BGFHOUSING","General Fund Housing","5CHOMELESS","Homelessness","REV","Revenue","R5630","HAC Temporary Accomodation","05-THIRD","Third Party Payments","05H","Private contractors","6900","Nightly Let Plus Charges","3476314","201803",05/06/2017 00:00:00,1178,"31230","Employment and Recruitment Agencies","REDACTED DATA","ADAM HTT LIMITED T/A ADAM","7718565","http://opencorporates.com/companies/gb/7718565","198573349"
"London Borough of Redbridge","http://opendatacommunities.org/doc/london-borough-council/redbridge","5BGFHOUSING","General Fund Housing","5CHOMELESS","Homelessness","REV","Revenue","R5630","HAC Temporary Accomodation","05-THIRD","Third Party Payments","05H","Private contractors","6900","Nightly Let Plus Charges","3476314","201803",05/06/2017 00:00:00,1395,"31230","Employment and Recruitment Agencies","REDACTED DATA","ADAM HTT LIMITED T/A ADAM","7718565","http://opencorporates.com/companies/gb/7718565","198573349"
"London Borough of Redbridge","http://opendatacommunities.org/doc/london-borough-council/redbridge","5BGFHOUSING","General Fund Housing","5CHOMELESS","Homelessness","REV","Revenue","R5630","HAC Temporary Accomodation","05-THIRD","Third Party Payments","05H","Private contractors","6900","Nightly Let Plus Charges","3476314","201803",05/06/2017 00:00:00,1178,"31230","Employment and Recruitment Agencies","REDACTED DATA","ADAM HTT LIMITED T/A ADAM","7718565","http://opencorporates.com/companies/gb/7718565","198573349"
"London Borough of Redbridge","http://opendatacommunities.org/doc/london-borough-council/redbridge","5BGFHOUSING","General Fund Housing","5CHOMELESS","Homelessness","REV","Revenue","R5630","HAC Temporary Accomodation","05-THIRD","Third Party Payments","05H","Private contractors","6900","Nightly Let Plus Charges","3476314","201803",05/06/2017 00:00:00,1023,"31230","Employment and Recruitment Agencies","REDACTED DATA","ADAM HTT LIMITED T/A ADAM","7718565","http://opencorporates.com/companies/gb/7718565","198573349"
"London Borough of Redbridge","http://opendatacommunities.org/doc/london-borough-council/redbridge","5BGFHOUSING","General Fund Housing","5CHOMELESS","Homelessness","REV","Revenue","R5630","HAC Temporary Accomodation","05-THIRD","Third Party Payments","05H","Private contractors","6900","Nightly Let Plus Charges","3476314","201803",05/06/2017 00:00:00,1671.83,"31230","Employment and Recruitment Agencies","REDACTED DATA","ADAM HTT LIMITED T/A ADAM","7718565","http://opencorporates.com/companies/gb/7718565","198573349"
"London Borough of Redbridge","http://opendatacommunities.org/doc/london-borough-council/redbridge","5BGFHOUSING","General Fund Housing","5CHOMELESS","Homelessness","REV","Revenue","R5630","HAC Temporary Accomodation","05-THIRD","Third Party Payments","05H","Private contractors","6900","Nightly Let Plus Charges","3476314","201803",04/06/2017 00:00:00,1302,"31230","Employment and Recruitment Agencies","REDACTED DATA","ADAM HTT LIMITED T/A ADAM","7718565","http://opencorporates.com/companies/gb/7718565","198573349"
"London Borough of Redbridge","http://opendatacommunities.org/doc/london-borough-council/redbridge","5BGFHOUSING","General Fund Housing","5CHOMELESS","Homelessness","REV","Revenue","R5630","HAC Temporary Accomodation","05-THIRD","Third Party Payments","05H","Private contractors","6900","Nightly Let Plus Charges","3476314","201803",05/06/2017 00:00:00,1178,"31230","Employment and Recruitment Agencies","REDACTED DATA","ADAM HTT LIMITED T/A ADAM","7718565","http://opencorporates.com/companies/gb/7718565","198573349"
"London Borough of Redbridge","http://opendatacommunities.org/doc/london-borough-council/redbridge","5BGFHOUSING","General Fund Housing","5CHOMELESS","Homelessness","REV","Revenue","R5630","HAC Temporary Accomodation","05-THIRD","Third Party Payments","05H","Private contractors","6900","Nightly Let Plus Charges","3476314","201803",05/06/2017 00:00:00,2015,"31230","Employment and Recruitment Agencies","REDACTED DATA","ADAM HTT LIMITED T/A ADAM","7718565","http://opencorporates.com/companies/gb/7718565","198573349"
"London Borough of Redbridge","http://opendatacommunities.org/doc/london-borough-council/redbridge","5BGFHOUSING","General Fund Housing","5CHOMELESS","Homelessness","REV","Revenue","R5630","HAC Temporary Accomodation","05-THIRD","Third Party Payments","05H","Private contractors","6900","Nightly Let Plus Charges","3476314","201803",05/06/2017 00:00:00,1705,"31230","Employment and Recruitment Agencies","REDACTED DATA","ADAM HTT LIMITED T/A ADAM","7718565","http://opencorporates.com/companies/gb/7718565","198573349"
"London Borough of Redbridge","http://opendatacommunities.org/doc/london-borough-council/redbridge","5BGFHOUSING","General Fund Housing","5CHOMELESS","Homelessness","REV","Revenue","R5630","HAC Temporary Accomodation","05-THIRD","Third Party Payments","05H","Private contractors","6900","Nightly Let Plus Charges","3476314","201803",11/05/2017 00:00:00,-791.1,"31230","Employment and Recruitment Agencies","REDACTED DATA","ADAM HTT LIMITED T/A ADAM","7718565","http://opencorporates.com/companies/gb/7718565","198573349"
"London Borough of Redbridge","http://opendatacommunities.org/doc/london-borough-council/redbridge","5BGFHOUSING","General Fund Housing","5CHOMELESS","Homelessness","REV","Revenue","R5630","HAC Temporary Accomodation","05-THIRD","Third Party Payments","05H","Private contractors","6900","Nightly Let Plus Charges","3476314","201803",04/06/2017 00:00:00,1860,"31230","Employment and Recruitment Agencies","REDACTED DATA","ADAM HTT LIMITED T/A ADAM","7718565","http://opencorporates.com/companies/gb/7718565","198573349"
"London Borough of Redbridge","http://opendatacommunities.org/doc/london-borough-council/redbridge","5BGFHOUSING","General Fund Housing","5CHOMELESS","Homelessness","REV","Revenue","R5630","HAC Temporary Accomodation","05-THIRD","Third Party Payments","05H","Private contractors","6900","Nightly Let Plus Charges","3476314","201803",04/06/2017 00:00:00,2325,"31230","Employment and Recruitment Agencies","REDACTED DATA","ADAM HTT LIMITED T/A ADAM","7718565","http://opencorporates.com/companies/gb/7718565","198573349"
"London Borough of Redbridge","http://opendatacommunities.org/doc/london-borough-council/redbridge","5BGFHOUSING","General Fund Housing","5CHOMELESS","Homelessness","REV","Revenue","R5630","HAC Temporary Accomodation","05-THIRD","Third Party Payments","05H","Private contractors","6900","Nightly Let Plus Charges","3476314","201803",04/06/2017 00:00:00,1705,"31230","Employment and Recruitment Agencies","REDACTED DATA","ADAM HTT LIMITED T/A ADAM","7718565","http://opencorporates.com/companies/gb/7718565","198573349"
"London Borough of Redbridge","http://opendatacommunities.org/doc/london-borough-council/redbridge","5BGFHOUSING","General Fund Housing","5CHOMELESS","Homelessness","REV","Revenue","R5630","HAC Temporary Accomodation","05-THIRD","Third Party Payments","05H","Private contractors","6900","Nightly Let Plus Charges","3476314","201803",04/06/2017 00:00:00,1395,"31230","Employment and Recruitment Agencies","REDACTED DATA","ADAM HTT LIMITED T/A ADAM","7718565","http://opencorporates.com/companies/gb/7718565","198573349"
"London Borough of Redbridge","http://opendatacommunities.org/doc/london-borough-council/redbridge","5BGFHOUSING","General Fund Housing","5CHOMELESS","Homelessness","REV","Revenue","R5630","HAC Temporary Accomodation","05-THIRD","Third Party Payments","05H","Private contractors","6900","Nightly Let Plus Charges","3476314","201803",05/06/2017 00:00:00,1705,"31230","Employment and Recruitment Agencies","REDACTED DATA","ADAM HTT LIMITED T/A ADAM","7718565","http://opencorporates.com/companies/gb/7718565","198573349"
"London Borough of Redbridge","http://opendatacommunities.org/doc/london-borough-council/redbridge","5BGFHOUSING","General Fund Housing","5CHOMELESS","Homelessness","REV","Revenue","R5630","HAC Temporary Accomodation","05-THIRD","Third Party Payments","05H","Private contractors","6900","Nightly Let Plus Charges","3476314","201803",04/06/2017 00:00:00,1519,"31230","Employment and Recruitment Agencies","REDACTED DATA","ADAM HTT LIMITED T/A ADAM","7718565","http://opencorporates.com/companies/gb/7718565","198573349"
"London Borough of Redbridge","http://opendatacommunities.org/doc/london-borough-council/redbridge","5BGFHOUSING","General Fund Housing","5CHOMELESS","Homelessness","REV","Revenue","R5630","HAC Temporary Accomodation","05-THIRD","Third Party Payments","05H","Private contractors","6900","Nightly Let Plus Charges","3476314","201803",05/06/2017 00:00:00,1116,"31230","Employment and Recruitment Agencies","REDACTED DATA","ADAM HTT LIMITED T/A ADAM","7718565","http://opencorporates.com/companies/gb/7718565","198573349"
"London Borough of Redbridge","http://opendatacommunities.org/doc/london-borough-council/redbridge","5BGFHOUSING","General Fund Housing","5CHOMELESS","Homelessness","REV","Revenue","R5630","HAC Temporary Accomodation","05-THIRD","Third Party Payments","05H","Private contractors","6900","Nightly Let Plus Charges","3476314","201803",05/06/2017 00:00:00,1395,"31230","Employment and Recruitment Agencies","REDACTED DATA","ADAM HTT LIMITED T/A ADAM","7718565","http://opencorporates.com/companies/gb/7718565","198573349"
"London Borough of Redbridge","http://opendatacommunities.org/doc/london-borough-council/redbridge","5BGFHOUSING","General Fund Housing","5CHOMELESS","Homelessness","REV","Revenue","R5630","HAC Temporary Accomodation","05-THIRD","Third Party Payments","05H","Private contractors","6900","Nightly Let Plus Charges","3476314","201803",05/06/2017 00:00:00,1705,"31230","Employment and Recruitment Agencies","REDACTED DATA","ADAM HTT LIMITED T/A ADAM","7718565","http://opencorporates.com/companies/gb/7718565","198573349"
"London Borough of Redbridge","http://opendatacommunities.org/doc/london-borough-council/redbridge","5BGFHOUSING","General Fund Housing","5CHOMELESS","Homelessness","REV","Revenue","R5630","HAC Temporary Accomodation","05-THIRD","Third Party Payments","05H","Private contractors","6900","Nightly Let Plus Charges","3476314","201803",04/06/2017 00:00:00,2015,"31230","Employment and Recruitment Agencies","REDACTED DATA","ADAM HTT LIMITED T/A ADAM","7718565","http://opencorporates.com/companies/gb/7718565","198573349"
"London Borough of Redbridge","http://opendatacommunities.org/doc/london-borough-council/redbridge","5BGFHOUSING","General Fund Housing","5CHOMELESS","Homelessness","REV","Revenue","R5630","HAC Temporary Accomodation","05-THIRD","Third Party Payments","05H","Private contractors","6900","Nightly Let Plus Charges","3476314","201803",04/06/2017 00:00:00,1178,"31230","Employment and Recruitment Agencies","REDACTED DATA","ADAM HTT LIMITED T/A ADAM","7718565","http://opencorporates.com/companies/gb/7718565","198573349"
"London Borough of Redbridge","http://opendatacommunities.org/doc/london-borough-council/redbridge","5BGFHOUSING","General Fund Housing","5CHOMELESS","Homelessness","REV","Revenue","R5630","HAC Temporary Accomodation","05-THIRD","Third Party Payments","05H","Private contractors","6900","Nightly Let Plus Charges","3476314","201803",05/06/2017 00:00:00,1116,"31230","Employment and Recruitment Agencies","REDACTED DATA","ADAM HTT LIMITED T/A ADAM","7718565","http://opencorporates.com/companies/gb/7718565","198573349"
"London Borough of Redbridge","http://opendatacommunities.org/doc/london-borough-council/redbridge","5BGFHOUSING","General Fund Housing","5CHOMELESS","Homelessness","REV","Revenue","R5630","HAC Temporary Accomodation","05-THIRD","Third Party Payments","05H","Private contractors","6900","Nightly Let Plus Charges","3476314","201803",05/06/2017 00:00:00,899,"31230","Employment and Recruitment Agencies","REDACTED DATA","ADAM HTT LIMITED T/A ADAM","7718565","http://opencorporates.com/companies/gb/7718565","198573349"
"London Borough of Redbridge","http://opendatacommunities.org/doc/london-borough-council/redbridge","5BGFHOUSING","General Fund Housing","5CHOMELESS","Homelessness","REV","Revenue","R5630","HAC Temporary Accomodation","05-THIRD","Third Party Payments","05H","Private contractors","6900","Nightly Let Plus Charges","3476314","201803",04/06/2017 00:00:00,930,"31230","Employment and Recruitment Agencies","REDACTED DATA","ADAM HTT LIMITED T/A ADAM","7718565","http://opencorporates.com/companies/gb/7718565","198573349"
"London Borough of Redbridge","http://opendatacommunities.org/doc/london-borough-council/redbridge","5BGFHOUSING","General Fund Housing","5CHOMELESS","Homelessness","REV","Revenue","R5630","HAC Temporary Accomodation","05-THIRD","Third Party Payments","05H","Private contractors","6900","Nightly Let Plus Charges","3476314","201803",04/06/2017 00:00:00,1612,"31230","Employment and Recruitment Agencies","REDACTED DATA","ADAM HTT LIMITED T/A ADAM","7718565","http://opencorporates.com/companies/gb/7718565","198573349"
"London Borough of Redbridge","http://opendatacommunities.org/doc/london-borough-council/redbridge","5BGFHOUSING","General Fund Housing","5CHOMELESS","Homelessness","REV","Revenue","R5630","HAC Temporary Accomodation","05-THIRD","Third Party Payments","05H","Private contractors","6900","Nightly Let Plus Charges","3476314","201803",04/06/2017 00:00:00,1643,"31230","Employment and Recruitment Agencies","REDACTED DATA","ADAM HTT LIMITED T/A ADAM","7718565","http://opencorporates.com/companies/gb/7718565","198573349"
"London Borough of Redbridge","http://opendatacommunities.org/doc/london-borough-council/redbridge","5BGFHOUSING","General Fund Housing","5CHOMELESS","Homelessness","REV","Revenue","R5630","HAC Temporary Accomodation","05-THIRD","Third Party Payments","05H","Private contractors","6900","Nightly Let Plus Charges","3476314","201803",05/06/2017 00:00:00,1395,"31230","Employment and Recruitment Agencies","REDACTED DATA","ADAM HTT LIMITED T/A ADAM","7718565","http://opencorporates.com/companies/gb/7718565","198573349"
"London Borough of Redbridge","http://opendatacommunities.org/doc/london-borough-council/redbridge","5BGFHOUSING","General Fund Housing","5CHOMELESS","Homelessness","REV","Revenue","R5630","HAC Temporary Accomodation","05-THIRD","Third Party Payments","05H","Private contractors","6900","Nightly Let Plus Charges","3476314","201803",05/06/2017 00:00:00,1395,"31230","Employment and Recruitment Agencies","REDACTED DATA","ADAM HTT LIMITED T/A ADAM","7718565","http://opencorporates.com/companies/gb/7718565","198573349"
"London Borough of Redbridge","http://opendatacommunities.org/doc/london-borough-council/redbridge","5BGFHOUSING","General Fund Housing","5CHOMELESS","Homelessness","REV","Revenue","R5630","HAC Temporary Accomodation","05-THIRD","Third Party Payments","05H","Private contractors","6900","Nightly Let Plus Charges","3476314","201803",05/06/2017 00:00:00,958.83,"31230","Employment and Recruitment Agencies","REDACTED DATA","ADAM HTT LIMITED T/A ADAM","7718565","http://opencorporates.com/companies/gb/7718565","198573349"
"London Borough of Redbridge","http://opendatacommunities.org/doc/london-borough-council/redbridge","5BGFHOUSING","General Fund Housing","5CHOMELESS","Homelessness","REV","Revenue","R5630","HAC Temporary Accomodation","05-THIRD","Third Party Payments","05H","Private contractors","6900","Nightly Let Plus Charges","3476314","201803",05/06/2017 00:00:00,1240,"31230","Employment and Recruitment Agencies","REDACTED DATA","ADAM HTT LIMITED T/A ADAM","7718565","http://opencorporates.com/companies/gb/7718565","198573349"
"London Borough of Redbridge","http://opendatacommunities.org/doc/london-borough-council/redbridge","9BNONBVO","Outside the BVACOP Objective Structure","9CNONBVO","Outside the BVACOP Objective Structure","BAL","Balance Sheet","B2001","Insurance Fund","99-NONBV","Capital, Balance Sheet and Control","50K","Current Assets","9314","Advance To MMI","70095032","201803",07/06/2017 00:00:00,45125.79,"45415","Insurance - Other","REDACTED DATA","ZURICH MUNICIPAL","",,""
"London Borough of Redbridge","http://opendatacommunities.org/doc/london-borough-council/redbridge","9BNONBVO","Outside the BVACOP Objective Structure","9CNONBVO","Outside the BVACOP Objective Structure","REV","Revenue","R0056","Loans Fund - Revenue Exp","09-INCOME","Income","09D","Interest","8703","Interest On Temporary Investments","70095032","201803",07/06/2017 00:00:00,-21.37,"45415","Insurance - Other","REDACTED DATA","ZURICH MUNICIPAL","",,""
"London Borough of Redbridge","http://opendatacommunities.org/doc/london-borough-council/redbridge","3BLEACENTFND","LEA Centrally Held School Funds","3CFACILIMPRO","Facilitating School Improvement","REV","Revenue","R3362","Young People's Substance Misuse","05-THIRD","Third Party Payments","05A","Independent units within the council","6513","Agency & Contracted Services","60346377","201803",20/06/2017 00:00:00,44232.75,"42200","Health Authorities","REDACTED DATA","NORTH EAST LONDON NHS FOUNDATION TRUST","",,"654404447"
"London Borough of Redbridge","http://opendatacommunities.org/doc/london-borough-council/redbridge","3BLEACENTFND","LEA Centrally Held School Funds","3CNONSCH","Non Schools","REV","Revenue","R2004","SEN and CD Res Placements DSG","05-THIRD","Third Party Payments","05H","Private contractors","6906","Independent Schools","60345108","201803",07/06/2017 00:00:00,36333.33,"67860","Schools - Independent and Preparatory","REDACTED DATA","TRANSITIONAL CARE LTD","3872464","http://opencorporates.com/companies/gb/3872464","756871975"
"London Borough of Redbridge","http://opendatacommunities.org/doc/london-borough-council/redbridge","3BLEACENTFND","LEA Centrally Held School Funds","3CNONSCH","Non Schools","REV","Revenue","R2004","SEN and CD Res Placements DSG","05-THIRD","Third Party Payments","05H","Private contractors","6906","Independent Schools","60345790","201803",01/04/2017 00:00:00,43211,"67981","Schools - Local Authority","REDACTED DATA","WEST HEATH 2000 LTD (THE NEW SCHOOL AT WEST HEATH)","3571239","http://opencorporates.com/companies/gb/3571239",""
"London Borough of Redbridge","http://opendatacommunities.org/doc/london-borough-council/redbridge","4BTRANSPORT","Transport Planning, Policy & Strategy","4CMANGT&SUPP","Management & Support Services","REV","Revenue","R7006","Lighting Schedule 2","05-THIRD","Third Party Payments","05H","Private contractors","6915","Contractor Payments","3474945","201803",07/06/2017 00:00:00,35736.93,"21555","Construction Contractors - General","REDACTED DATA","SKANSKA CONSTRUCTION UK LTD","191408","http://opencorporates.com/companies/gb/191408","378403142"
"London Borough of Redbridge","http://opendatacommunities.org/doc/london-borough-council/redbridge","9BNONBVO","Outside the BVACOP Objective Structure","9CNONBVO","Outside the BVACOP Objective Structure","CAP","Capital","C2152","HRA Sites Phase 3A - Luminus","99-NONBV","Capital, Balance Sheet and Control","50E","Capital - Contract Payments","9150","Main Contract","60346787","201803",26/06/2017 00:00:00,41659.46,"44140","House Builders","REDACTED DATA","LUMINUS DEVELOPMENTS LTD","4581669","http://opencorporates.com/companies/gb/4581669","991290888"
"London Borough of Redbridge","http://opendatacommunities.org/doc/london-borough-council/redbridge","9BNONBVO","Outside the BVACOP Objective Structure","9CNONBVO","Outside the BVACOP Objective Structure","CAP","Capital","C1053","IT Modernisation-End Point Computing Refresh (CAPITAL)","99-NONBV","Capital, Balance Sheet and Control","50B","Capital - Contracted Works","9094","ICT","60346065","201803",16/06/2017 00:00:00,34612.21,"20703","Computer Systems and Software","REDACTED DATA","STONE COMPUTERS","2658501","http://opencorporates.com/companies/gb/2658501","747878857"
"London Borough of Redbridge","http://opendatacommunities.org/doc/london-borough-council/redbridge","6BADULTSOCIA","Adult Social Care","6COLDINCMENT","Older People (65 or over) incl. Older Mentally Ill","REV","Revenue","R4376","Carer Contract","05-THIRD","Third Party Payments","05F","Voluntary associations","6800","Voluntary Organisations","90865387","201803",14/06/2017 00:00:00,62449.35,"17020","Charities and Voluntary Organisations","REDACTED DATA","REDBRIDGE RESPITE CARE ASSOC.","2551338","http://opencorporates.com/companies/gb/2551338",""
"London Borough of Redbridge","http://opendatacommunities.org/doc/london-borough-council/redbridge","6BADULTSOCIA","Adult Social Care","6COLDINCMENT","Older People (65 or over) incl. Older Mentally Ill","REV","Revenue","R4376","Carer Contract","05-THIRD","Third Party Payments","05F","Voluntary associations","6800","Voluntary Organisations","90865387","201803",14/06/2017 00:00:00,-29430.15,"17020","Charities and Voluntary Organisations","REDACTED DATA","REDBRIDGE RESPITE CARE ASSOC.","2551338","http://opencorporates.com/companies/gb/2551338",""
"London Borough of Redbridge","http://opendatacommunities.org/doc/london-borough-council/redbridge","6BADULTSOCIA","Adult Social Care","6COLDINCMENT","Older People (65 or over) incl. Older Mentally Ill","REV","Revenue","R4402","Dementia Contract","05-THIRD","Third Party Payments","05F","Voluntary associations","6800","Voluntary Organisations","90865387","201803",14/06/2017 00:00:00,-6542.08,"17020","Charities and Voluntary Organisations","REDACTED DATA","REDBRIDGE RESPITE CARE ASSOC.","2551338","http://opencorporates.com/companies/gb/2551338",""
"London Borough of Redbridge","http://opendatacommunities.org/doc/london-borough-council/redbridge","6BADULTSOCIA","Adult Social Care","6COLDINCMENT","Older People (65 or over) incl. Older Mentally Ill","REV","Revenue","R4402","Dementia Contract","05-THIRD","Third Party Payments","05F","Voluntary associations","6800","Voluntary Organisations","90865387","201803",14/06/2017 00:00:00,13881.97,"17020","Charities and Voluntary Organisations","REDACTED DATA","REDBRIDGE RESPITE CARE ASSOC.","2551338","http://opencorporates.com/companies/gb/2551338",""
"London Borough of Redbridge","http://opendatacommunities.org/doc/london-borough-council/redbridge","3BNONSCHFUND","Non-School Funding","3CNONSCH","Non Schools","REV","Revenue","R3962","Early Years - 3 and 4 Year Olds","05-THIRD","Third Party Payments","05A","Independent units within the council","6517","Non-Maintained Schools","3476398","201803",21/06/2017 00:00:00,40079.18,"59760","Playgroups, Nurseries and Creches","REDACTED DATA","TAMBA DAY NURSERY LIMITED","",,""
"London Borough of Redbridge","http://opendatacommunities.org/doc/london-borough-council/redbridge","5BGFHOUSING","General Fund Housing","5CWELFARE","Welfare Services","REV","Revenue","R4111","Supporting People - CPB","05-THIRD","Third Party Payments","05G","Other establishments","6851","Housing Association Payments","90865396","201803",26/06/2017 00:00:00,1184.65,"1266","Accommodation Agencies - Residential","REDACTED DATA","INDUSTRIAL DWELLINGS SOCIETY (1885) LTD","CHARITY14044","http://opencorporates.com/companies/gb/CHARITY14044",""
"London Borough of Redbridge","http://opendatacommunities.org/doc/london-borough-council/redbridge","5BGFHOUSING","General Fund Housing","5CWELFARE","Welfare Services","REV","Revenue","R4111","Supporting People - CPB","05-THIRD","Third Party Payments","05G","Other establishments","6851","Housing Association Payments","90865396","201803",26/06/2017 00:00:00,2536.24,"1266","Accommodation Agencies - Residential","REDACTED DATA","INDUSTRIAL DWELLINGS SOCIETY (1885) LTD","CHARITY14044","http://opencorporates.com/companies/gb/CHARITY14044",""
"London Borough of Redbridge","http://opendatacommunities.org/doc/london-borough-council/redbridge","5BGFHOUSING","General Fund Housing","5CWELFARE","Welfare Services","REV","Revenue","R4111","Supporting People - CPB","05-THIRD","Third Party Payments","05G","Other establishments","6851","Housing Association Payments","90865396","201803",26/06/2017 00:00:00,280,"1266","Accommodation Agencies - Residential","REDACTED DATA","INDUSTRIAL DWELLINGS SOCIETY (1885) LTD","CHARITY14044","http://opencorporates.com/companies/gb/CHARITY14044",""
"London Borough of Redbridge","http://opendatacommunities.org/doc/london-borough-council/redbridge","5BGFHOUSING","General Fund Housing","5CWELFARE","Welfare Services","REV","Revenue","R4111","Supporting People - CPB","05-THIRD","Third Party Payments","05G","Other establishments","6851","Housing Association Payments","90865396","201803",26/06/2017 00:00:00,2531.98,"17020","Charities and Voluntary Organisations","REDACTED DATA","OUTWARD","2151434","http://opencorporates.com/companies/gb/2151434",""
"London Borough of Redbridge","http://opendatacommunities.org/doc/london-borough-council/redbridge","5BGFHOUSING","General Fund Housing","5CWELFARE","Welfare Services","REV","Revenue","R4111","Supporting People - CPB","05-THIRD","Third Party Payments","05G","Other establishments","6851","Housing Association Payments","90865396","201803",26/06/2017 00:00:00,2423.66,"17020","Charities and Voluntary Organisations","REDACTED DATA","OUTWARD","2151434","http://opencorporates.com/companies/gb/2151434",""
"London Borough of Redbridge","http://opendatacommunities.org/doc/london-borough-council/redbridge","5BGFHOUSING","General Fund Housing","5CWELFARE","Welfare Services","REV","Revenue","R4111","Supporting People - CPB","05-THIRD","Third Party Payments","05G","Other establishments","6851","Housing Association Payments","90865396","201803",26/06/2017 00:00:00,2342.42,"17020","Charities and Voluntary Organisations","REDACTED DATA","OUTWARD","2151434","http://opencorporates.com/companies/gb/2151434",""
"London Borough of Redbridge","http://opendatacommunities.org/doc/london-borough-council/redbridge","5BGFHOUSING","General Fund Housing","5CWELFARE","Welfare Services","REV","Revenue","R4111","Supporting People - CPB","05-THIRD","Third Party Payments","05G","Other establishments","6851","Housing Association Payments","90865396","201803",26/06/2017 00:00:00,2640.3,"17020","Charities and Voluntary Organisations","REDACTED DATA","OUTWARD","2151434","http://opencorporates.com/companies/gb/2151434",""
"London Borough of Redbridge","http://opendatacommunities.org/doc/london-borough-council/redbridge","5BGFHOUSING","General Fund Housing","5CWELFARE","Welfare Services","REV","Revenue","R4111","Supporting People - CPB","05-THIRD","Third Party Payments","05G","Other establishments","6851","Housing Association Payments","90865396","201803",01/05/2017 00:00:00,24180,"17020","Charities and Voluntary Organisations","REDACTED DATA","OUTWARD","2151434","http://opencorporates.com/companies/gb/2151434",""
"London Borough of Redbridge","http://opendatacommunities.org/doc/london-borough-council/redbridge","5BGFHOUSING","General Fund Housing","5CWELFARE","Welfare Services","REV","Revenue","R4111","Supporting People - CPB","05-THIRD","Third Party Payments","05G","Other establishments","6851","Housing Association Payments","90865396","201803",26/06/2017 00:00:00,1069.95,"17020","Charities and Voluntary Organisations","REDACTED DATA","OUTWARD","2151434","http://opencorporates.com/companies/gb/2151434",""
"London Borough of Redbridge","http://opendatacommunities.org/doc/london-borough-council/redbridge","5BGFHOUSING","General Fund Housing","5CWELFARE","Welfare Services","REV","Revenue","R4111","Supporting People - CPB","05-THIRD","Third Party Payments","05G","Other establishments","6851","Housing Association Payments","90865396","201803",26/06/2017 00:00:00,5018.75,"17020","Charities and Voluntary Organisations","REDACTED DATA","OUTWARD","2151434","http://opencorporates.com/companies/gb/2151434",""
"London Borough of Redbridge","http://opendatacommunities.org/doc/london-borough-council/redbridge","5BGFHOUSING","General Fund Housing","5CWELFARE","Welfare Services","REV","Revenue","R4111","Supporting People - CPB","05-THIRD","Third Party Payments","05G","Other establishments","6851","Housing Association Payments","90865396","201803",26/06/2017 00:00:00,7792.6,"17020","Charities and Voluntary Organisations","REDACTED DATA","OUTWARD","2151434","http://opencorporates.com/companies/gb/2151434",""
"London Borough of Redbridge","http://opendatacommunities.org/doc/london-borough-council/redbridge","5BGFHOUSING","General Fund Housing","5CWELFARE","Welfare Services","REV","Revenue","R4111","Supporting People - CPB","05-THIRD","Third Party Payments","05G","Other establishments","6851","Housing Association Payments","90865396","201803",26/06/2017 00:00:00,6053.75,"17020","Charities and Voluntary Organisations","REDACTED DATA","OUTWARD","2151434","http://opencorporates.com/companies/gb/2151434",""
"London Borough of Redbridge","http://opendatacommunities.org/doc/london-borough-council/redbridge","5BGFHOUSING","General Fund Housing","5CWELFARE","Welfare Services","REV","Revenue","R4111","Supporting People - CPB","05-THIRD","Third Party Payments","05G","Other establishments","6851","Housing Association Payments","90865396","201803",26/06/2017 00:00:00,3468,"17020","Charities and Voluntary Organisations","REDACTED DATA","OUTWARD","2151434","http://opencorporates.com/companies/gb/2151434",""
"London Borough of Redbridge","http://opendatacommunities.org/doc/london-borough-council/redbridge","5BGFHOUSING","General Fund Housing","5CWELFARE","Welfare Services","REV","Revenue","R4111","Supporting People - CPB","05-THIRD","Third Party Payments","05G","Other establishments","6851","Housing Association Payments","90865396","201803",26/06/2017 00:00:00,8569.92,"1266","Accommodation Agencies - Residential","REDACTED DATA","PENROSE HOUSING ASSOCIATION","",,""
"London Borough of Redbridge","http://opendatacommunities.org/doc/london-borough-council/redbridge","5BGFHOUSING","General Fund Housing","5CWELFARE","Welfare Services","REV","Revenue","R4111","Supporting People - CPB","05-THIRD","Third Party Payments","05G","Other establishments","6851","Housing Association Payments","90865396","201803",26/06/2017 00:00:00,2011.5,"1266","Accommodation Agencies - Residential","REDACTED DATA","SPRINGBOARD HOUSING ASSOC LTD","",,""
"London Borough of Redbridge","http://opendatacommunities.org/doc/london-borough-council/redbridge","5BGFHOUSING","General Fund Housing","5CWELFARE","Welfare Services","REV","Revenue","R4111","Supporting People - CPB","05-THIRD","Third Party Payments","05G","Other establishments","6851","Housing Association Payments","90865396","201803",26/06/2017 00:00:00,221,"1266","Accommodation Agencies - Residential","REDACTED DATA","SPRINGBOARD HOUSING ASSOC LTD","",,""
"London Borough of Redbridge","http://opendatacommunities.org/doc/london-borough-council/redbridge","5BGFHOUSING","General Fund Housing","5CWELFARE","Welfare Services","REV","Revenue","R4111","Supporting People - CPB","05-THIRD","Third Party Payments","05G","Other establishments","6851","Housing Association Payments","90865396","201803",26/06/2017 00:00:00,38003.25,"17020","Charities and Voluntary Organisations","REDACTED DATA","SINGLE HOMELESS PROJECT","1741926","http://opencorporates.com/companies/gb/1741926",""
"London Borough of Redbridge","http://opendatacommunities.org/doc/london-borough-council/redbridge","5BGFHOUSING","General Fund Housing","5CWELFARE","Welfare Services","REV","Revenue","R4111","Supporting People - CPB","05-THIRD","Third Party Payments","05G","Other establishments","6851","Housing Association Payments","90865396","201803",26/06/2017 00:00:00,2236.3,"1266","Accommodation Agencies - Residential","REDACTED DATA","SPRINGBOARD HOUSING ASSOC LTD","",,""
"London Borough of Redbridge","http://opendatacommunities.org/doc/london-borough-council/redbridge","5BGFHOUSING","General Fund Housing","5CWELFARE","Welfare Services","REV","Revenue","R4111","Supporting People - CPB","05-THIRD","Third Party Payments","05G","Other establishments","6851","Housing Association Payments","90865396","201803",26/06/2017 00:00:00,39932.75,"17020","Charities and Voluntary Organisations","REDACTED DATA","SINGLE HOMELESS PROJECT","1741926","http://opencorporates.com/companies/gb/1741926",""
"London Borough of Redbridge","http://opendatacommunities.org/doc/london-borough-council/redbridge","5BGFHOUSING","General Fund Housing","5CWELFARE","Welfare Services","REV","Revenue","R4111","Supporting People - CPB","05-THIRD","Third Party Payments","05G","Other establishments","6851","Housing Association Payments","90865396","201803",26/06/2017 00:00:00,9078,"53350","Nursing Homes","REDACTED DATA","OUTLOOK CARE","",,""
"London Borough of Redbridge","http://opendatacommunities.org/doc/london-borough-council/redbridge","5BGFHOUSING","General Fund Housing","5CWELFARE","Welfare Services","REV","Revenue","R4111","Supporting People - CPB","05-THIRD","Third Party Payments","05G","Other establishments","6851","Housing Association Payments","90865396","201803",26/06/2017 00:00:00,7024.8,"17020","Charities and Voluntary Organisations","REDACTED DATA","REFUGE","1412276","http://opencorporates.com/companies/gb/1412276",""
"London Borough of Redbridge","http://opendatacommunities.org/doc/london-borough-council/redbridge","5BGFHOUSING","General Fund Housing","5CWELFARE","Welfare Services","REV","Revenue","R4111","Supporting People - CPB","05-THIRD","Third Party Payments","05G","Other establishments","6851","Housing Association Payments","90865396","201803",26/06/2017 00:00:00,1807.8,"1266","Accommodation Agencies - Residential","REDACTED DATA","HABINTEG HOUSING ASSOCIATION","",,""
"London Borough of Redbridge","http://opendatacommunities.org/doc/london-borough-council/redbridge","5BGFHOUSING","General Fund Housing","5CWELFARE","Welfare Services","REV","Revenue","R4111","Supporting People - CPB","05-THIRD","Third Party Payments","05G","Other establishments","6851","Housing Association Payments","90865396","201803",26/06/2017 00:00:00,608.4,"17020","Charities and Voluntary Organisations","REDACTED DATA","HOUSING 21","",,"604233385"
"London Borough of Redbridge","http://opendatacommunities.org/doc/london-borough-council/redbridge","5BGFHOUSING","General Fund Housing","5CWELFARE","Welfare Services","REV","Revenue","R4111","Supporting People - CPB","05-THIRD","Third Party Payments","05G","Other establishments","6851","Housing Association Payments","90865396","201803",26/06/2017 00:00:00,375,"17020","Charities and Voluntary Organisations","REDACTED DATA","WEAVERS ALMSHOUSE CHARITIES","",,""
"London Borough of Redbridge","http://opendatacommunities.org/doc/london-borough-council/redbridge","5BGFHOUSING","General Fund Housing","5CWELFARE","Welfare Services","REV","Revenue","R4111","Supporting People - CPB","05-THIRD","Third Party Payments","05G","Other establishments","6851","Housing Association Payments","90865396","201803",26/06/2017 00:00:00,418.95,"17020","Charities and Voluntary Organisations","REDACTED DATA","HOUSING 21","",,"604233385"
"London Borough of Redbridge","http://opendatacommunities.org/doc/london-borough-council/redbridge","5BGFHOUSING","General Fund Housing","5CWELFARE","Welfare Services","REV","Revenue","R4111","Supporting People - CPB","05-THIRD","Third Party Payments","05G","Other establishments","6851","Housing Association Payments","90865396","201803",26/06/2017 00:00:00,1071,"17020","Charities and Voluntary Organisations","REDACTED DATA","HOUSING 21","",,"604233385"
"London Borough of Redbridge","http://opendatacommunities.org/doc/london-borough-council/redbridge","5BGFHOUSING","General Fund Housing","5CWELFARE","Welfare Services","REV","Revenue","R4111","Supporting People - CPB","05-THIRD","Third Party Payments","05G","Other establishments","6851","Housing Association Payments","90865396","201803",26/06/2017 00:00:00,297.5,"17020","Charities and Voluntary Organisations","REDACTED DATA","HOUSING 21","",,"604233385"
"London Borough of Redbridge","http://opendatacommunities.org/doc/london-borough-council/redbridge","5BGFHOUSING","General Fund Housing","5CWELFARE","Welfare Services","REV","Revenue","R4111","Supporting People - CPB","05-THIRD","Third Party Payments","05G","Other establishments","6851","Housing Association Payments","90865396","201803",26/06/2017 00:00:00,801.8,"17020","Charities and Voluntary Organisations","REDACTED DATA","HOUSING 21","",,"604233385"
"London Borough of Redbridge","http://opendatacommunities.org/doc/london-borough-council/redbridge","5BGFHOUSING","General Fund Housing","5CWELFARE","Welfare Services","REV","Revenue","R4111","Supporting People - CPB","05-THIRD","Third Party Payments","05G","Other establishments","6851","Housing Association Payments","90865396","201803",26/06/2017 00:00:00,389,"17020","Charities and Voluntary Organisations","REDACTED DATA","HOUSING 21","",,"604233385"
"London Borough of Redbridge","http://opendatacommunities.org/doc/london-borough-council/redbridge","9BNONBVO","Outside the BVACOP Objective Structure","9CNONBVO","Outside the BVACOP Objective Structure","CAP","Capital","C2221","Street Lighting Renewals LBR","99-NONBV","Capital, Balance Sheet and Control","50E","Capital - Contract Payments","9160","Highways Lighting","3476234","201803",14/06/2017 00:00:00,32698,"21555","Construction Contractors - General","REDACTED DATA","SKANSKA CONSTRUCTION UK LTD","191408","http://opencorporates.com/companies/gb/191408","378403142"
"London Borough of Redbridge","http://opendatacommunities.org/doc/london-borough-council/redbridge","6BADULTSOCIA","Adult Social Care","6COLDINCMENT","Older People (65 or over) incl. Older Mentally Ill","REV","Revenue","R4410","OP Voluntary Contracts","05-THIRD","Third Party Payments","05F","Voluntary associations","6800","Voluntary Organisations","90865374","201803",14/06/2017 00:00:00,47717.51,"17020","Charities and Voluntary Organisations","REDACTED DATA","AGE CONCERN REDBRIDGE T/AS AGEUK REDBRIDGE","CHARITY 1088435","http://opencorporates.com/companies/gb/CHARITY 1088435",""
"London Borough of Redbridge","http://opendatacommunities.org/doc/london-borough-council/redbridge","6BADULTSOCIA","Adult Social Care","6COLDINCMENT","Older People (65 or over) incl. Older Mentally Ill","REV","Revenue","R4410","OP Voluntary Contracts","05-THIRD","Third Party Payments","05F","Voluntary associations","6800","Voluntary Organisations","90865374","201803",14/06/2017 00:00:00,25654.81,"17020","Charities and Voluntary Organisations","REDACTED DATA","AGE CONCERN REDBRIDGE T/AS AGEUK REDBRIDGE","CHARITY 1088435","http://opencorporates.com/companies/gb/CHARITY 1088435",""
"London Borough of Redbridge","http://opendatacommunities.org/doc/london-borough-council/redbridge","5BGFHOUSING","General Fund Housing","5CHOMELESS","Homelessness","REV","Revenue","R5630","HAC Temporary Accomodation","05-THIRD","Third Party Payments","05H","Private contractors","6900","Nightly Let Plus Charges","3476314","201803",05/06/2017 00:00:00,1395,"31230","Employment and Recruitment Agencies","REDACTED DATA","ADAM HTT LIMITED T/A ADAM","7718565","http://opencorporates.com/companies/gb/7718565","198573349"
"London Borough of Redbridge","http://opendatacommunities.org/doc/london-borough-council/redbridge","5BGFHOUSING","General Fund Housing","5CHOMELESS","Homelessness","REV","Revenue","R5630","HAC Temporary Accomodation","05-THIRD","Third Party Payments","05H","Private contractors","6900","Nightly Let Plus Charges","3476314","201803",05/06/2017 00:00:00,1395,"31230","Employment and Recruitment Agencies","REDACTED DATA","ADAM HTT LIMITED T/A ADAM","7718565","http://opencorporates.com/companies/gb/7718565","198573349"
"London Borough of Redbridge","http://opendatacommunities.org/doc/london-borough-council/redbridge","5BGFHOUSING","General Fund Housing","5CHOMELESS","Homelessness","REV","Revenue","R5630","HAC Temporary Accomodation","05-THIRD","Third Party Payments","05H","Private contractors","6900","Nightly Let Plus Charges","3476314","201803",05/06/2017 00:00:00,1550,"31230","Employment and Recruitment Agencies","REDACTED DATA","ADAM HTT LIMITED T/A ADAM","7718565","http://opencorporates.com/companies/gb/7718565","198573349"
"London Borough of Redbridge","http://opendatacommunities.org/doc/london-borough-council/redbridge","5BGFHOUSING","General Fund Housing","5CHOMELESS","Homelessness","REV","Revenue","R5630","HAC Temporary Accomodation","05-THIRD","Third Party Payments","05H","Private contractors","6900","Nightly Let Plus Charges","3476314","201803",05/06/2017 00:00:00,797.94,"31230","Employment and Recruitment Agencies","REDACTED DATA","ADAM HTT LIMITED T/A ADAM","7718565","http://opencorporates.com/companies/gb/7718565","198573349"
"London Borough of Redbridge","http://opendatacommunities.org/doc/london-borough-council/redbridge","5BGFHOUSING","General Fund Housing","5CHOMELESS","Homelessness","REV","Revenue","R5630","HAC Temporary Accomodation","05-THIRD","Third Party Payments","05H","Private contractors","6900","Nightly Let Plus Charges","3476314","201803",05/06/2017 00:00:00,1860,"31230","Employment and Recruitment Agencies","REDACTED DATA","ADAM HTT LIMITED T/A ADAM","7718565","http://opencorporates.com/companies/gb/7718565","198573349"
"London Borough of Redbridge","http://opendatacommunities.org/doc/london-borough-council/redbridge","5BGFHOUSING","General Fund Housing","5CHOMELESS","Homelessness","REV","Revenue","R5630","HAC Temporary Accomodation","05-THIRD","Third Party Payments","05H","Private contractors","6900","Nightly Let Plus Charges","3476314","201803",04/06/2017 00:00:00,1674,"31230","Employment and Recruitment Agencies","REDACTED DATA","ADAM HTT LIMITED T/A ADAM","7718565","http://opencorporates.com/companies/gb/7718565","198573349"
"London Borough of Redbridge","http://opendatacommunities.org/doc/london-borough-council/redbridge","5BGFHOUSING","General Fund Housing","5CHOMELESS","Homelessness","REV","Revenue","R5630","HAC Temporary Accomodation","05-THIRD","Third Party Payments","05H","Private contractors","6900","Nightly Let Plus Charges","3476314","201803",05/06/2017 00:00:00,1178,"31230","Employment and Recruitment Agencies","REDACTED DATA","ADAM HTT LIMITED T/A ADAM","7718565","http://opencorporates.com/companies/gb/7718565","198573349"
"London Borough of Redbridge","http://opendatacommunities.org/doc/london-borough-council/redbridge","5BGFHOUSING","General Fund Housing","5CHOMELESS","Homelessness","REV","Revenue","R5630","HAC Temporary Accomodation","05-THIRD","Third Party Payments","05H","Private contractors","6900","Nightly Let Plus Charges","3476314","201803",05/06/2017 00:00:00,1395,"31230","Employment and Recruitment Agencies","REDACTED DATA","ADAM HTT LIMITED T/A ADAM","7718565","http://opencorporates.com/companies/gb/7718565","198573349"
"London Borough of Redbridge","http://opendatacommunities.org/doc/london-borough-council/redbridge","5BGFHOUSING","General Fund Housing","5CHOMELESS","Homelessness","REV","Revenue","R5630","HAC Temporary Accomodation","05-THIRD","Third Party Payments","05H","Private contractors","6900","Nightly Let Plus Charges","3476314","201803",04/06/2017 00:00:00,1550,"31230","Employment and Recruitment Agencies","REDACTED DATA","ADAM HTT LIMITED T/A ADAM","7718565","http://opencorporates.com/companies/gb/7718565","198573349"
"London Borough of Redbridge","http://opendatacommunities.org/doc/london-borough-council/redbridge","5BGFHOUSING","General Fund Housing","5CHOMELESS","Homelessness","REV","Revenue","R5630","HAC Temporary Accomodation","05-THIRD","Third Party Payments","05H","Private contractors","6900","Nightly Let Plus Charges","3476314","201803",05/06/2017 00:00:00,1550,"31230","Employment and Recruitment Agencies","REDACTED DATA","ADAM HTT LIMITED T/A ADAM","7718565","http://opencorporates.com/companies/gb/7718565","198573349"
"London Borough of Redbridge","http://opendatacommunities.org/doc/london-borough-council/redbridge","5BGFHOUSING","General Fund Housing","5CHOMELESS","Homelessness","REV","Revenue","R5630","HAC Temporary Accomodation","05-THIRD","Third Party Payments","05H","Private contractors","6900","Nightly Let Plus Charges","3476314","201803",05/06/2017 00:00:00,1767,"31230","Employment and Recruitment Agencies","REDACTED DATA","ADAM HTT LIMITED T/A ADAM","7718565","http://opencorporates.com/companies/gb/7718565","198573349"
"London Borough of Redbridge","http://opendatacommunities.org/doc/london-borough-council/redbridge","6BADULTSOCIA","Adult Social Care","6COLDINCMENT","Older People (65 or over) incl. Older Mentally Ill","REV","Revenue","R4410","OP Voluntary Contracts","05-THIRD","Third Party Payments","05F","Voluntary associations","6800","Voluntary Organisations","90865374","201803",14/06/2017 00:00:00,-12090.2,"17020","Charities and Voluntary Organisations","REDACTED DATA","AGE CONCERN REDBRIDGE T/AS AGEUK REDBRIDGE","CHARITY 1088435","http://opencorporates.com/companies/gb/CHARITY 1088435",""
"London Borough of Redbridge","http://opendatacommunities.org/doc/london-borough-council/redbridge","6BADULTSOCIA","Adult Social Care","6COLDINCMENT","Older People (65 or over) incl. Older Mentally Ill","REV","Revenue","R4410","OP Voluntary Contracts","05-THIRD","Third Party Payments","05F","Voluntary associations","6800","Voluntary Organisations","90865374","201803",14/06/2017 00:00:00,-22487.56,"17020","Charities and Voluntary Organisations","REDACTED DATA","AGE CONCERN REDBRIDGE T/AS AGEUK REDBRIDGE","CHARITY 1088435","http://opencorporates.com/companies/gb/CHARITY 1088435",""
"London Borough of Redbridge","http://opendatacommunities.org/doc/london-borough-council/redbridge","9BNONBVO","Outside the BVACOP Objective Structure","9CNONBVO","Outside the BVACOP Objective Structure","REV","Revenue","R7705","Fuel Service","03-TRANSPORT","Transport","03A","Direct - transport costs","5006","Diesel Oil","661085","201803",02/05/2017 00:00:00,31913.76,"57580","Petroleum Products - Mnfrs","REDACTED DATA","EMO OIL LIMITED","5067422","http://opencorporates.com/companies/gb/5067422","844283419"
"London Borough of Redbridge","http://opendatacommunities.org/doc/london-borough-council/redbridge","9BNONBVO","Outside the BVACOP Objective Structure","9CNONBVO","Outside the BVACOP Objective Structure","REV","Revenue","R7705","Fuel Service","03-TRANSPORT","Transport","03A","Direct - transport costs","5006","Diesel Oil","660906","201803",22/05/2017 00:00:00,31882.41,"57580","Petroleum Products - Mnfrs","REDACTED DATA","EMO OIL LIMITED","5067422","http://opencorporates.com/companies/gb/5067422","844283419"
"London Borough of Redbridge","http://opendatacommunities.org/doc/london-borough-council/redbridge","9BNONBVO","Outside the BVACOP Objective Structure","9CNONBVO","Outside the BVACOP Objective Structure","REV","Revenue","R7705","Fuel Service","03-TRANSPORT","Transport","03A","Direct - transport costs","5006","Diesel Oil","661084","201803",05/06/2017 00:00:00,31590.89,"57580","Petroleum Products - Mnfrs","REDACTED DATA","EMO OIL LIMITED","5067422","http://opencorporates.com/companies/gb/5067422","844283419"
"London Borough of Redbridge","http://opendatacommunities.org/doc/london-borough-council/redbridge","9BNONBVO","Outside the BVACOP Objective Structure","9CNONBVO","Outside the BVACOP Objective Structure","REV","Revenue","R7705","Fuel Service","03-TRANSPORT","Transport","03A","Direct - transport costs","5006","Diesel Oil","661086","201803",12/05/2017 00:00:00,31353.9,"57580","Petroleum Products - Mnfrs","REDACTED DATA","EMO OIL LIMITED","5067422","http://opencorporates.com/companies/gb/5067422","844283419"
"London Borough of Redbridge","http://opendatacommunities.org/doc/london-borough-council/redbridge","9BNONBVO","Outside the BVACOP Objective Structure","9CNONBVO","Outside the BVACOP Objective Structure","CAP","Capital","C2170","Temporary Accommodation","99-NONBV","Capital, Balance Sheet and Control","50E","Capital - Contract Payments","9150","Main Contract","60342755","201803",24/04/2017 00:00:00,31278.91,"11560","Buildings - Sectional and Portable","REDACTED DATA","ELLIOTT GROUP LTD","147207","http://opencorporates.com/companies/gb/147207","860229533"
"London Borough of Redbridge","http://opendatacommunities.org/doc/london-borough-council/redbridge","9BNONBVO","Outside the BVACOP Objective Structure","9CNONBVO","Outside the BVACOP Objective Structure","REV","Revenue","R7705","Fuel Service","03-TRANSPORT","Transport","03A","Direct - transport costs","5006","Diesel Oil","661249","201803",15/06/2017 00:00:00,31102.78,"57580","Petroleum Products - Mnfrs","REDACTED DATA","EMO OIL LIMITED","5067422","http://opencorporates.com/companies/gb/5067422","844283419"
"London Borough of Redbridge","http://opendatacommunities.org/doc/london-borough-council/redbridge","9BNONBVO","Outside the BVACOP Objective Structure","9CNONBVO","Outside the BVACOP Objective Structure","BAL","Balance Sheet","B0059","DUMMY VAT ACCOUNT","99-NONBV","Capital, Balance Sheet and Control","50L","Debtors","9359","VAT only invoices","70095018","201803",30/04/2017 00:00:00,37070.4,"47846","Letting Agents","REDACTED DATA","ALTWOOD HOUSING LTD","7199769","http://opencorporates.com/companies/gb/7199769","117931708"
"London Borough of Redbridge","http://opendatacommunities.org/doc/london-borough-council/redbridge","9BNONBVO","Outside the BVACOP Objective Structure","9CNONBVO","Outside the BVACOP Objective Structure","BAL","Balance Sheet","B0059","DUMMY VAT ACCOUNT","99-NONBV","Capital, Balance Sheet and Control","50L","Debtors","9359","VAT only invoices","70095018","201803",30/04/2017 00:00:00,-37070.4,"47846","Letting Agents","REDACTED DATA","ALTWOOD HOUSING LTD","7199769","http://opencorporates.com/companies/gb/7199769","117931708"
"London Borough of Redbridge","http://opendatacommunities.org/doc/london-borough-council/redbridge","9BNONBVO","Outside the BVACOP Objective Structure","9CNONBVO","Outside the BVACOP Objective Structure","REV","Revenue","R0068","R and R Revenue Client Leasing","10-CAPFIN","Capital Financing","10A","Interest payments","7403","Finance Leases","40513736","201803",26/06/2017 00:00:00,30445.99,"47650","Leasing Services","REDACTED DATA","SG EQUIPMENT FINANCE LTD","",,"629280722"
"London Borough of Redbridge","http://opendatacommunities.org/doc/london-borough-council/redbridge","1BOTHEROPI&E","Other Operating Income & Expenditure","1CTRADSURDEF","Trading Account Surpluses & Deficits","REV","Revenue","R9149","Building Cleaning (Holding)","02-PREMISES","Premises","02H","Cleaning and domestic supplies","4620","Cleaning Contract Payments","60346995","201803",26/06/2017 00:00:00,30319.82,"15269","Cleaning Services - Commercial","REDACTED DATA","LEWIS & GRAVES PARTNERSHIP LLP","8953594","http://opencorporates.com/companies/gb/8953594","135553810"
"London Borough of Redbridge","http://opendatacommunities.org/doc/london-borough-council/redbridge","9BNONBVO","Outside the BVACOP Objective Structure","9CNONBVO","Outside the BVACOP Objective Structure","CAP","Capital","C2255","Radial Corridor 3 TFL","99-NONBV","Capital, Balance Sheet and Control","50E","Capital - Contract Payments","9153","Carriageways","3474326","201803",01/06/2017 00:00:00,29609,"18632","Civil Engineers","REDACTED DATA","KENSON CONTRACTORS BENINGTON LTD","1314691","http://opencorporates.com/companies/gb/1314691","301629589"
"London Borough of Redbridge","http://opendatacommunities.org/doc/london-borough-council/redbridge","9BNONBVO","Outside the BVACOP Objective Structure","9CNONBVO","Outside the BVACOP Objective Structure","CAP","Capital","C1043","Office Accomodation Programme - Phase 2","99-NONBV","Capital, Balance Sheet and Control","50B","Capital - Contracted Works","9094","ICT","60344674","201803",02/06/2017 00:00:00,29000,"20620","Computer Consultants","REDACTED DATA","REQUIRED EXPERIENCE LIMITED","4347037","http://opencorporates.com/companies/gb/4347037","GB989059356"
"London Borough of Redbridge","http://opendatacommunities.org/doc/london-borough-council/redbridge","9BNONBVO","Outside the BVACOP Objective Structure","9CNONBVO","Outside the BVACOP Objective Structure","BAL","Balance Sheet","B0343","CHILDCARE VOUCHER SCHEME","99-NONBV","Capital, Balance Sheet and Control","50Q","Other Balances & Reserves","9910","Personal Account - Debtor","70095468","201803",30/06/2017 00:00:00,34621.75,"17580","Childcare Services","REDACTED DATA","CHILDCARE VOUCHERS LTD(ACC:154321)- T/AS  EDENRED UK","2420196","http://opencorporates.com/companies/gb/2420196","649503520"
"London Borough of Redbridge","http://opendatacommunities.org/doc/london-borough-council/redbridge","9BNONBVO","Outside the BVACOP Objective Structure","9CNONBVO","Outside the BVACOP Objective Structure","REV","Revenue","R0064","Salaries Oncost","04-SUPPLIES","Supplies And Services","04K","Miscellaneous expenses","6280","Miscellaneous Expenditure","70095468","201803",30/06/2017 00:00:00,138.49,"17580","Childcare Services","REDACTED DATA","CHILDCARE VOUCHERS LTD(ACC:154321)- T/AS  EDENRED UK","2420196","http://opencorporates.com/companies/gb/2420196","649503520"
"London Borough of Redbridge","http://opendatacommunities.org/doc/london-borough-council/redbridge","1BOTHEROPI&E","Other Operating Income & Expenditure","1CTRADSURDEF","Trading Account Surpluses & Deficits","REV","Revenue","R9352","Legal Supplies & Services","04-SUPPLIES","Supplies And Services","04D","Printing, stationery and general office expenses","5700","Books","60346538","201803",01/05/2017 00:00:00,28651.99,"45170","Information Services","REDACTED DATA","THOMSON REUTER ( PROFESSIONAL)LTD T/A SWEET & MAXW","1679046","http://opencorporates.com/companies/gb/1679046","900548743"
"London Borough of Redbridge","http://opendatacommunities.org/doc/london-borough-council/redbridge","3BNONSCHFUND","Non-School Funding","3CNONSCH","Non Schools","REV","Revenue","R3962","Early Years - 3 and 4 Year Olds","05-THIRD","Third Party Payments","05A","Independent units within the council","6517","Non-Maintained Schools","3476479","201803",21/06/2017 00:00:00,33803.82,"17580","Childcare Services","REDACTED DATA","CHESTNUT NURSERY SCHOOL (NORFOLK) LTD","9175049","http://opencorporates.com/companies/gb/9175049",""
"London Borough of Redbridge","http://opendatacommunities.org/doc/london-borough-council/redbridge","3BLEACENTFND","LEA Centrally Held School Funds","3CNONSCH","Non Schools","REV","Revenue","R3258","ISS Paid School Meals","05-THIRD","Third Party Payments","05A","Independent units within the council","6513","Agency & Contracted Services","70095251","201803",16/06/2017 00:00:00,33350.77,"16270","Catering Schools","REDACTED DATA","ISS CATERHOUSE - ISS MEDICLEAN LTD(EDUCATION CATERING CASH COLLECTIONS)","1659837","http://opencorporates.com/companies/gb/1659837",""
"London Borough of Redbridge","http://opendatacommunities.org/doc/london-borough-council/redbridge","6BADULTSOCIA","Adult Social Care","6CADLEARNDIS","Adults Under 65 with Learning Disabilities","REV","Revenue","R4240","Argyle Project","05-THIRD","Third Party Payments","05H","Private contractors","6902","Respite Care","90864985","201803",16/06/2017 00:00:00,49404,"17020","Charities and Voluntary Organisations","REDACTED DATA","VIBRANCE","7094318","http://opencorporates.com/companies/gb/7094318",""
"London Borough of Redbridge","http://opendatacommunities.org/doc/london-borough-council/redbridge","6BADULTSOCIA","Adult Social Care","6CADLEARNDIS","Adults Under 65 with Learning Disabilities","REV","Revenue","R4240","Argyle Project","05-THIRD","Third Party Payments","05H","Private contractors","6902","Respite Care","90864985","201803",16/06/2017 00:00:00,-16647,"17020","Charities and Voluntary Organisations","REDACTED DATA","VIBRANCE","7094318","http://opencorporates.com/companies/gb/7094318",""
"London Borough of Redbridge","http://opendatacommunities.org/doc/london-borough-council/redbridge","3BNONSCHFUND","Non-School Funding","3CNONSCH","Non Schools","REV","Revenue","R3962","Early Years - 3 and 4 Year Olds","05-THIRD","Third Party Payments","05A","Independent units within the council","6517","Non-Maintained Schools","3476485","201803",21/06/2017 00:00:00,32478.95,"59760","Playgroups, Nurseries and Creches","REDACTED DATA","ST PAULS BUSY BEES PLAYGROUP","",,""
"London Borough of Redbridge","http://opendatacommunities.org/doc/london-borough-council/redbridge","3BLEACENTFND","LEA Centrally Held School Funds","3CSCHSTRATMG","Schools Strategic Management","REV","Revenue","R3013","Schools Causing Concern (DSG)","04-SUPPLIES","Supplies And Services","04H","Grants and subscriptions","5950","Grants","60345277","201803",07/06/2017 00:00:00,32275,"67981","Schools - Local Authority","REDACTED DATA","COPPICE PRIMARY SCHOOL A/C","",,""
"London Borough of Redbridge","http://opendatacommunities.org/doc/london-borough-council/redbridge","3BNONSCHFUND","Non-School Funding","3CNONSCH","Non Schools","REV","Revenue","R3962","Early Years - 3 and 4 Year Olds","05-THIRD","Third Party Payments","05A","Independent units within the council","6517","Non-Maintained Schools","3474560","201803",05/06/2017 00:00:00,32007.3,"53120","Nursery Schools","REDACTED DATA","OXFORD DAY NURSERY LTD","8100587","http://opencorporates.com/companies/gb/8100587",""
"London Borough of Redbridge","http://opendatacommunities.org/doc/london-borough-council/redbridge","3BNONSCHFUND","Non-School Funding","3CNONSCH","Non Schools","REV","Revenue","R3962","Early Years - 3 and 4 Year Olds","05-THIRD","Third Party Payments","05A","Independent units within the council","6517","Non-Maintained Schools","3476370","201803",21/06/2017 00:00:00,31781.61,"59760","Playgroups, Nurseries and Creches","REDACTED DATA","PREMIER CHILDCARE T/A BALFOUR NURSERY NO2","",,""
"London Borough of Redbridge","http://opendatacommunities.org/doc/london-borough-council/redbridge","3BNONSCHFUND","Non-School Funding","3CNONSCH","Non Schools","REV","Revenue","R3962","Early Years - 3 and 4 Year Olds","05-THIRD","Third Party Payments","05A","Independent units within the council","6517","Non-Maintained Schools","3476505","201803",21/06/2017 00:00:00,31689.6,"67981","Schools - Local Authority","REDACTED DATA","AVANTI SCHOOLS TRUST T/A AVANTI COURT PRIMARY SCHOOL","",,"246546447"
"London Borough of Redbridge","http://opendatacommunities.org/doc/london-borough-council/redbridge","3BNONSCHFUND","Non-School Funding","3CNONSCH","Non Schools","REV","Revenue","R3962","Early Years - 3 and 4 Year Olds","05-THIRD","Third Party Payments","05A","Independent units within the council","6517","Non-Maintained Schools","3474516","201803",05/06/2017 00:00:00,31650.72,"59760","Playgroups, Nurseries and Creches","REDACTED DATA","BELMONT DAY NURSERY","5331750","http://opencorporates.com/companies/gb/5331750",""
"London Borough of Redbridge","http://opendatacommunities.org/doc/london-borough-council/redbridge","3BNONSCHFUND","Non-School Funding","3CNONSCH","Non Schools","REV","Revenue","R3962","Early Years - 3 and 4 Year Olds","05-THIRD","Third Party Payments","05A","Independent units within the council","6517","Non-Maintained Schools","3476507","201803",21/06/2017 00:00:00,30929.75,"67981","Schools - Local Authority","REDACTED DATA","LOXFORD SCHOOL TRUST LTD","8743560","http://opencorporates.com/companies/gb/8743560","246546447"
"London Borough of Redbridge","http://opendatacommunities.org/doc/london-borough-council/redbridge","9BNONBVO","Outside the BVACOP Objective Structure","9CNONBVO","Outside the BVACOP Objective Structure","REV","Revenue","R0030","Levies","05-THIRD","Third Party Payments","05B","Joint authorities","6602","London Pension Fund Authority","60344466","201802",01/06/2017 00:00:00,30684.8,"48583","Local Government","REDACTED DATA","GREATER LONDON AUTHORITY","",,""
"London Borough of Redbridge","http://opendatacommunities.org/doc/london-borough-council/redbridge","9BNONBVO","Outside the BVACOP Objective Structure","9CNONBVO","Outside the BVACOP Objective Structure","BAL","Balance Sheet","B0340","NNDR Hainualt Business Improvement District","99-NONBV","Capital, Balance Sheet and Control","50Q","Other Balances & Reserves","9912","Personal Account - Creditor","70095262","201803",19/06/2017 00:00:00,23818.29,"11905","Business Centres","REDACTED DATA","HAINAULT BUSINESS PARK","5804216","http://opencorporates.com/companies/gb/5804216",""
"London Borough of Redbridge","http://opendatacommunities.org/doc/london-borough-council/redbridge","5BGFHOUSING","General Fund Housing","5CHOUSBENADM","Housing Benefits Administration","REV","Revenue","R5771","Benefits Administration","01-EMPLOYEES","Employees","01A","Direct employee expenses","4","Agency Staff - Pay","60345147","201803",08/06/2017 00:00:00,23785.5,"79980","Training Services","REDACTED DATA","MERITEC LTD","3224622","http://opencorporates.com/companies/gb/3224622","675499571"
"London Borough of Redbridge","http://opendatacommunities.org/doc/london-borough-council/redbridge","3BNONSCHFUND","Non-School Funding","3CNONSCH","Non Schools","REV","Revenue","R3962","Early Years - 3 and 4 Year Olds","05-THIRD","Third Party Payments","05A","Independent units within the council","6517","Non-Maintained Schools","3476438","201803",21/06/2017 00:00:00,28227.93,"59760","Playgroups, Nurseries and Creches","REDACTED DATA","NOREEN HASHMI T/A KIDS AT PLAY","9921556294","http://opencorporates.com/companies/gb/9921556294",""
"London Borough of Redbridge","http://opendatacommunities.org/doc/london-borough-council/redbridge","3BLEACENTFND","LEA Centrally Held School Funds","3CNONSCH","Non Schools","REV","Revenue","R3258","ISS Paid School Meals","05-THIRD","Third Party Payments","05A","Independent units within the council","6513","Agency & Contracted Services","70095349","201803",23/06/2017 00:00:00,28192.53,"16270","Catering Schools","REDACTED DATA","ISS CATERHOUSE - ISS MEDICLEAN LTD(EDUCATION CATERING CASH COLLECTIONS)","1659837","http://opencorporates.com/companies/gb/1659837",""
"London Borough of Redbridge","http://opendatacommunities.org/doc/london-borough-council/redbridge","3BNONSCHFUND","Non-School Funding","3CNONSCH","Non Schools","REV","Revenue","R3962","Early Years - 3 and 4 Year Olds","05-THIRD","Third Party Payments","05A","Independent units within the council","6517","Non-Maintained Schools","3476423","201803",21/06/2017 00:00:00,28083.98,"53120","Nursery Schools","REDACTED DATA","OXFORD DAY NURSERY LTD","8100587","http://opencorporates.com/companies/gb/8100587",""
"London Borough of Redbridge","http://opendatacommunities.org/doc/london-borough-council/redbridge","3BNONSCHFUND","Non-School Funding","3CNONSCH","Non Schools","REV","Revenue","R3962","Early Years - 3 and 4 Year Olds","05-THIRD","Third Party Payments","05A","Independent units within the council","6517","Non-Maintained Schools","3474548","201803",05/06/2017 00:00:00,27592.5,"53088","Nurseries and Creches","REDACTED DATA","A.M.A.B LIMITED - GREENLANE NURSERY & PRE-SCHOOL","3499061","http://opencorporates.com/companies/gb/3499061",""
"London Borough of Redbridge","http://opendatacommunities.org/doc/london-borough-council/redbridge","3BNONSCHFUND","Non-School Funding","3CNONSCH","Non Schools","REV","Revenue","R3962","Early Years - 3 and 4 Year Olds","05-THIRD","Third Party Payments","05A","Independent units within the council","6517","Non-Maintained Schools","3474602","201803",05/06/2017 00:00:00,27592.5,"17580","Childcare Services","REDACTED DATA","BARNEY BEARS NURSERY LTD","4793063","http://opencorporates.com/companies/gb/4793063",""
"London Borough of Redbridge","http://opendatacommunities.org/doc/london-borough-council/redbridge","3BNONSCHFUND","Non-School Funding","3CNONSCH","Non Schools","REV","Revenue","R3962","Early Years - 3 and 4 Year Olds","05-THIRD","Third Party Payments","05A","Independent units within the council","6517","Non-Maintained Schools","3474611","201803",05/06/2017 00:00:00,27422.7,"59760","Playgroups, Nurseries and Creches","REDACTED DATA","ST PAULS BUSY BEES PLAYGROUP","",,""
"London Borough of Redbridge","http://opendatacommunities.org/doc/london-borough-council/redbridge","3BNONSCHFUND","Non-School Funding","3CNONSCH","Non Schools","REV","Revenue","R3962","Early Years - 3 and 4 Year Olds","05-THIRD","Third Party Payments","05A","Independent units within the council","6517","Non-Maintained Schools","3476480","201803",21/06/2017 00:00:00,27390.18,"17580","Childcare Services","REDACTED DATA","DIZZY DUCKS DAY NURSERY LTD","5120112","http://opencorporates.com/companies/gb/5120112",""
"London Borough of Redbridge","http://opendatacommunities.org/doc/london-borough-council/redbridge","9BNONBVO","Outside the BVACOP Objective Structure","9CNONBVO","Outside the BVACOP Objective Structure","BAL","Balance Sheet","B0266","Holding A/C - Returned Cheques - Agresso Suppliers","99-NONBV","Capital, Balance Sheet and Control","50Q","Other Balances & Reserves","9910","Personal Account - Debtor","70095014","201803",31/05/2017 00:00:00,12619.58,"17020","Charities and Voluntary Organisations","REDACTED DATA","SCOPE","",,""
"London Borough of Redbridge","http://opendatacommunities.org/doc/london-borough-council/redbridge","9BNONBVO","Outside the BVACOP Objective Structure","9CNONBVO","Outside the BVACOP Objective Structure","BAL","Balance Sheet","B0266","Holding A/C - Returned Cheques - Agresso Suppliers","99-NONBV","Capital, Balance Sheet and Control","50Q","Other Balances & Reserves","9910","Personal Account - Debtor","70095014","201803",31/05/2017 00:00:00,5879.84,"17020","Charities and Voluntary Organisations","REDACTED DATA","SCOPE","",,""
"London Borough of Redbridge","http://opendatacommunities.org/doc/london-borough-council/redbridge","9BNONBVO","Outside the BVACOP Objective Structure","9CNONBVO","Outside the BVACOP Objective Structure","BAL","Balance Sheet","B0266","Holding A/C - Returned Cheques - Agresso Suppliers","99-NONBV","Capital, Balance Sheet and Control","50Q","Other Balances & Reserves","9910","Personal Account - Debtor","70095014","201803",31/05/2017 00:00:00,5549.6,"17020","Charities and Voluntary Organisations","REDACTED DATA","SCOPE","",,""
"London Borough of Redbridge","http://opendatacommunities.org/doc/london-borough-council/redbridge","9BNONBVO","Outside the BVACOP Objective Structure","9CNONBVO","Outside the BVACOP Objective Structure","BAL","Balance Sheet","B0266","Holding A/C - Returned Cheques - Agresso Suppliers","99-NONBV","Capital, Balance Sheet and Control","50Q","Other Balances & Reserves","9910","Personal Account - Debtor","70095014","201803",31/05/2017 00:00:00,3329.76,"17020","Charities and Voluntary Organisations","REDACTED DATA","SCOPE","",,""
"London Borough of Redbridge","http://opendatacommunities.org/doc/london-borough-council/redbridge","3BLEACENTFND","LEA Centrally Held School Funds","3CNONSCH","Non Schools","REV","Revenue","R2004","SEN and CD Res Placements DSG","05-THIRD","Third Party Payments","05H","Private contractors","6906","Independent Schools","60345780","201803",13/06/2017 00:00:00,22750,"67860","Schools - Independent and Preparatory","REDACTED DATA","TRANSITIONAL CARE LTD","3872464","http://opencorporates.com/companies/gb/3872464","756871975"
"London Borough of Redbridge","http://opendatacommunities.org/doc/london-borough-council/redbridge","3BLEACENTFND","LEA Centrally Held School Funds","3CNONSCH","Non Schools","REV","Revenue","R2004","SEN and CD Res Placements DSG","05-THIRD","Third Party Payments","05H","Private contractors","6906","Independent Schools","60345776","201803",23/03/2017 00:00:00,22750,"67860","Schools - Independent and Preparatory","REDACTED DATA","TRANSITIONAL CARE LTD","3872464","http://opencorporates.com/companies/gb/3872464","756871975"
"London Borough of Redbridge","http://opendatacommunities.org/doc/london-borough-council/redbridge","3BLEACENTFND","LEA Centrally Held School Funds","3CNONSCH","Non Schools","REV","Revenue","R2004","SEN and CD Res Placements DSG","05-THIRD","Third Party Payments","05H","Private contractors","6906","Independent Schools","60345777","201803",13/06/2017 00:00:00,22750,"67860","Schools - Independent and Preparatory","REDACTED DATA","TRANSITIONAL CARE LTD","3872464","http://opencorporates.com/companies/gb/3872464","756871975"
"London Borough of Redbridge","http://opendatacommunities.org/doc/london-borough-council/redbridge","3BNONSCHFUND","Non-School Funding","3CNONSCH","Non Schools","REV","Revenue","R3962","Early Years - 3 and 4 Year Olds","05-THIRD","Third Party Payments","05A","Independent units within the council","6517","Non-Maintained Schools","3476371","201803",21/06/2017 00:00:00,27148.65,"59760","Playgroups, Nurseries and Creches","REDACTED DATA","BELMONT DAY NURSERY","5331750","http://opencorporates.com/companies/gb/5331750",""
"London Borough of Redbridge","http://opendatacommunities.org/doc/london-borough-council/redbridge","3BLEACENTFND","LEA Centrally Held School Funds","3CNONSCH","Non Schools","REV","Revenue","R3258","ISS Paid School Meals","05-THIRD","Third Party Payments","05A","Independent units within the council","6513","Agency & Contracted Services","70094996","201803",19/05/2017 00:00:00,27039.18,"16270","Catering Schools","REDACTED DATA","ISS CATERHOUSE - ISS MEDICLEAN LTD(EDUCATION CATERING CASH COLLECTIONS)","1659837","http://opencorporates.com/companies/gb/1659837",""
"London Borough of Redbridge","http://opendatacommunities.org/doc/london-borough-council/redbridge","3BNONSCHFUND","Non-School Funding","3CNONSCH","Non Schools","REV","Revenue","R3962","Early Years - 3 and 4 Year Olds","05-THIRD","Third Party Payments","05A","Independent units within the council","6517","Non-Maintained Schools","70095155","201803",13/06/2017 00:00:00,26788.29,"67981","Schools - Local Authority","REDACTED DATA","WINSTON WAY ACADEMY","",,""
"London Borough of Redbridge","http://opendatacommunities.org/doc/london-borough-council/redbridge","6BSOCIALSERV","Social Services","6CCHILLOOKED","Children Looked After","REV","Revenue","R2139","CQ and F - CAMHS","05-THIRD","Third Party Payments","05A","Independent units within the council","6513","Agency & Contracted Services","60329263","201803",09/12/2016 00:00:00,26557,"42200","Health Authorities","REDACTED DATA","NORTH EAST LONDON NHS FOUNDATION TRUST","",,"654404447"
"London Borough of Redbridge","http://opendatacommunities.org/doc/london-borough-council/redbridge","6BSOCIALSERV","Social Services","6CCHILLOOKED","Children Looked After","REV","Revenue","R2139","CQ and F - CAMHS","05-THIRD","Third Party Payments","05A","Independent units within the council","6513","Agency & Contracted Services","60329264","201803",09/12/2016 00:00:00,26557,"42200","Health Authorities","REDACTED DATA","NORTH EAST LONDON NHS FOUNDATION TRUST","",,"654404447"
"London Borough of Redbridge","http://opendatacommunities.org/doc/london-borough-council/redbridge","3BNONSCHFUND","Non-School Funding","3CNONSCH","Non Schools","REV","Revenue","R3962","Early Years - 3 and 4 Year Olds","05-THIRD","Third Party Payments","05A","Independent units within the council","6517","Non-Maintained Schools","3474544","201803",05/06/2017 00:00:00,26551.06,"59760","Playgroups, Nurseries and Creches","REDACTED DATA","AL-FALAH THE SUNFLOWER NURSERY","",,""
"London Borough of Redbridge","http://opendatacommunities.org/doc/london-borough-council/redbridge","3BINDSCHFUND","Individual School Funds","3CDELSECOND","Delegated Individual Secondary School Budgets","REV","Revenue","R3602","Caterham High School","02-PREMISES","Premises","02A","Repairs, alteration and maintenance of buildings","3001","Major Works Programme","3474377","201803",13/04/2017 00:00:00,22100,"27520","Double Glazing Installers","REDACTED DATA","HAINAULT HOME IMPROVEMENTS","2343035560","http://opencorporates.com/companies/gb/2343035560","597088188"
"London Borough of Redbridge","http://opendatacommunities.org/doc/london-borough-council/redbridge","3BNONSCHFUND","Non-School Funding","3CNONSCH","Non Schools","REV","Revenue","R3962","Early Years - 3 and 4 Year Olds","05-THIRD","Third Party Payments","05A","Independent units within the council","6517","Non-Maintained Schools","3476418","201803",21/06/2017 00:00:00,26324.76,"59760","Playgroups, Nurseries and Creches","REDACTED DATA","ST AUBYNS SCHOOL","1218766","http://opencorporates.com/companies/gb/1218766",""
"London Borough of Redbridge","http://opendatacommunities.org/doc/london-borough-council/redbridge","4BMANGT&SUPP","Management & Support Services","4CHIGHRDROUT","Highways/Roads (Routine)","REV","Revenue","R7064","Markings and Traffic Lights","05-THIRD","Third Party Payments","05H","Private contractors","6915","Contractor Payments","3477932","201803",27/06/2017 00:00:00,21717.63,"18632","Civil Engineers","REDACTED DATA","KENSON CONTRACTORS BENINGTON LTD","1314691","http://opencorporates.com/companies/gb/1314691","301629589"
"London Borough of Redbridge","http://opendatacommunities.org/doc/london-borough-council/redbridge","3BLEACENTFND","LEA Centrally Held School Funds","3CNONSCH","Non Schools","REV","Revenue","R3258","ISS Paid School Meals","05-THIRD","Third Party Payments","05A","Independent units within the council","6513","Agency & Contracted Services","70095467","201803",30/06/2017 00:00:00,25813.53,"16270","Catering Schools","REDACTED DATA","ISS CATERHOUSE - ISS MEDICLEAN LTD(EDUCATION CATERING CASH COLLECTIONS)","1659837","http://opencorporates.com/companies/gb/1659837",""
"London Borough of Redbridge","http://opendatacommunities.org/doc/london-borough-council/redbridge","3BNONSCHFUND","Non-School Funding","3CNONSCH","Non Schools","REV","Revenue","R3962","Early Years - 3 and 4 Year Olds","05-THIRD","Third Party Payments","05A","Independent units within the council","6517","Non-Maintained Schools","3476477","201803",21/06/2017 00:00:00,24772.8,"17580","Childcare Services","REDACTED DATA","BARNEY BEARS NURSERY LTD","4793063","http://opencorporates.com/companies/gb/4793063",""
"London Borough of Redbridge","http://opendatacommunities.org/doc/london-borough-council/redbridge","1BOTHEROPI&E","Other Operating Income & Expenditure","1CTRADSURDEF","Trading Account Surpluses & Deficits","REV","Revenue","R9265","IT Transformation Support","04-SUPPLIES","Supplies And Services","04F","Communications and computing","5853","Computer Software","60344761","201803",22/03/2017 00:00:00,20000,"20703","Computer Systems and Software","REDACTED DATA","ICSA BOARDROOM APPS LIMITED","8163009","http://opencorporates.com/companies/gb/8163009","761207941"
"London Borough of Redbridge","http://opendatacommunities.org/doc/london-borough-council/redbridge","9BNONBVO","Outside the BVACOP Objective Structure","9CNONBVO","Outside the BVACOP Objective Structure","CAP","Capital","C1779","Renewing Ilford","99-NONBV","Capital, Balance Sheet and Control","50E","Capital - Contract Payments","9157","Footways & cycle tracks","3475809","201803",13/06/2017 00:00:00,20000,"18632","Civil Engineers","REDACTED DATA","KENSON CONTRACTORS BENINGTON LTD","1314691","http://opencorporates.com/companies/gb/1314691","301629589"
"London Borough of Redbridge","http://opendatacommunities.org/doc/london-borough-council/redbridge","9BNONBVO","Outside the BVACOP Objective Structure","9CNONBVO","Outside the BVACOP Objective Structure","CAP","Capital","C2203","Accident Remediation Local Safety TFL","99-NONBV","Capital, Balance Sheet and Control","50E","Capital - Contract Payments","9153","Carriageways","3475806","201803",13/06/2017 00:00:00,12185.75,"18632","Civil Engineers","REDACTED DATA","KENSON CONTRACTORS BENINGTON LTD","1314691","http://opencorporates.com/companies/gb/1314691","301629589"
"London Borough of Redbridge","http://opendatacommunities.org/doc/london-borough-council/redbridge","9BNONBVO","Outside the BVACOP Objective Structure","9CNONBVO","Outside the BVACOP Objective Structure","CAP","Capital","C2203","Accident Remediation Local Safety TFL","99-NONBV","Capital, Balance Sheet and Control","50E","Capital - Contract Payments","9157","Footways & cycle tracks","3475806","201803",13/06/2017 00:00:00,7814.25,"18632","Civil Engineers","REDACTED DATA","KENSON CONTRACTORS BENINGTON LTD","1314691","http://opencorporates.com/companies/gb/1314691","301629589"
"London Borough of Redbridge","http://opendatacommunities.org/doc/london-borough-council/redbridge","9BNONBVO","Outside the BVACOP Objective Structure","9CNONBVO","Outside the BVACOP Objective Structure","CAP","Capital","C2252","Orbital Corridor 2 TFL","99-NONBV","Capital, Balance Sheet and Control","50E","Capital - Contract Payments","9153","Carriageways","3475807","201803",13/06/2017 00:00:00,17065.64,"18632","Civil Engineers","REDACTED DATA","KENSON CONTRACTORS BENINGTON LTD","1314691","http://opencorporates.com/companies/gb/1314691","301629589"
"London Borough of Redbridge","http://opendatacommunities.org/doc/london-borough-council/redbridge","9BNONBVO","Outside the BVACOP Objective Structure","9CNONBVO","Outside the BVACOP Objective Structure","CAP","Capital","C2252","Orbital Corridor 2 TFL","99-NONBV","Capital, Balance Sheet and Control","50E","Capital - Contract Payments","9157","Footways & cycle tracks","3475807","201803",13/06/2017 00:00:00,2934.37,"18632","Civil Engineers","REDACTED DATA","KENSON CONTRACTORS BENINGTON LTD","1314691","http://opencorporates.com/companies/gb/1314691","301629589"
"London Borough of Redbridge","http://opendatacommunities.org/doc/london-borough-council/redbridge","9BNONBVO","Outside the BVACOP Objective Structure","9CNONBVO","Outside the BVACOP Objective Structure","CAP","Capital","C2255","Radial Corridor 3 TFL","99-NONBV","Capital, Balance Sheet and Control","50E","Capital - Contract Payments","9153","Carriageways","3476212","201803",13/06/2017 00:00:00,11485.95,"18632","Civil Engineers","REDACTED DATA","KENSON CONTRACTORS BENINGTON LTD","1314691","http://opencorporates.com/companies/gb/1314691","301629589"
"London Borough of Redbridge","http://opendatacommunities.org/doc/london-borough-council/redbridge","9BNONBVO","Outside the BVACOP Objective Structure","9CNONBVO","Outside the BVACOP Objective Structure","CAP","Capital","C2255","Radial Corridor 3 TFL","99-NONBV","Capital, Balance Sheet and Control","50E","Capital - Contract Payments","9157","Footways & cycle tracks","3476212","201803",13/06/2017 00:00:00,8514.06,"18632","Civil Engineers","REDACTED DATA","KENSON CONTRACTORS BENINGTON LTD","1314691","http://opencorporates.com/companies/gb/1314691","301629589"
"London Borough of Redbridge","http://opendatacommunities.org/doc/london-borough-council/redbridge","3BLEACENTFND","LEA Centrally Held School Funds","3CNONSCH","Non Schools","REV","Revenue","R2004","SEN and CD Res Placements DSG","05-THIRD","Third Party Payments","05H","Private contractors","6906","Independent Schools","60345778","201803",13/06/2017 00:00:00,19833.34,"67860","Schools - Independent and Preparatory","REDACTED DATA","TRANSITIONAL CARE LTD","3872464","http://opencorporates.com/companies/gb/3872464","756871975"
"London Borough of Redbridge","http://opendatacommunities.org/doc/london-borough-council/redbridge","3BNONSCHFUND","Non-School Funding","3CNONSCH","Non Schools","REV","Revenue","R3962","Early Years - 3 and 4 Year Olds","05-THIRD","Third Party Payments","05A","Independent units within the council","6517","Non-Maintained Schools","3474562","201803",05/06/2017 00:00:00,23432.4,"59760","Playgroups, Nurseries and Creches","REDACTED DATA","PEDAGOGY AURAS UK LTD T/A BARLEY LANE PRESCHOLL & AFTER SCHOOL","7181677","http://opencorporates.com/companies/gb/7181677",""
"London Borough of Redbridge","http://opendatacommunities.org/doc/london-borough-council/redbridge","3BNONSCHFUND","Non-School Funding","3CNONSCH","Non Schools","REV","Revenue","R3962","Early Years - 3 and 4 Year Olds","05-THIRD","Third Party Payments","05A","Independent units within the council","6517","Non-Maintained Schools","3476376","201803",21/06/2017 00:00:00,23418.33,"59760","Playgroups, Nurseries and Creches","REDACTED DATA","LITTLE RASCALS (ILFORD) LTD","5813376","http://opencorporates.com/companies/gb/5813376",""
"London Borough of Redbridge","http://opendatacommunities.org/doc/london-borough-council/redbridge","6BPUBHEALTH","Public Health","6CSEXHEALTH","Sexual Health","REV","Revenue","R4804","STI Testing & Treatment","05-THIRD","Third Party Payments","05D","Health authorities","6703","Hospital Trusts","70095342","201803",06/05/2017 00:00:00,22868.96,"42200","Health Authorities","REDACTED DATA","BARKING HAVERING & REDBRIDGE NHS TRUST","",,"654924414"
"London Borough of Redbridge","http://opendatacommunities.org/doc/london-borough-council/redbridge","9BNONBVO","Outside the BVACOP Objective Structure","9CNONBVO","Outside the BVACOP Objective Structure","CAP","Capital","C2152","HRA Sites Phase 3A - Luminus","99-NONBV","Capital, Balance Sheet and Control","50E","Capital - Contract Payments","9150","Main Contract","60344765","201803",31/05/2017 00:00:00,22492.33,"44140","House Builders","REDACTED DATA","LUMINUS DEVELOPMENTS LTD","4581669","http://opencorporates.com/companies/gb/4581669","991290888"
"London Borough of Redbridge","http://opendatacommunities.org/doc/london-borough-council/redbridge","3BNONSCHFUND","Non-School Funding","3CNONSCH","Non Schools","REV","Revenue","R3962","Early Years - 3 and 4 Year Olds","05-THIRD","Third Party Payments","05A","Independent units within the council","6517","Non-Maintained Schools","3476379","201803",21/06/2017 00:00:00,22419.15,"59760","Playgroups, Nurseries and Creches","REDACTED DATA","CHADWELL PRE-SCHOOL","",,""
"London Borough of Redbridge","http://opendatacommunities.org/doc/london-borough-council/redbridge","3BNONSCHFUND","Non-School Funding","3CNONSCH","Non Schools","REV","Revenue","R3962","Early Years - 3 and 4 Year Olds","05-THIRD","Third Party Payments","05A","Independent units within the council","6517","Non-Maintained Schools","3476411","201803",21/06/2017 00:00:00,22269.02,"59760","Playgroups, Nurseries and Creches","REDACTED DATA","HEAD START MONTESSORIANS","",,""
"London Borough of Redbridge","http://opendatacommunities.org/doc/london-borough-council/redbridge","3BINDSCHFUND","Individual School Funds","3CFACILIMPRO","Facilitating School Improvement","REV","Revenue","R3433","Research & Data","04-SUPPLIES","Supplies And Services","04H","Grants and subscriptions","5956","Subscriptions","60343201","201803",15/05/2017 00:00:00,18552,"24080","Database Services","REDACTED DATA","FFT EDUCATION  LTD","3685684","http://opencorporates.com/companies/gb/3685684","737999848"
"London Borough of Redbridge","http://opendatacommunities.org/doc/london-borough-council/redbridge","5BGFHOUSING","General Fund Housing","5CHOMELESS","Homelessness","REV","Revenue","R5645","Storage and Removals","04-SUPPLIES","Supplies And Services","04K","Miscellaneous expenses","6227","Furniture Removal & Storage","60345564","201803",31/05/2017 00:00:00,18371.56,"64620","Removals and Storage - Household","REDACTED DATA","CROWN PROMOTIONS & REMOVALS LIMITED","4002589","http://opencorporates.com/companies/gb/4002589","506837339"
"London Borough of Redbridge","http://opendatacommunities.org/doc/london-borough-council/redbridge","9BNONBVO","Outside the BVACOP Objective Structure","9CNONBVO","Outside the BVACOP Objective Structure","BAL","Balance Sheet","B2001","Insurance Fund","99-NONBV","Capital, Balance Sheet and Control","50K","Current Assets","9314","Advance To MMI","70095031","201803",07/06/2017 00:00:00,22017.43,"45415","Insurance - Other","REDACTED DATA","ZURICH MUNICIPAL","",,""
"London Borough of Redbridge","http://opendatacommunities.org/doc/london-borough-council/redbridge","9BNONBVO","Outside the BVACOP Objective Structure","9CNONBVO","Outside the BVACOP Objective Structure","REV","Revenue","R0056","Loans Fund - Revenue Exp","09-INCOME","Income","09D","Interest","8703","Interest On Temporary Investments","70095031","201803",07/06/2017 00:00:00,-18.31,"45415","Insurance - Other","REDACTED DATA","ZURICH MUNICIPAL","",,""
"London Borough of Redbridge","http://opendatacommunities.org/doc/london-borough-council/redbridge","9BNONBVO","Outside the BVACOP Objective Structure","9CNONBVO","Outside the BVACOP Objective Structure","CAP","Capital","C2105","Communal","99-NONBV","Capital, Balance Sheet and Control","50E","Capital - Contract Payments","9150","Main Contract","60344659","201803",31/05/2017 00:00:00,18275.89,"11700","Burglar and Intruder Alarm Systems","REDACTED DATA","OPENVIEW SECURITY SOLUTIONS LTD","3376202","http://opencorporates.com/companies/gb/3376202","696815967"
"London Borough of Redbridge","http://opendatacommunities.org/doc/london-borough-council/redbridge","3BLEACENTFND","LEA Centrally Held School Funds","3CNONSCH","Non Schools","REV","Revenue","R2004","SEN and CD Res Placements DSG","05-THIRD","Third Party Payments","05H","Private contractors","6906","Independent Schools","60345775","201803",23/03/2017 00:00:00,18200,"67860","Schools - Independent and Preparatory","REDACTED DATA","TRANSITIONAL CARE LTD","3872464","http://opencorporates.com/companies/gb/3872464","756871975"
"London Borough of Redbridge","http://opendatacommunities.org/doc/london-borough-council/redbridge","3BNONSCHFUND","Non-School Funding","3CNONSCH","Non Schools","REV","Revenue","R3962","Early Years - 3 and 4 Year Olds","05-THIRD","Third Party Payments","05A","Independent units within the council","6517","Non-Maintained Schools","3476409","201803",21/06/2017 00:00:00,21506.76,"17020","Charities and Voluntary Organisations","REDACTED DATA","HAINAULT FOREST COMMUNITY ASSN","IP26797R","http://opencorporates.com/companies/gb/IP26797R",""
"London Borough of Redbridge","http://opendatacommunities.org/doc/london-borough-council/redbridge","3BNONSCHFUND","Non-School Funding","6CCHILLOOKED","Children Looked After","REV","Revenue","R2238","Looked After Children Placements LA","05-THIRD","Third Party Payments","05H","Private contractors","6907","Private Homes","60344385","201803",31/05/2017 00:00:00,17804.16,"64710","Residential Care Homes","REDACTED DATA","SMARTCARE SERVICES LIMITED","5120182","http://opencorporates.com/companies/gb/5120182","915837600"
"London Borough of Redbridge","http://opendatacommunities.org/doc/london-borough-council/redbridge","6BADULTSOCIA","Adult Social Care","6COLDINCMENT","Older People (65 or over) incl. Older Mentally Ill","REV","Revenue","R4376","Carer Contract","05-THIRD","Third Party Payments","05F","Voluntary associations","6800","Voluntary Organisations","90865377","201803",14/06/2017 00:00:00,-13479.39,"17020","Charities and Voluntary Organisations","REDACTED DATA","REDBRIDGE EPPING & HARLOW CROSSROADS","2647932","http://opencorporates.com/companies/gb/2647932",""
"London Borough of Redbridge","http://opendatacommunities.org/doc/london-borough-council/redbridge","6BADULTSOCIA","Adult Social Care","6COLDINCMENT","Older People (65 or over) incl. Older Mentally Ill","REV","Revenue","R4376","Carer Contract","05-THIRD","Third Party Payments","05F","Voluntary associations","6800","Voluntary Organisations","90865377","201803",14/06/2017 00:00:00,28602.62,"17020","Charities and Voluntary Organisations","REDACTED DATA","REDBRIDGE EPPING & HARLOW CROSSROADS","2647932","http://opencorporates.com/companies/gb/2647932",""
"London Borough of Redbridge","http://opendatacommunities.org/doc/london-borough-council/redbridge","6BADULTSOCIA","Adult Social Care","6COLDINCMENT","Older People (65 or over) incl. Older Mentally Ill","REV","Revenue","R4402","Dementia Contract","05-THIRD","Third Party Payments","05F","Voluntary associations","6800","Voluntary Organisations","90865377","201803",14/06/2017 00:00:00,11703.74,"17020","Charities and Voluntary Organisations","REDACTED DATA","REDBRIDGE EPPING & HARLOW CROSSROADS","2647932","http://opencorporates.com/companies/gb/2647932",""
"London Borough of Redbridge","http://opendatacommunities.org/doc/london-borough-council/redbridge","6BADULTSOCIA","Adult Social Care","6COLDINCMENT","Older People (65 or over) incl. Older Mentally Ill","REV","Revenue","R4402","Dementia Contract","05-THIRD","Third Party Payments","05F","Voluntary associations","6800","Voluntary Organisations","90865377","201803",14/06/2017 00:00:00,-5515.55,"17020","Charities and Voluntary Organisations","REDACTED DATA","REDBRIDGE EPPING & HARLOW CROSSROADS","2647932","http://opencorporates.com/companies/gb/2647932",""
"London Borough of Redbridge","http://opendatacommunities.org/doc/london-borough-council/redbridge","9BNONBVO","Outside the BVACOP Objective Structure","9CNONBVO","Outside the BVACOP Objective Structure","CAP","Capital","C1714","Town Hall - Fire Safety Upgrade Phase 1","99-NONBV","Capital, Balance Sheet and Control","50E","Capital - Contract Payments","9150","Main Contract","70095019","201803",31/05/2017 00:00:00,17630.1,"11040","Builders","REDACTED DATA","ALLRIDGE (BUILDERS) LTD","610313","http://opencorporates.com/companies/gb/610313","248775612"
"London Borough of Redbridge","http://opendatacommunities.org/doc/london-borough-council/redbridge","3BLEACENTFND","LEA Centrally Held School Funds","3CNONSCH","Non Schools","REV","Revenue","R2004","SEN and CD Res Placements DSG","05-THIRD","Third Party Payments","05H","Private contractors","6906","Independent Schools","60345781","201803",13/06/2017 00:00:00,21000,"67860","Schools - Independent and Preparatory","REDACTED DATA","TRANSITIONAL CARE LTD","3872464","http://opencorporates.com/companies/gb/3872464","756871975"
"London Borough of Redbridge","http://opendatacommunities.org/doc/london-borough-council/redbridge","3BLEACENTFND","LEA Centrally Held School Funds","3CNONSCH","Non Schools","REV","Revenue","R2004","SEN and CD Res Placements DSG","05-THIRD","Third Party Payments","05H","Private contractors","6906","Independent Schools","60345774","201803",13/06/2017 00:00:00,21000,"67860","Schools - Independent and Preparatory","REDACTED DATA","TRANSITIONAL CARE LTD","3872464","http://opencorporates.com/companies/gb/3872464","756871975"
"London Borough of Redbridge","http://opendatacommunities.org/doc/london-borough-council/redbridge","3BLEACENTFND","LEA Centrally Held School Funds","3CNONSCH","Non Schools","REV","Revenue","R2004","SEN and CD Res Placements DSG","05-THIRD","Third Party Payments","05H","Private contractors","6906","Independent Schools","60345779","201803",13/06/2017 00:00:00,21000,"67860","Schools - Independent and Preparatory","REDACTED DATA","TRANSITIONAL CARE LTD","3872464","http://opencorporates.com/companies/gb/3872464","756871975"
"London Borough of Redbridge","http://opendatacommunities.org/doc/london-borough-council/redbridge","9BNONBVO","Outside the BVACOP Objective Structure","9CNONBVO","Outside the BVACOP Objective Structure","CAP","Capital","C2203","Accident Remediation Local Safety TFL","99-NONBV","Capital, Balance Sheet and Control","50E","Capital - Contract Payments","9166","Street Furniture","60345086","201803",07/06/2017 00:00:00,21000,"48583","Local Government","REDACTED DATA","TFL SURFACE TRANSPORT","",,"756276990"
"London Borough of Redbridge","http://opendatacommunities.org/doc/london-borough-council/redbridge","3BNONSCHFUND","Non-School Funding","3CNONSCH","Non Schools","REV","Revenue","R3962","Early Years - 3 and 4 Year Olds","05-THIRD","Third Party Payments","05A","Independent units within the council","6517","Non-Maintained Schools","3476436","201803",21/06/2017 00:00:00,20905.89,"59760","Playgroups, Nurseries and Creches","REDACTED DATA","MAYTIME MONTESSORI PLAYGROUP LTD(M O'MAHONEY)","8183696","http://opencorporates.com/companies/gb/8183696",""
"London Borough of Redbridge","http://opendatacommunities.org/doc/london-borough-council/redbridge","9BNONBVO","Outside the BVACOP Objective Structure","9CNONBVO","Outside the BVACOP Objective Structure","CAP","Capital","C4330","Wanstead High School - feasibility","99-NONBV","Capital, Balance Sheet and Control","50B","Capital - Contracted Works","9055","External - Consultants Fees","60345925","201803",15/06/2017 00:00:00,17000,"4422","Architectural Services","REDACTED DATA","CURL LA TOURELLE ARCHITECTS","9896013","http://opencorporates.com/companies/gb/9896013","675096405"
"London Borough of Redbridge","http://opendatacommunities.org/doc/london-borough-council/redbridge","3BNONSCHFUND","Non-School Funding","3CNONSCH","Non Schools","REV","Revenue","R3962","Early Years - 3 and 4 Year Olds","05-THIRD","Third Party Payments","05A","Independent units within the council","6517","Non-Maintained Schools","3476432","201803",21/06/2017 00:00:00,20389.89,"67860","Schools - Independent and Preparatory","REDACTED DATA","LEARN TO LEAP NURSERY LTD - LEARN TO LEAP DAY NURSERY","7530856","http://opencorporates.com/companies/gb/7530856",""
"London Borough of Redbridge","http://opendatacommunities.org/doc/london-borough-council/redbridge","2BPLANPOL","Planning Policy","","","REV","Revenue","R6509","Head of Delivery","04-SUPPLIES","Supplies And Services","04E","Services","5754","Consultancy","60344291","201803",31/05/2017 00:00:00,16769,"4422","Architectural Services","REDACTED DATA","ALLIES AND MORRISON LLP","",,"396432327"
"London Borough of Redbridge","http://opendatacommunities.org/doc/london-borough-council/redbridge","3BNONSCHFUND","Non-School Funding","3CNONSCH","Non Schools","REV","Revenue","R3962","Early Years - 3 and 4 Year Olds","05-THIRD","Third Party Payments","05A","Independent units within the council","6517","Non-Maintained Schools","3476509","201803",21/06/2017 00:00:00,19940.8,"67981","Schools - Local Authority","REDACTED DATA","WINSTON WAY ACADEMY","",,""
"London Borough of Redbridge","http://opendatacommunities.org/doc/london-borough-council/redbridge","9BNONBVO","Outside the BVACOP Objective Structure","9CNONBVO","Outside the BVACOP Objective Structure","CAP","Capital","C2002","Disabled Facilities Grants (DFG)","99-NONBV","Capital, Balance Sheet and Control","50H","Capital - Deferred Charges","9251","Housing Grants - Mandatory","70095291","201803",13/06/2017 00:00:00,19810,"11040","Builders","REDACTED DATA","RICHARD BANWO T/A BANIBI CONSORTIUM (GRANT WORK)","",,""
"London Borough of Redbridge","http://opendatacommunities.org/doc/london-borough-council/redbridge","3BINDSCHFUND","Individual School Funds","3CDELSECOND","Delegated Individual Secondary School Budgets","REV","Revenue","S3128","MAYFIELD -  Provision for Meals","04-SUPPLIES","Supplies And Services","04A","Equipment, furniture and materials","5520","Catering Professional and Technical Services","60345302","201803",26/04/2017 00:00:00,19592.29,"16290","Catering Supplies","REDACTED DATA","CATERLINK LIMITED","3732298","http://opencorporates.com/companies/gb/3732298","703137082"
"London Borough of Redbridge","http://opendatacommunities.org/doc/london-borough-council/redbridge","3BNONSCHFUND","Non-School Funding","3CNONSCH","Non Schools","REV","Revenue","R3962","Early Years - 3 and 4 Year Olds","05-THIRD","Third Party Payments","05A","Independent units within the council","6517","Non-Maintained Schools","3476469","201803",21/06/2017 00:00:00,19564.52,"17580","Childcare Services","REDACTED DATA","TREE HOUSE NURSERY SCHOOLS LTD (CAMBRIDGE PARK)","3948398","http://opencorporates.com/companies/gb/3948398",""
"London Borough of Redbridge","http://opendatacommunities.org/doc/london-borough-council/redbridge","1BOTHEROPI&E","Other Operating Income & Expenditure","1CELECTIONS","Elections","REV","Revenue","R9362","Electoral Registration","04-SUPPLIES","Supplies And Services","04A","Equipment, furniture and materials","5502","Equipment Purchase","60343806","201803",23/05/2017 00:00:00,16280,"20703","Computer Systems and Software","REDACTED DATA","IDOX SOFTWARE LTD","2933889","http://opencorporates.com/companies/gb/2933889","766800804"
"London Borough of Redbridge","http://opendatacommunities.org/doc/london-borough-council/redbridge","3BNONSCHFUND","Non-School Funding","6CCHILLOOKED","Children Looked After","REV","Revenue","R2238","Looked After Children Placements LA","05-THIRD","Third Party Payments","05H","Private contractors","6907","Private Homes","60344929","201803",06/06/2017 00:00:00,19508.57,"64710","Residential Care Homes","REDACTED DATA","CHILDHOOD FIRST","1708301","http://opencorporates.com/companies/gb/1708301",""
"London Borough of Redbridge","http://opendatacommunities.org/doc/london-borough-council/redbridge","6BADULTSOCIA","Adult Social Care","6CADMENHLTH","Adults Under 65 with Mental Health Needs","REV","Revenue","R4190","MH - Residential Care","05-THIRD","Third Party Payments","05F","Voluntary associations","6802","Residential Homes","90864853","201803",14/06/2017 00:00:00,1132.33,"17020","Charities and Voluntary Organisations","REDACTED DATA","RNID T/AS ACTION ON HEARING LOSS (SERVICES)","454169","http://opencorporates.com/companies/gb/454169","564524337"
"London Borough of Redbridge","http://opendatacommunities.org/doc/london-borough-council/redbridge","6BADULTSOCIA","Adult Social Care","6CADMENHLTH","Adults Under 65 with Mental Health Needs","REV","Revenue","R4190","MH - Residential Care","05-THIRD","Third Party Payments","05F","Voluntary associations","6802","Residential Homes","90864853","201803",14/06/2017 00:00:00,15852.62,"17020","Charities and Voluntary Organisations","REDACTED DATA","RNID T/AS ACTION ON HEARING LOSS (SERVICES)","454169","http://opencorporates.com/companies/gb/454169","564524337"
"London Borough of Redbridge","http://opendatacommunities.org/doc/london-borough-council/redbridge","6BADULTSOCIA","Adult Social Care","6CADMENHLTH","Adults Under 65 with Mental Health Needs","REV","Revenue","R4190","MH - Residential Care","05-THIRD","Third Party Payments","05H","Private contractors","6902","Respite Care","90864853","201803",14/06/2017 00:00:00,315.63,"17020","Charities and Voluntary Organisations","REDACTED DATA","RNID T/AS ACTION ON HEARING LOSS (SERVICES)","454169","http://opencorporates.com/companies/gb/454169","564524337"
"London Borough of Redbridge","http://opendatacommunities.org/doc/london-borough-council/redbridge","6BADULTSOCIA","Adult Social Care","6CADMENHLTH","Adults Under 65 with Mental Health Needs","REV","Revenue","R4190","MH - Residential Care","05-THIRD","Third Party Payments","05H","Private contractors","6902","Respite Care","90864853","201803",14/06/2017 00:00:00,1893.79,"17020","Charities and Voluntary Organisations","REDACTED DATA","RNID T/AS ACTION ON HEARING LOSS (SERVICES)","454169","http://opencorporates.com/companies/gb/454169","564524337"
"London Borough of Redbridge","http://opendatacommunities.org/doc/london-borough-council/redbridge","9BNONBVO","Outside the BVACOP Objective Structure","9CNONBVO","Outside the BVACOP Objective Structure","BAL","Balance Sheet","B0185","Avc-Prudential-Tch","99-NONBV","Capital, Balance Sheet and Control","50Q","Other Balances & Reserves","9910","Personal Account - Debtor","70095076","201803",09/06/2017 00:00:00,18967.81,"35240","Financial Services","REDACTED DATA","PRUDENTIAL TAVC","",,""
"London Borough of Redbridge","http://opendatacommunities.org/doc/london-borough-council/redbridge","9BNONBVO","Outside the BVACOP Objective Structure","9CNONBVO","Outside the BVACOP Objective Structure","BAL","Balance Sheet","B0188","AVC Opted out schools","99-NONBV","Capital, Balance Sheet and Control","50Q","Other Balances & Reserves","9910","Personal Account - Debtor","70095076","201803",09/06/2017 00:00:00,167.68,"35240","Financial Services","REDACTED DATA","PRUDENTIAL TAVC","",,""
"London Borough of Redbridge","http://opendatacommunities.org/doc/london-borough-council/redbridge","3BNONSCHFUND","Non-School Funding","3CNONSCH","Non Schools","REV","Revenue","R3962","Early Years - 3 and 4 Year Olds","05-THIRD","Third Party Payments","05A","Independent units within the council","6517","Non-Maintained Schools","3474585","201803",05/06/2017 00:00:00,19028.92,"59760","Playgroups, Nurseries and Creches","REDACTED DATA","TAMBA DAY NURSERY LTD CHADWELL HEATH","",,""
"London Borough of Redbridge","http://opendatacommunities.org/doc/london-borough-council/redbridge","9BNONBVO","Outside the BVACOP Objective Structure","9CNONBVO","Outside the BVACOP Objective Structure","BAL","Balance Sheet","B0185","Avc-Prudential-Tch","99-NONBV","Capital, Balance Sheet and Control","50Q","Other Balances & Reserves","9910","Personal Account - Debtor","70095446","201803",29/06/2017 00:00:00,18986.25,"35240","Financial Services","REDACTED DATA","PRUDENTIAL TAVC","",,""
"London Borough of Redbridge","http://opendatacommunities.org/doc/london-borough-council/redbridge","3BNONSCHFUND","Non-School Funding","3CNONSCH","Non Schools","REV","Revenue","R3962","Early Years - 3 and 4 Year Olds","05-THIRD","Third Party Payments","05A","Independent units within the council","6517","Non-Maintained Schools","3476405","201803",21/06/2017 00:00:00,18852.31,"59760","Playgroups, Nurseries and Creches","REDACTED DATA","CAMBRIDGE DAY NURSERY LTD","",,""
"London Borough of Redbridge","http://opendatacommunities.org/doc/london-borough-council/redbridge","2BPLAN&DEVEL","Planning & Development Services","2CCOMMDEVT","Community Development","REV","Revenue","R9850","Redbridge Volunteering Centre","04-SUPPLIES","Supplies And Services","04K","Miscellaneous expenses","6216","Contract","60346100","201803",19/06/2017 00:00:00,18750,"17020","Charities and Voluntary Organisations","REDACTED DATA","REDBRIDGE COUNCIL FOR VOLUNTARY SERVICES","2569614","http://opencorporates.com/companies/gb/2569614",""
"London Borough of Redbridge","http://opendatacommunities.org/doc/london-borough-council/redbridge","6BADULTSOCIA","Adult Social Care","6CADPHYSDIS","Adults Under 65 with Phys Disab or Sensory Impair","REV","Revenue","R4186","PD Residential","05-THIRD","Third Party Payments","05F","Voluntary associations","6802","Residential Homes","90864852","201803",14/06/2017 00:00:00,873.69,"17020","Charities and Voluntary Organisations","REDACTED DATA","RNID T/AS ACTION ON HEARING LOSS (SERVICES)","454169","http://opencorporates.com/companies/gb/454169","564524337"
"London Borough of Redbridge","http://opendatacommunities.org/doc/london-borough-council/redbridge","6BADULTSOCIA","Adult Social Care","6CADPHYSDIS","Adults Under 65 with Phys Disab or Sensory Impair","REV","Revenue","R4186","PD Residential","05-THIRD","Third Party Payments","05F","Voluntary associations","6802","Residential Homes","90864852","201803",14/06/2017 00:00:00,1572.65,"17020","Charities and Voluntary Organisations","REDACTED DATA","RNID T/AS ACTION ON HEARING LOSS (SERVICES)","454169","http://opencorporates.com/companies/gb/454169","564524337"
"London Borough of Redbridge","http://opendatacommunities.org/doc/london-borough-council/redbridge","6BADULTSOCIA","Adult Social Care","6CADPHYSDIS","Adults Under 65 with Phys Disab or Sensory Impair","REV","Revenue","R4186","PD Residential","05-THIRD","Third Party Payments","05F","Voluntary associations","6802","Residential Homes","90864852","201803",14/06/2017 00:00:00,17466.82,"17020","Charities and Voluntary Organisations","REDACTED DATA","RNID T/AS ACTION ON HEARING LOSS (SERVICES)","454169","http://opencorporates.com/companies/gb/454169","564524337"
"London Borough of Redbridge","http://opendatacommunities.org/doc/london-borough-council/redbridge","6BADULTSOCIA","Adult Social Care","6CADPHYSDIS","Adults Under 65 with Phys Disab or Sensory Impair","REV","Revenue","R4186","PD Residential","09-INCOME","Income","09C","Customer and Client Receipts","8555","Accommodation Charges","90864852","201803",14/06/2017 00:00:00,-103.44,"17020","Charities and Voluntary Organisations","REDACTED DATA","RNID T/AS ACTION ON HEARING LOSS (SERVICES)","454169","http://opencorporates.com/companies/gb/454169","564524337"
"London Borough of Redbridge","http://opendatacommunities.org/doc/london-borough-council/redbridge","6BADULTSOCIA","Adult Social Care","6CADPHYSDIS","Adults Under 65 with Phys Disab or Sensory Impair","REV","Revenue","R4186","PD Residential","09-INCOME","Income","09C","Customer and Client Receipts","8555","Accommodation Charges","90864852","201803",14/06/2017 00:00:00,-1130.5,"17020","Charities and Voluntary Organisations","REDACTED DATA","RNID T/AS ACTION ON HEARING LOSS (SERVICES)","454169","http://opencorporates.com/companies/gb/454169","564524337"
"London Borough of Redbridge","http://opendatacommunities.org/doc/london-borough-council/redbridge","6BADULTSOCIA","Adult Social Care","6CADPHYSDIS","Adults Under 65 with Phys Disab or Sensory Impair","REV","Revenue","R4186","PD Residential","09-INCOME","Income","09C","Customer and Client Receipts","8555","Accommodation Charges","90864852","201803",14/06/2017 00:00:00,-57.46,"17020","Charities and Voluntary Organisations","REDACTED DATA","RNID T/AS ACTION ON HEARING LOSS (SERVICES)","454169","http://opencorporates.com/companies/gb/454169","564524337"
"London Borough of Redbridge","http://opendatacommunities.org/doc/london-borough-council/redbridge","3BNONSCHFUND","Non-School Funding","3CNONSCH","Non Schools","REV","Revenue","R3962","Early Years - 3 and 4 Year Olds","05-THIRD","Third Party Payments","05A","Independent units within the council","6517","Non-Maintained Schools","3476406","201803",21/06/2017 00:00:00,18497.97,"59760","Playgroups, Nurseries and Creches","REDACTED DATA","EASTWOOD DAY NURSERY","",,""
"London Borough of Redbridge","http://opendatacommunities.org/doc/london-borough-council/redbridge","3BNONSCHFUND","Non-School Funding","3CNONSCH","Non Schools","REV","Revenue","R3962","Early Years - 3 and 4 Year Olds","05-THIRD","Third Party Payments","05A","Independent units within the council","6517","Non-Maintained Schools","3476447","201803",21/06/2017 00:00:00,18494.74,"53088","Nurseries and Creches","REDACTED DATA","FOOTSTEPS DAY NURSERIES (LONDON) LTD","8430209","http://opencorporates.com/companies/gb/8430209",""
"London Borough of Redbridge","http://opendatacommunities.org/doc/london-borough-council/redbridge","9BNONBVO","Outside the BVACOP Objective Structure","9CNONBVO","Outside the BVACOP Objective Structure","CAP","Capital","C2116","Internal Housing","99-NONBV","Capital, Balance Sheet and Control","50E","Capital - Contract Payments","9150","Main Contract","60346924","201803",20/06/2017 00:00:00,15375,"9321","Boilers - Servicing, Replacements and Repairs","REDACTED DATA","GRAYSTONE BUILDING SERVICES LTD","4490869","http://opencorporates.com/companies/gb/4490869","798566253"
"London Borough of Redbridge","http://opendatacommunities.org/doc/london-borough-council/redbridge","6BADULTSOCIA","Adult Social Care","6CADMENHLTH","Adults Under 65 with Mental Health Needs","REV","Revenue","R4219","MH - Supported Living","06-TRANSFER","Transfer Payments","06B","Social Services Clients","7066","Supportive Lodgings (Transfer Payments)","90861235","201803",02/06/2017 00:00:00,2721.05,"64710","Residential Care Homes","REDACTED DATA","TLC CARE HOMES LTD","3193730","http://opencorporates.com/companies/gb/3193730",""
"London Borough of Redbridge","http://opendatacommunities.org/doc/london-borough-council/redbridge","6BADULTSOCIA","Adult Social Care","6CADMENHLTH","Adults Under 65 with Mental Health Needs","REV","Revenue","R4219","MH - Supported Living","06-TRANSFER","Transfer Payments","06B","Social Services Clients","7066","Supportive Lodgings (Transfer Payments)","90861235","201803",02/06/2017 00:00:00,15721.61,"64710","Residential Care Homes","REDACTED DATA","TLC CARE HOMES LTD","3193730","http://opencorporates.com/companies/gb/3193730",""
"London Borough of Redbridge","http://opendatacommunities.org/doc/london-borough-council/redbridge","3BNONSCHFUND","Non-School Funding","6CCHILLOOKED","Children Looked After","REV","Revenue","R2238","Looked After Children Placements LA","05-THIRD","Third Party Payments","05H","Private contractors","6907","Private Homes","60344990","201803",06/06/2017 00:00:00,18428.57,"64710","Residential Care Homes","REDACTED DATA","CHILDHOOD FIRST","1708301","http://opencorporates.com/companies/gb/1708301",""
"London Borough of Redbridge","http://opendatacommunities.org/doc/london-borough-council/redbridge","4BPUBLICTRAN","Public Transport","4CPARKING","Parking Services","REV","Revenue","R7039","Onstreet P and D other","04-SUPPLIES","Supplies And Services","04K","Miscellaneous expenses","6241","Pay and Display Machine Maintenance","60344780","201803",02/06/2017 00:00:00,15246,"79650","Traffic Management Systems","REDACTED DATA","PARKEON LTD","4869035","http://opencorporates.com/companies/gb/4869035","821077453"
"London Borough of Redbridge","http://opendatacommunities.org/doc/london-borough-council/redbridge","3BNONSCHFUND","Non-School Funding","3CNONSCH","Non Schools","REV","Revenue","R3962","Early Years - 3 and 4 Year Olds","05-THIRD","Third Party Payments","05A","Independent units within the council","6517","Non-Maintained Schools","3474514","201803",05/06/2017 00:00:00,18086.53,"59760","Playgroups, Nurseries and Creches","REDACTED DATA","PREMIER CHILDCARE T/A BALFOUR NURSERY NO2","",,""
"London Borough of Redbridge","http://opendatacommunities.org/doc/london-borough-council/redbridge","3BNONSCHFUND","Non-School Funding","3CYOUTH","Youth Service","REV","Revenue","R3478","Connexions","05-THIRD","Third Party Payments","05H","Private contractors","6915","Contractor Payments","60345929","201803",19/04/2017 00:00:00,15000,"29360","Educational Services","REDACTED DATA","PROSPECTS SERVICES LTD","3656764","http://opencorporates.com/companies/gb/3656764","801904361"
"London Borough of Redbridge","http://opendatacommunities.org/doc/london-borough-council/redbridge","3BLEACENTFND","LEA Centrally Held School Funds","3CNONSCH","Non Schools","REV","Revenue","R2231","Special School Top Up Fees","05-THIRD","Third Party Payments","05G","Other establishments","7432","OOB Pre 16 Top Up","60346558","201803",12/06/2017 00:00:00,17967,"48583","Local Government","REDACTED DATA","LONDON BOROUGH OF ISLINGTON","",,"232751479"
"London Borough of Redbridge","http://opendatacommunities.org/doc/london-borough-council/redbridge","3BINDSCHFUND","Individual School Funds","3CNONSCH","Non Schools","REV","Revenue","R2000","Primary Schools SEN Top Up Fees","05-THIRD","Third Party Payments","05G","Other establishments","7432","OOB Pre 16 Top Up","60346032","201803",16/06/2017 00:00:00,17900,"67981","Schools - Local Authority","REDACTED DATA","ST TERESA'S CATHOLIC PRIMARY SCHOOL","8610377","http://opencorporates.com/companies/gb/8610377",""
"London Borough of Redbridge","http://opendatacommunities.org/doc/london-borough-council/redbridge","3BNONSCHFUND","Non-School Funding","3CNONSCH","Non Schools","REV","Revenue","R3962","Early Years - 3 and 4 Year Olds","05-THIRD","Third Party Payments","05A","Independent units within the council","6517","Non-Maintained Schools","3476475","201803",21/06/2017 00:00:00,17767.29,"17580","Childcare Services","REDACTED DATA","KNOWLEDGEMS GLOBAL LTD","8675582","http://opencorporates.com/companies/gb/8675582",""
"London Borough of Redbridge","http://opendatacommunities.org/doc/london-borough-council/redbridge","3BNONSCHFUND","Non-School Funding","6CCHILLOOKED","Children Looked After","REV","Revenue","R2238","Looked After Children Placements LA","05-THIRD","Third Party Payments","05H","Private contractors","6907","Private Homes","60345031","201803",01/06/2017 00:00:00,17678.56,"64710","Residential Care Homes","REDACTED DATA","ALLIANCE CARE & EDUCATION LTD","5556312","http://opencorporates.com/companies/gb/5556312",""
"London Borough of Redbridge","http://opendatacommunities.org/doc/london-borough-council/redbridge","3BNONSCHFUND","Non-School Funding","3CNONSCH","Non Schools","REV","Revenue","R3962","Early Years - 3 and 4 Year Olds","05-THIRD","Third Party Payments","05A","Independent units within the council","6517","Non-Maintained Schools","3476440","201803",21/06/2017 00:00:00,17615.1,"59760","Playgroups, Nurseries and Creches","REDACTED DATA","DAY NURSERY LIETUTIS LTD","8367692","http://opencorporates.com/companies/gb/8367692",""
"London Borough of Redbridge","http://opendatacommunities.org/doc/london-borough-council/redbridge","6BPUBHEALTH","Public Health","6CSEXHEALTH","Sexual Health","REV","Revenue","R4806","SH Advice Prevention & Promotion","05-THIRD","Third Party Payments","05F","Voluntary associations","6800","Voluntary Organisations","60345624","201803",02/06/2017 00:00:00,17320.86,"48583","Local Government","REDACTED DATA","LONDON BOROUGH OF LAMBETH","",,"235884435"
"London Borough of Redbridge","http://opendatacommunities.org/doc/london-borough-council/redbridge","3BNONSCHFUND","Non-School Funding","3CNONSCH","Non Schools","REV","Revenue","R3962","Early Years - 3 and 4 Year Olds","05-THIRD","Third Party Payments","05A","Independent units within the council","6517","Non-Maintained Schools","3474605","201803",05/06/2017 00:00:00,17234.7,"17580","Childcare Services","REDACTED DATA","DIZZY DUCKS DAY NURSERY LTD","5120112","http://opencorporates.com/companies/gb/5120112",""
"London Borough of Redbridge","http://opendatacommunities.org/doc/london-borough-council/redbridge","1BOTHEROPI&E","Other Operating Income & Expenditure","1CTRADSURDEF","Trading Account Surpluses & Deficits","REV","Revenue","R9149","Building Cleaning (Holding)","02-PREMISES","Premises","02I","Grounds maintenance costs","4750","Grounds Maintenance","60345327","201803",02/06/2017 00:00:00,14221.02,"90043","Highway Maintenance","REDACTED DATA","S H GOSS & CO LTD","",,""
"London Borough of Redbridge","http://opendatacommunities.org/doc/london-borough-council/redbridge","3BNONSCHFUND","Non-School Funding","6CCHILLOOKED","Children Looked After","REV","Revenue","R2238","Looked After Children Placements LA","05-THIRD","Third Party Payments","05H","Private contractors","6907","Private Homes","60344568","201803",01/06/2017 00:00:00,16928.7,"64710","Residential Care Homes","REDACTED DATA","BETTERCARE KEYS LTD","NI053253","http://opencorporates.com/companies/gb/NI053253",""
"London Borough of Redbridge","http://opendatacommunities.org/doc/london-borough-council/redbridge","3BNONSCHFUND","Non-School Funding","3CNONSCH","Non Schools","REV","Revenue","R3962","Early Years - 3 and 4 Year Olds","05-THIRD","Third Party Payments","05A","Independent units within the council","6517","Non-Maintained Schools","3474541","201803",05/06/2017 00:00:00,16906.42,"59760","Playgroups, Nurseries and Creches","REDACTED DATA","ZIG ZAGS DAY NURSERY","",,""
"London Borough of Redbridge","http://opendatacommunities.org/doc/london-borough-council/redbridge","3BNONSCHFUND","Non-School Funding","3CNONSCH","Non Schools","REV","Revenue","R3963","Early Years - 2 Year Olds - Statutory Place Funding","05-THIRD","Third Party Payments","05A","Independent units within the council","6517","Non-Maintained Schools","3477097","201803",23/06/2017 00:00:00,16878.12,"17580","Childcare Services","REDACTED DATA","CHESTNUT NURSERY SCHOOL (NORFOLK) LTD","9175049","http://opencorporates.com/companies/gb/9175049",""
"London Borough of Redbridge","http://opendatacommunities.org/doc/london-borough-council/redbridge","3BNONSCHFUND","Non-School Funding","3CNONSCH","Non Schools","REV","Revenue","R3962","Early Years - 3 and 4 Year Olds","05-THIRD","Third Party Payments","05A","Independent units within the council","6517","Non-Maintained Schools","3476425","201803",21/06/2017 00:00:00,16860.8,"59760","Playgroups, Nurseries and Creches","REDACTED DATA","ZEEBA NURSERY LTD","6875085","http://opencorporates.com/companies/gb/6875085",""
"London Borough of Redbridge","http://opendatacommunities.org/doc/london-borough-council/redbridge","6BADULTSOCIA","Adult Social Care","6CADLEARNDIS","Adults Under 65 with Learning Disabilities","REV","Revenue","R4185","LD - Supported Living","06-TRANSFER","Transfer Payments","06B","Social Services Clients","7066","Supportive Lodgings (Transfer Payments)","90865198","201803",14/06/2017 00:00:00,-5171.55,"43419","Home Care Services","REDACTED DATA","AMAN SURA T/APATHWAY INDEPENDENT CARE & AUTISM SERVICES","",,""
"London Borough of Redbridge","http://opendatacommunities.org/doc/london-borough-council/redbridge","6BADULTSOCIA","Adult Social Care","6CADLEARNDIS","Adults Under 65 with Learning Disabilities","REV","Revenue","R4185","LD - Supported Living","06-TRANSFER","Transfer Payments","06B","Social Services Clients","7066","Supportive Lodgings (Transfer Payments)","90865198","201803",14/06/2017 00:00:00,1750.1,"43419","Home Care Services","REDACTED DATA","AMAN SURA T/APATHWAY INDEPENDENT CARE & AUTISM SERVICES","",,""
"London Borough of Redbridge","http://opendatacommunities.org/doc/london-borough-council/redbridge","6BADULTSOCIA","Adult Social Care","6CADLEARNDIS","Adults Under 65 with Learning Disabilities","REV","Revenue","R4185","LD - Supported Living","06-TRANSFER","Transfer Payments","06B","Social Services Clients","7066","Supportive Lodgings (Transfer Payments)","90865198","201803",14/06/2017 00:00:00,4837.28,"43419","Home Care Services","REDACTED DATA","AMAN SURA T/APATHWAY INDEPENDENT CARE & AUTISM SERVICES","",,""
"London Borough of Redbridge","http://opendatacommunities.org/doc/london-borough-council/redbridge","6BADULTSOCIA","Adult Social Care","6CADLEARNDIS","Adults Under 65 with Learning Disabilities","REV","Revenue","R4185","LD - Supported Living","06-TRANSFER","Transfer Payments","06B","Social Services Clients","7066","Supportive Lodgings (Transfer Payments)","90865198","201803",14/06/2017 00:00:00,250.01,"43419","Home Care Services","REDACTED DATA","AMAN SURA T/APATHWAY INDEPENDENT CARE & AUTISM SERVICES","",,""
"London Borough of Redbridge","http://opendatacommunities.org/doc/london-borough-council/redbridge","6BADULTSOCIA","Adult Social Care","6CADLEARNDIS","Adults Under 65 with Learning Disabilities","REV","Revenue","R4185","LD - Supported Living","06-TRANSFER","Transfer Payments","06B","Social Services Clients","7066","Supportive Lodgings (Transfer Payments)","90865198","201803",14/06/2017 00:00:00,6046.6,"43419","Home Care Services","REDACTED DATA","AMAN SURA T/APATHWAY INDEPENDENT CARE & AUTISM SERVICES","",,""
"London Borough of Redbridge","http://opendatacommunities.org/doc/london-borough-council/redbridge","6BADULTSOCIA","Adult Social Care","6CADLEARNDIS","Adults Under 65 with Learning Disabilities","REV","Revenue","R4185","LD - Supported Living","06-TRANSFER","Transfer Payments","06B","Social Services Clients","7066","Supportive Lodgings (Transfer Payments)","90865198","201803",14/06/2017 00:00:00,8875.51,"43419","Home Care Services","REDACTED DATA","AMAN SURA T/APATHWAY INDEPENDENT CARE & AUTISM SERVICES","",,""
"London Borough of Redbridge","http://opendatacommunities.org/doc/london-borough-council/redbridge","6BADULTSOCIA","Adult Social Care","6CADLEARNDIS","Adults Under 65 with Learning Disabilities","REV","Revenue","R4185","LD - Supported Living","06-TRANSFER","Transfer Payments","06B","Social Services Clients","7066","Supportive Lodgings (Transfer Payments)","90865198","201803",14/06/2017 00:00:00,225.01,"43419","Home Care Services","REDACTED DATA","AMAN SURA T/APATHWAY INDEPENDENT CARE & AUTISM SERVICES","",,""
"London Borough of Redbridge","http://opendatacommunities.org/doc/london-borough-council/redbridge","6BADULTSOCIA","Adult Social Care","6CADLEARNDIS","Adults Under 65 with Learning Disabilities","REV","Revenue","R4185","LD - Supported Living","09-INCOME","Income","09C","Customer and Client Receipts","8553","Care Package Charges","90865198","201803",14/06/2017 00:00:00,-154.25,"43419","Home Care Services","REDACTED DATA","AMAN SURA T/APATHWAY INDEPENDENT CARE & AUTISM SERVICES","",,""
"London Borough of Redbridge","http://opendatacommunities.org/doc/london-borough-council/redbridge","6BADULTSOCIA","Adult Social Care","6CADLEARNDIS","Adults Under 65 with Learning Disabilities","REV","Revenue","R4185","LD - Supported Living","09-INCOME","Income","09C","Customer and Client Receipts","8553","Care Package Charges","90865198","201803",14/06/2017 00:00:00,154.25,"43419","Home Care Services","REDACTED DATA","AMAN SURA T/APATHWAY INDEPENDENT CARE & AUTISM SERVICES","",,""
"London Borough of Redbridge","http://opendatacommunities.org/doc/london-borough-council/redbridge","3BLEACENTFND","LEA Centrally Held School Funds","3CNONSCH","Non Schools","REV","Revenue","R2004","SEN and CD Res Placements DSG","05-THIRD","Third Party Payments","05H","Private contractors","6906","Independent Schools","60346040","201803",10/03/2017 00:00:00,16800,"67860","Schools - Independent and Preparatory","REDACTED DATA","KEDLESTON SCHOOLS (LONDON) LTD T/AS LEAWAYS SCHOOL","6494539","http://opencorporates.com/companies/gb/6494539",""
"London Borough of Redbridge","http://opendatacommunities.org/doc/london-borough-council/redbridge","3BNONSCHFUND","Non-School Funding","6CCHILLOOKED","Children Looked After","REV","Revenue","R2238","Looked After Children Placements LA","05-THIRD","Third Party Payments","05H","Private contractors","6907","Private Homes","60344842","201803",05/06/2017 00:00:00,16800,"64710","Residential Care Homes","REDACTED DATA","POTTON HOMES LTD","6339219","http://opencorporates.com/companies/gb/6339219",""
"London Borough of Redbridge","http://opendatacommunities.org/doc/london-borough-council/redbridge","6BPUBHEALTH","Public Health","6CSEXHEALTH","Sexual Health","REV","Revenue","R4806","SH Advice Prevention & Promotion","05-THIRD","Third Party Payments","05F","Voluntary associations","6800","Voluntary Organisations","90861519","201803",12/06/2017 00:00:00,16797.12,"17020","Charities and Voluntary Organisations","REDACTED DATA","TERRENCE HIGGINS TRUST","1778149","http://opencorporates.com/companies/gb/1778149","564614042"
"London Borough of Redbridge","http://opendatacommunities.org/doc/london-borough-council/redbridge","9BNONBVO","Outside the BVACOP Objective Structure","9CNONBVO","Outside the BVACOP Objective Structure","CAP","Capital","C4330","Wanstead High School - feasibility","99-NONBV","Capital, Balance Sheet and Control","50B","Capital - Contracted Works","9055","External - Consultants Fees","60344555","201803",18/05/2017 00:00:00,13783.35,"4422","Architectural Services","REDACTED DATA","CURL LA TOURELLE ARCHITECTS","9896013","http://opencorporates.com/companies/gb/9896013","675096405"
"London Borough of Redbridge","http://opendatacommunities.org/doc/london-borough-council/redbridge","1BOTHEROPI&E","Other Operating Income & Expenditure","1CTRADSURDEF","Trading Account Surpluses & Deficits","REV","Revenue","R9252","IT Applications","04-SUPPLIES","Supplies And Services","04F","Communications and computing","5852","Computer Equipment - Repairs & Maintenance","60345441","201803",07/06/2017 00:00:00,13704.08,"76510","Telecommunication Services","REDACTED DATA","VIRGIN MEDIA PAYMENTS LTD(MAIN ACCT)","1785381","http://opencorporates.com/companies/gb/1785381","591819014"
"London Borough of Redbridge","http://opendatacommunities.org/doc/london-borough-council/redbridge","9BNONBVO","Outside the BVACOP Objective Structure","9CNONBVO","Outside the BVACOP Objective Structure","CAP","Capital","C2002","Disabled Facilities Grants (DFG)","99-NONBV","Capital, Balance Sheet and Control","50H","Capital - Deferred Charges","9251","Housing Grants - Mandatory","70095472","201803",11/04/2017 00:00:00,16406.4,"11040","Builders","REDACTED DATA","SETFORM PROJECTS LTD (GRANT WORK)","5294450","http://opencorporates.com/companies/gb/5294450","853274223"
"London Borough of Redbridge","http://opendatacommunities.org/doc/london-borough-council/redbridge","3BNONSCHFUND","Non-School Funding","3CNONSCH","Non Schools","REV","Revenue","R3962","Early Years - 3 and 4 Year Olds","05-THIRD","Third Party Payments","05A","Independent units within the council","6517","Non-Maintained Schools","3474608","201803",05/06/2017 00:00:00,15876.3,"59760","Playgroups, Nurseries and Creches","REDACTED DATA","ILFORD LANE UNDER 5S PRESCHOOL","",,""
"London Borough of Redbridge","http://opendatacommunities.org/doc/london-borough-council/redbridge","3BINDSCHFUND","Individual School Funds","3CDELSECOND","Delegated Individual Secondary School Budgets","REV","Revenue","S2095","TRINITY : Exams general","04-SUPPLIES","Supplies And Services","04H","Grants and subscriptions","5955","Fees","60346319","201803",08/02/2017 00:00:00,15704.5,"62450","Publishers","REDACTED DATA","PEARSON EDUCATION LTD(HARLOW)","8728828","http://opencorporates.com/companies/gb/8728828","278537121"
"London Borough of Redbridge","http://opendatacommunities.org/doc/london-borough-council/redbridge","3BNONSCHFUND","Non-School Funding","3CNONSCH","Non Schools","REV","Revenue","R3962","Early Years - 3 and 4 Year Olds","05-THIRD","Third Party Payments","05A","Independent units within the council","6517","Non-Maintained Schools","3476482","201803",21/06/2017 00:00:00,15700.02,"59760","Playgroups, Nurseries and Creches","REDACTED DATA","ILFORD LANE UNDER 5S PRESCHOOL","",,""
"London Borough of Redbridge","http://opendatacommunities.org/doc/london-borough-council/redbridge","3BNONSCHFUND","Non-School Funding","3CNONSCH","Non Schools","REV","Revenue","R3962","Early Years - 3 and 4 Year Olds","05-THIRD","Third Party Payments","05A","Independent units within the council","6517","Non-Maintained Schools","3474520","201803",05/06/2017 00:00:00,15451.8,"59760","Playgroups, Nurseries and Creches","REDACTED DATA","LITTLE RASCALS (ILFORD) LTD","5813376","http://opencorporates.com/companies/gb/5813376",""
"London Borough of Redbridge","http://opendatacommunities.org/doc/london-borough-council/redbridge","3BNONSCHFUND","Non-School Funding","3CNONSCH","Non Schools","REV","Revenue","R3962","Early Years - 3 and 4 Year Olds","05-THIRD","Third Party Payments","05A","Independent units within the council","6517","Non-Maintained Schools","3476493","201803",21/06/2017 00:00:00,15297.75,"17580","Childcare Services","REDACTED DATA","ELJOY NURSERY LTD","9383003","http://opencorporates.com/companies/gb/9383003",""
"London Borough of Redbridge","http://opendatacommunities.org/doc/london-borough-council/redbridge","3BNONSCHFUND","Non-School Funding","6CCHILLOOKED","Children Looked After","REV","Revenue","R2238","Looked After Children Placements LA","05-THIRD","Third Party Payments","05H","Private contractors","6907","Private Homes","60344799","201803",01/06/2017 00:00:00,15192.85,"64710","Residential Care Homes","REDACTED DATA","ALLIANCE CARE & EDUCATION LTD","5556312","http://opencorporates.com/companies/gb/5556312",""
"London Borough of Redbridge","http://opendatacommunities.org/doc/london-borough-council/redbridge","3BNONSCHFUND","Non-School Funding","6CCHILLOOKED","Children Looked After","REV","Revenue","R2238","Looked After Children Placements LA","05-THIRD","Third Party Payments","05H","Private contractors","6907","Private Homes","60346094","201803",20/06/2017 00:00:00,15124.8,"64710","Residential Care Homes","REDACTED DATA","SATASH COMMUNITY CARE PROJECT LTD","5370263","http://opencorporates.com/companies/gb/5370263",""
"London Borough of Redbridge","http://opendatacommunities.org/doc/london-borough-council/redbridge","9BNONBVO","Outside the BVACOP Objective Structure","9CNONBVO","Outside the BVACOP Objective Structure","CAP","Capital","C2002","Disabled Facilities Grants (DFG)","99-NONBV","Capital, Balance Sheet and Control","50H","Capital - Deferred Charges","9251","Housing Grants - Mandatory","70095371","201803",19/06/2017 00:00:00,15000,"11040","Builders","REDACTED DATA","TRIBES COMMERCIAL LIMITED (GRANT WORK)","6893790","http://opencorporates.com/companies/gb/6893790",""
"London Borough of Redbridge","http://opendatacommunities.org/doc/london-borough-council/redbridge","9BNONBVO","Outside the BVACOP Objective Structure","9CNONBVO","Outside the BVACOP Objective Structure","CAP","Capital","C2108","Aids and Adaptations","99-NONBV","Capital, Balance Sheet and Control","50E","Capital - Contract Payments","9150","Main Contract","60346925","201803",20/06/2017 00:00:00,12450,"9321","Boilers - Servicing, Replacements and Repairs","REDACTED DATA","GRAYSTONE BUILDING SERVICES LTD","4490869","http://opencorporates.com/companies/gb/4490869","798566253"
"London Borough of Redbridge","http://opendatacommunities.org/doc/london-borough-council/redbridge","6BADULTSOCIA","Adult Social Care","6COLDINCMENT","Older People (65 or over) incl. Older Mentally Ill","REV","Revenue","R4378","OP Residential","05-THIRD","Third Party Payments","05F","Voluntary associations","6802","Residential Homes","90864869","201803",14/06/2017 00:00:00,19245.52,"17020","Charities and Voluntary Organisations","REDACTED DATA","OUTWARD","2151434","http://opencorporates.com/companies/gb/2151434",""
"London Borough of Redbridge","http://opendatacommunities.org/doc/london-borough-council/redbridge","6BADULTSOCIA","Adult Social Care","6COLDINCMENT","Older People (65 or over) incl. Older Mentally Ill","REV","Revenue","R4378","OP Residential","05-THIRD","Third Party Payments","05F","Voluntary associations","6802","Residential Homes","90864869","201803",14/06/2017 00:00:00,-4428.25,"17020","Charities and Voluntary Organisations","REDACTED DATA","OUTWARD","2151434","http://opencorporates.com/companies/gb/2151434",""
"London Borough of Redbridge","http://opendatacommunities.org/doc/london-borough-council/redbridge","6BADULTSOCIA","Adult Social Care","6COLDINCMENT","Older People (65 or over) incl. Older Mentally Ill","REV","Revenue","R4378","OP Residential","05-THIRD","Third Party Payments","05F","Voluntary associations","6802","Residential Homes","90864869","201803",14/06/2017 00:00:00,1732.79,"17020","Charities and Voluntary Organisations","REDACTED DATA","OUTWARD","2151434","http://opencorporates.com/companies/gb/2151434",""
"London Borough of Redbridge","http://opendatacommunities.org/doc/london-borough-council/redbridge","6BADULTSOCIA","Adult Social Care","6COLDINCMENT","Older People (65 or over) incl. Older Mentally Ill","REV","Revenue","R4378","OP Residential","09-INCOME","Income","09C","Customer and Client Receipts","8555","Accommodation Charges","90864869","201803",14/06/2017 00:00:00,-168.04,"17020","Charities and Voluntary Organisations","REDACTED DATA","OUTWARD","2151434","http://opencorporates.com/companies/gb/2151434",""
"London Borough of Redbridge","http://opendatacommunities.org/doc/london-borough-council/redbridge","6BADULTSOCIA","Adult Social Care","6COLDINCMENT","Older People (65 or over) incl. Older Mentally Ill","REV","Revenue","R4378","OP Residential","09-INCOME","Income","09C","Customer and Client Receipts","8555","Accommodation Charges","90864869","201803",14/06/2017 00:00:00,-1882.3,"17020","Charities and Voluntary Organisations","REDACTED DATA","OUTWARD","2151434","http://opencorporates.com/companies/gb/2151434",""
"London Borough of Redbridge","http://opendatacommunities.org/doc/london-borough-council/redbridge","6BADULTSOCIA","Adult Social Care","6COLDINCMENT","Older People (65 or over) incl. Older Mentally Ill","REV","Revenue","R4378","OP Residential","09-INCOME","Income","09C","Customer and Client Receipts","8555","Accommodation Charges","90864869","201803",14/06/2017 00:00:00,429.44,"17020","Charities and Voluntary Organisations","REDACTED DATA","OUTWARD","2151434","http://opencorporates.com/companies/gb/2151434",""
"London Borough of Redbridge","http://opendatacommunities.org/doc/london-borough-council/redbridge","9BNONBVO","Outside the BVACOP Objective Structure","9CNONBVO","Outside the BVACOP Objective Structure","CAP","Capital","C1713","Fullwell Cross Leisure Centre - Replacement Boiler","99-NONBV","Capital, Balance Sheet and Control","50E","Capital - Contract Payments","9150","Main Contract","3474397","201803",23/05/2017 00:00:00,12371,"0","Not Classified","REDACTED DATA","HYDROSPEC LTD","2319035","http://opencorporates.com/companies/gb/2319035","506475349"
"London Borough of Redbridge","http://opendatacommunities.org/doc/london-borough-council/redbridge","5BGFHOUSING","General Fund Housing","5CHOMELESS","Homelessness","REV","Revenue","R5634","Bathurst Hostel","02-PREMISES","Premises","02A","Repairs, alteration and maintenance of buildings","3026","Minor Maintenance","60344916","201803",06/06/2017 00:00:00,12325,"54687","Fire Safety Risk Assessments","REDACTED DATA","DOORCHECK LTD","7509148","http://opencorporates.com/companies/gb/7509148","129605464"
"London Borough of Redbridge","http://opendatacommunities.org/doc/london-borough-council/redbridge","3BNONSCHFUND","Non-School Funding","3CNONSCH","Non Schools","REV","Revenue","R3962","Early Years - 3 and 4 Year Olds","05-THIRD","Third Party Payments","05A","Independent units within the council","6517","Non-Maintained Schools","3474603","201803",05/06/2017 00:00:00,14693.36,"59760","Playgroups, Nurseries and Creches","REDACTED DATA","LITTLE LEARNERS ILFORD","CHARITY251549","http://opencorporates.com/companies/gb/CHARITY251549",""
"London Borough of Redbridge","http://opendatacommunities.org/doc/london-borough-council/redbridge","3BINDSCHFUND","Individual School Funds","3CNONSCH","Non Schools","REV","Revenue","R2001","Secondary Schools SEN Top Up Fees","05-THIRD","Third Party Payments","05G","Other establishments","7430","LBR Pre 16 Top Up","60346345","201803",20/06/2017 00:00:00,14473,"67981","Schools - Local Authority","REDACTED DATA","BEACON MULTI ACADEMY TRUST LTD","",,"246546447"
"London Borough of Redbridge","http://opendatacommunities.org/doc/london-borough-council/redbridge","7BCDC","Corporate & Democratic Core","7CCORPMGT","Corporate Management","REV","Revenue","R8501","Corporate Director of Place","01-EMPLOYEES","Employees","01A","Direct employee expenses","4","Agency Staff - Pay","60344247","201803",26/05/2017 00:00:00,12036,"31230","Employment and Recruitment Agencies","REDACTED DATA","GATENBY SANDERSON LTD","4451141","http://opencorporates.com/companies/gb/4451141","804465047"
"London Borough of Redbridge","http://opendatacommunities.org/doc/london-borough-council/redbridge","3BNONSCHFUND","Non-School Funding","3CNONSCH","Non Schools","REV","Revenue","R3962","Early Years - 3 and 4 Year Olds","05-THIRD","Third Party Payments","05A","Independent units within the council","6517","Non-Maintained Schools","3474553","201803",05/06/2017 00:00:00,14433,"59760","Playgroups, Nurseries and Creches","REDACTED DATA","LITTLE CHERUBS KINDERGARTEN LTD","",,""
"London Borough of Redbridge","http://opendatacommunities.org/doc/london-borough-council/redbridge","1BCENTRALPUB","Central Services to the Public","1CREGBDM","Reg. of Births, Deaths & Marriages","REV","Revenue","R3970","Corporate Policy and Performance","04-SUPPLIES","Supplies And Services","04H","Grants and subscriptions","5956","Subscriptions","60345414","201803",16/05/2017 00:00:00,12000,"52708","Network and Data Communications","REDACTED DATA","NEW LOCAL GOVERNMENT NETWORK LTD","3598256","http://opencorporates.com/companies/gb/3598256","719128726"
"London Borough of Redbridge","http://opendatacommunities.org/doc/london-borough-council/redbridge","3BNONSCHFUND","Non-School Funding","3CNONSCH","Non Schools","REV","Revenue","R3962","Early Years - 3 and 4 Year Olds","05-THIRD","Third Party Payments","05A","Independent units within the council","6517","Non-Maintained Schools","3476392","201803",21/06/2017 00:00:00,14378.55,"59760","Playgroups, Nurseries and Creches","REDACTED DATA","SELECT ENTERPRISES(S/EAST) LTD - KIDS INC NURSERIES (CLARKS)","2988507","http://opencorporates.com/companies/gb/2988507",""
"London Borough of Redbridge","http://opendatacommunities.org/doc/london-borough-council/redbridge","3BNONSCHFUND","Non-School Funding","3CNONSCH","Non Schools","REV","Revenue","R3962","Early Years - 3 and 4 Year Olds","05-THIRD","Third Party Payments","05A","Independent units within the council","6517","Non-Maintained Schools","3476449","201803",21/06/2017 00:00:00,14356.68,"59760","Playgroups, Nurseries and Creches","REDACTED DATA","JUNGLE MONKEYS LTD","8637539","http://opencorporates.com/companies/gb/8637539",""
"London Borough of Redbridge","http://opendatacommunities.org/doc/london-borough-council/redbridge","3BNONSCHFUND","Non-School Funding","3CNONSCH","Non Schools","REV","Revenue","R3962","Early Years - 3 and 4 Year Olds","05-THIRD","Third Party Payments","05A","Independent units within the council","6517","Non-Maintained Schools","3474556","201803",05/06/2017 00:00:00,14348.1,"59760","Playgroups, Nurseries and Creches","REDACTED DATA","PLAYDAYS MONTESSORI NURSERY SCHOOL","",,""
"London Borough of Redbridge","http://opendatacommunities.org/doc/london-borough-council/redbridge","3BNONSCHFUND","Non-School Funding","3CNONSCH","Non Schools","REV","Revenue","R3962","Early Years - 3 and 4 Year Olds","05-THIRD","Third Party Payments","05A","Independent units within the council","6517","Non-Maintained Schools","3476454","201803",21/06/2017 00:00:00,14278.61,"59760","Playgroups, Nurseries and Creches","REDACTED DATA","SPARROWS TRADING CO LTD - ALL SAINTS GOODMAYES","8626895","http://opencorporates.com/companies/gb/8626895",""
"London Borough of Redbridge","http://opendatacommunities.org/doc/london-borough-council/redbridge","6BADULTSOCIA","Adult Social Care","6CADLEARNDIS","Adults Under 65 with Learning Disabilities","REV","Revenue","R4185","LD - Supported Living","06-TRANSFER","Transfer Payments","06B","Social Services Clients","7066","Supportive Lodgings (Transfer Payments)","90864875","201803",02/06/2017 00:00:00,2106,"64710","Residential Care Homes","REDACTED DATA","SEBOTT SOLUTIONS LTD T/A DIVINE LODGE","5783753","http://opencorporates.com/companies/gb/5783753",""
"London Borough of Redbridge","http://opendatacommunities.org/doc/london-borough-council/redbridge","6BADULTSOCIA","Adult Social Care","6CADLEARNDIS","Adults Under 65 with Learning Disabilities","REV","Revenue","R4185","LD - Supported Living","06-TRANSFER","Transfer Payments","06B","Social Services Clients","7066","Supportive Lodgings (Transfer Payments)","90864875","201803",02/06/2017 00:00:00,12168,"64710","Residential Care Homes","REDACTED DATA","SEBOTT SOLUTIONS LTD T/A DIVINE LODGE","5783753","http://opencorporates.com/companies/gb/5783753",""
"London Borough of Redbridge","http://opendatacommunities.org/doc/london-borough-council/redbridge","1BCENTRALPUB","Central Services to the Public","1CLOCALTAXCO","Local Tax Collection","REV","Revenue","R5760","Local Tax Collection","04-SUPPLIES","Supplies And Services","04D","Printing, stationery and general office expenses","5706","Printing","60343019","201803",01/05/2017 00:00:00,11860.07,"49180","Mailing Houses","REDACTED DATA","DSI BILLING SERVICES","3823171","http://opencorporates.com/companies/gb/3823171","739980671"
"London Borough of Redbridge","http://opendatacommunities.org/doc/london-borough-council/redbridge","2BENVIRONMEN","Environmental Services","2CWASTECOLLN","Waste Collection","REV","Revenue","R6211","Kerbside Recycling","04-SUPPLIES","Supplies And Services","04A","Equipment, furniture and materials","5508","General Consumables","60345015","201803",26/04/2017 00:00:00,11739,"21760","Container Mnfrs","REDACTED DATA","STRAIGHT PLC","2923140","http://opencorporates.com/companies/gb/2923140","664757787"
"London Borough of Redbridge","http://opendatacommunities.org/doc/london-borough-council/redbridge","3BNONSCHFUND","Non-School Funding","3CNONSCH","Non Schools","REV","Revenue","R3962","Early Years - 3 and 4 Year Olds","05-THIRD","Third Party Payments","05A","Independent units within the council","6517","Non-Maintained Schools","3474540","201803",05/06/2017 00:00:00,13940.58,"59760","Playgroups, Nurseries and Creches","REDACTED DATA","TAMBA DAY NURSERY LIMITED","",,""
"London Borough of Redbridge","http://opendatacommunities.org/doc/london-borough-council/redbridge","3BNONSCHFUND","Non-School Funding","3CNONSCH","Non Schools","REV","Revenue","R3962","Early Years - 3 and 4 Year Olds","05-THIRD","Third Party Payments","05A","Independent units within the council","6517","Non-Maintained Schools","3476372","201803",21/06/2017 00:00:00,13810.68,"59760","Playgroups, Nurseries and Creches","REDACTED DATA","JEAN SMITH (BUSY BODIES PRESCHOOL NURSERY)","",,""
"London Borough of Redbridge","http://opendatacommunities.org/doc/london-borough-council/redbridge","3BNONSCHFUND","Non-School Funding","3CNONSCH","Non Schools","REV","Revenue","R3962","Early Years - 3 and 4 Year Olds","05-THIRD","Third Party Payments","05A","Independent units within the council","6517","Non-Maintained Schools","3474525","201803",05/06/2017 00:00:00,13685.88,"17020","Charities and Voluntary Organisations","REDACTED DATA","PARKSIDE COMMUNITY ASSOCIATION","IP28871R","http://opencorporates.com/companies/gb/IP28871R",""
"London Borough of Redbridge","http://opendatacommunities.org/doc/london-borough-council/redbridge","3BNONSCHFUND","Non-School Funding","6CCHILLOOKED","Children Looked After","REV","Revenue","R2238","Looked After Children Placements LA","05-THIRD","Third Party Payments","05H","Private contractors","6907","Private Homes","60344452","201803",01/06/2017 00:00:00,13684.2,"64710","Residential Care Homes","REDACTED DATA","HORIZON CARE & EDUCATION GROUP LTD","6454959","http://opencorporates.com/companies/gb/6454959","135558207"
"London Borough of Redbridge","http://opendatacommunities.org/doc/london-borough-council/redbridge","3BNONSCHFUND","Non-School Funding","6CCHILLOOKED","Children Looked After","REV","Revenue","R2238","Looked After Children Placements LA","05-THIRD","Third Party Payments","05H","Private contractors","6907","Private Homes","60344453","201803",01/06/2017 00:00:00,13684.2,"64710","Residential Care Homes","REDACTED DATA","HORIZON CARE & EDUCATION GROUP LTD","6454959","http://opencorporates.com/companies/gb/6454959","135558207"
"London Borough of Redbridge","http://opendatacommunities.org/doc/london-borough-council/redbridge","3BLEACENTFND","LEA Centrally Held School Funds","3CSCHSTRATMG","Schools Strategic Management","REV","Revenue","R3017","Early Years & Childcare Improvement Team South","04-SUPPLIES","Supplies And Services","04K","Miscellaneous expenses","6280","Miscellaneous Expenditure","60345529","201803",12/06/2017 00:00:00,13530,"67330","Schools and Colleges - Further Education","REDACTED DATA","NEW CITY COLLEGE CORPORATION","3604104","http://opencorporates.com/companies/gb/3604104","115105466"
"London Borough of Redbridge","http://opendatacommunities.org/doc/london-borough-council/redbridge","3BINDSCHFUND","Individual School Funds","3CDELSECOND","Delegated Individual Secondary School Budgets","REV","Revenue","S3529","KING SOLOMON - IT Whole School Expenditure","04-SUPPLIES","Supplies And Services","04F","Communications and computing","5863","Curriculum Hardware","60346969","201803",28/06/2017 00:00:00,11264.45,"35240","Financial Services","REDACTED DATA","INVESTEC ASSET FINANCE PLC","2179313","http://opencorporates.com/companies/gb/2179313","480912639"
"London Borough of Redbridge","http://opendatacommunities.org/doc/london-borough-council/redbridge","3BNONSCHFUND","Non-School Funding","3CNONSCH","Non Schools","REV","Revenue","R3962","Early Years - 3 and 4 Year Olds","05-THIRD","Third Party Payments","05A","Independent units within the council","6517","Non-Maintained Schools","3476403","201803",21/06/2017 00:00:00,13505.73,"59760","Playgroups, Nurseries and Creches","REDACTED DATA","AL-FALAH THE SUNFLOWER NURSERY","",,""
"London Borough of Redbridge","http://opendatacommunities.org/doc/london-borough-council/redbridge","3BLEACENTFND","LEA Centrally Held School Funds","3CNONSCH","Non Schools","REV","Revenue","R2231","Special School Top Up Fees","05-THIRD","Third Party Payments","05G","Other establishments","7432","OOB Pre 16 Top Up","60344550","201803",31/05/2017 00:00:00,13500,"67981","Schools - Local Authority","REDACTED DATA","HORNBEAM ACADEMY TRUST T/AS WILLIAM MORRIS SCHOOL","8153765","http://opencorporates.com/companies/gb/8153765","139827476"
"London Borough of Redbridge","http://opendatacommunities.org/doc/london-borough-council/redbridge","3BNONSCHFUND","Non-School Funding","3CNONSCH","Non Schools","REV","Revenue","R3962","Early Years - 3 and 4 Year Olds","05-THIRD","Third Party Payments","05A","Independent units within the council","6517","Non-Maintained Schools","3476377","201803",21/06/2017 00:00:00,13341.84,"59760","Playgroups, Nurseries and Creches","REDACTED DATA","OAKFIELD PRE-SCH PLAYGROUP","",,""
"London Borough of Redbridge","http://opendatacommunities.org/doc/london-borough-council/redbridge","3BNONSCHFUND","Non-School Funding","3CNONSCH","Non Schools","REV","Revenue","R3962","Early Years - 3 and 4 Year Olds","05-THIRD","Third Party Payments","05A","Independent units within the council","6517","Non-Maintained Schools","3476429","201803",21/06/2017 00:00:00,13336.5,"59760","Playgroups, Nurseries and Creches","REDACTED DATA","PEDAGOGY AURAS UK LTD T/A BARLEY LANE PRESCHOLL & AFTER SCHOOL","7181677","http://opencorporates.com/companies/gb/7181677",""
"London Borough of Redbridge","http://opendatacommunities.org/doc/london-borough-council/redbridge","9BNONBVO","Outside the BVACOP Objective Structure","9CNONBVO","Outside the BVACOP Objective Structure","CAP","Capital","C2105","Communal","99-NONBV","Capital, Balance Sheet and Control","50E","Capital - Contract Payments","9150","Main Contract","60344351","201803",31/05/2017 00:00:00,11100,"9321","Boilers - Servicing, Replacements and Repairs","REDACTED DATA","THAMES ENGINEERING & MAINTENANCE SERVICES LTD","5979298","http://opencorporates.com/companies/gb/5979298","893640590"
"London Borough of Redbridge","http://opendatacommunities.org/doc/london-borough-council/redbridge","3BNONSCHFUND","Non-School Funding","3CNONSCH","Non Schools","REV","Revenue","R3962","Early Years - 3 and 4 Year Olds","05-THIRD","Third Party Payments","05A","Independent units within the council","6517","Non-Maintained Schools","3476499","201803",21/06/2017 00:00:00,13319.36,"17580","Childcare Services","REDACTED DATA","KIDDY CARE NURSERY LTD","10249193","http://opencorporates.com/companies/gb/10249193",""
"London Borough of Redbridge","http://opendatacommunities.org/doc/london-borough-council/redbridge","3BNONSCHFUND","Non-School Funding","6CCHILLOOKED","Children Looked After","REV","Revenue","R2238","Looked After Children Placements LA","05-THIRD","Third Party Payments","05H","Private contractors","6964","Mother & Baby Assess Residential","60345530","201803",06/06/2017 00:00:00,13285.67,"64710","Residential Care Homes","REDACTED DATA","CARE 2 SHARE LTD T/A CARE2 SHARE 1 (FAMILY ASSESSMENT CENTRE)","4431139","http://opencorporates.com/companies/gb/4431139",""
"London Borough of Redbridge","http://opendatacommunities.org/doc/london-borough-council/redbridge","6BADULTSOCIA","Adult Social Care","6COLDINCMENT","Older People (65 or over) incl. Older Mentally Ill","REV","Revenue","R4385","OP Nursing","05-THIRD","Third Party Payments","05H","Private contractors","6909","Nursing Homes","90865258","201803",14/06/2017 00:00:00,5535.55,"53350","Nursing Homes","REDACTED DATA","BUPA CARE HOMES(SEABROOKE MANOR)","",,"239731641"
"London Borough of Redbridge","http://opendatacommunities.org/doc/london-borough-council/redbridge","6BADULTSOCIA","Adult Social Care","6COLDINCMENT","Older People (65 or over) incl. Older Mentally Ill","REV","Revenue","R4385","OP Nursing","05-THIRD","Third Party Payments","05H","Private contractors","6909","Nursing Homes","90865258","201803",14/06/2017 00:00:00,2026.88,"53350","Nursing Homes","REDACTED DATA","BUPA CARE HOMES(SEABROOKE MANOR)","",,"239731641"
"London Borough of Redbridge","http://opendatacommunities.org/doc/london-borough-council/redbridge","6BADULTSOCIA","Adult Social Care","6COLDINCMENT","Older People (65 or over) incl. Older Mentally Ill","REV","Revenue","R4385","OP Nursing","09-INCOME","Income","09C","Customer and Client Receipts","8557","Nursing Home Charges","90865258","201803",14/06/2017 00:00:00,638.72,"53350","Nursing Homes","REDACTED DATA","BUPA CARE HOMES(SEABROOKE MANOR)","",,"239731641"
"London Borough of Redbridge","http://opendatacommunities.org/doc/london-borough-council/redbridge","6BADULTSOCIA","Adult Social Care","6COLDINCMENT","Older People (65 or over) incl. Older Mentally Ill","REV","Revenue","R4385","OP Nursing","09-INCOME","Income","09C","Customer and Client Receipts","8557","Nursing Home Charges","90865258","201803",14/06/2017 00:00:00,5067.2,"53350","Nursing Homes","REDACTED DATA","BUPA CARE HOMES(SEABROOKE MANOR)","",,"239731641"
"London Borough of Redbridge","http://opendatacommunities.org/doc/london-borough-council/redbridge","6BSOCIALSERV","Social Services","6CCHILLOOKED","Children Looked After","REV","Revenue","R2139","CQ and F - CAMHS","05-THIRD","Third Party Payments","05A","Independent units within the council","6513","Agency & Contracted Services","60329338","201803",12/12/2016 00:00:00,13250.5,"42200","Health Authorities","REDACTED DATA","NORTH EAST LONDON NHS FOUNDATION TRUST","",,"654404447"
"London Borough of Redbridge","http://opendatacommunities.org/doc/london-borough-council/redbridge","6BSOCIALSERV","Social Services","6CCHILLOOKED","Children Looked After","REV","Revenue","R2139","CQ and F - CAMHS","05-THIRD","Third Party Payments","05A","Independent units within the council","6513","Agency & Contracted Services","60329339","201803",12/12/2016 00:00:00,13250.5,"42200","Health Authorities","REDACTED DATA","NORTH EAST LONDON NHS FOUNDATION TRUST","",,"654404447"
"London Borough of Redbridge","http://opendatacommunities.org/doc/london-borough-council/redbridge","6BSOCIALSERV","Social Services","6CCHILLOOKED","Children Looked After","REV","Revenue","R2139","CQ and F - CAMHS","05-THIRD","Third Party Payments","05A","Independent units within the council","6513","Agency & Contracted Services","60329340","201803",12/12/2016 00:00:00,13250.5,"42200","Health Authorities","REDACTED DATA","NORTH EAST LONDON NHS FOUNDATION TRUST","",,"654404447"
"London Borough of Redbridge","http://opendatacommunities.org/doc/london-borough-council/redbridge","3BNONSCHFUND","Non-School Funding","3CNONSCH","Non Schools","REV","Revenue","R3962","Early Years - 3 and 4 Year Olds","05-THIRD","Third Party Payments","05A","Independent units within the council","6517","Non-Maintained Schools","3474571","201803",05/06/2017 00:00:00,13244.4,"59760","Playgroups, Nurseries and Creches","REDACTED DATA","NOREEN HASHMI T/A KIDS AT PLAY","9921556294","http://opencorporates.com/companies/gb/9921556294",""
"London Borough of Redbridge","http://opendatacommunities.org/doc/london-borough-council/redbridge","3BNONSCHFUND","Non-School Funding","3CNONSCH","Non Schools","REV","Revenue","R3962","Early Years - 3 and 4 Year Olds","05-THIRD","Third Party Payments","05A","Independent units within the council","6517","Non-Maintained Schools","3476450","201803",21/06/2017 00:00:00,13148.85,"53088","Nurseries and Creches","REDACTED DATA","JUST4KIDS PRESCHOOL LTD","9104065","http://opencorporates.com/companies/gb/9104065","194835956"
"London Borough of Redbridge","http://opendatacommunities.org/doc/london-borough-council/redbridge","3BNONSCHFUND","Non-School Funding","3CNONSCH","Non Schools","REV","Revenue","R3962","Early Years - 3 and 4 Year Olds","05-THIRD","Third Party Payments","05A","Independent units within the council","6517","Non-Maintained Schools","3474546","201803",05/06/2017 00:00:00,13136.86,"59760","Playgroups, Nurseries and Creches","REDACTED DATA","CAMBRIDGE DAY NURSERY LTD","",,""
"London Borough of Redbridge","http://opendatacommunities.org/doc/london-borough-council/redbridge","3BNONSCHFUND","Non-School Funding","3CNONSCH","Non Schools","REV","Revenue","R3962","Early Years - 3 and 4 Year Olds","05-THIRD","Third Party Payments","05A","Independent units within the council","6517","Non-Maintained Schools","3474522","201803",05/06/2017 00:00:00,12921.78,"59760","Playgroups, Nurseries and Creches","REDACTED DATA","DRIVE PRE-SCHOOL","",,""
"London Borough of Redbridge","http://opendatacommunities.org/doc/london-borough-council/redbridge","3BNONSCHFUND","Non-School Funding","6CCHILLOOKED","Children Looked After","REV","Revenue","R2238","Looked After Children Placements LA","05-THIRD","Third Party Payments","05H","Private contractors","6907","Private Homes","60346531","201803",26/05/2017 00:00:00,12848.88,"17020","Charities and Voluntary Organisations","REDACTED DATA","BARNARDOS (TANNERS LANE)","1227919","http://opencorporates.com/companies/gb/1227919","507477337"
"London Borough of Redbridge","http://opendatacommunities.org/doc/london-borough-council/redbridge","7BCDC","Corporate & Democratic Core","7CCORPMGT","Corporate Management","REV","Revenue","R8501","Corporate Director of Place","01-EMPLOYEES","Employees","01A","Direct employee expenses","4","Agency Staff - Pay","60344428","201803",31/05/2017 00:00:00,10620,"31230","Employment and Recruitment Agencies","REDACTED DATA","GATENBY SANDERSON LTD","4451141","http://opencorporates.com/companies/gb/4451141","804465047"
"London Borough of Redbridge","http://opendatacommunities.org/doc/london-borough-council/redbridge","3BNONSCHFUND","Non-School Funding","3CNONSCH","Non Schools","REV","Revenue","R3962","Early Years - 3 and 4 Year Olds","05-THIRD","Third Party Payments","05A","Independent units within the council","6517","Non-Maintained Schools","3476508","201803",21/06/2017 00:00:00,12735.9,"67981","Schools - Local Authority","REDACTED DATA","ST AIDAN'S CATHOLIC PRIMARY ACADEMY","",,""
"London Borough of Redbridge","http://opendatacommunities.org/doc/london-borough-council/redbridge","3BNONSCHFUND","Non-School Funding","3CNONSCH","Non Schools","REV","Revenue","R3962","Early Years - 3 and 4 Year Olds","05-THIRD","Third Party Payments","05A","Independent units within the council","6517","Non-Maintained Schools","3476445","201803",21/06/2017 00:00:00,12711.13,"53088","Nurseries and Creches","REDACTED DATA","JUST LEARNING LTD (BUSY BEES ILFORD)","2809756","http://opencorporates.com/companies/gb/2809756",""
"London Borough of Redbridge","http://opendatacommunities.org/doc/london-borough-council/redbridge","3BNONSCHFUND","Non-School Funding","3CNONSCH","Non Schools","REV","Revenue","R3962","Early Years - 3 and 4 Year Olds","05-THIRD","Third Party Payments","05A","Independent units within the council","6517","Non-Maintained Schools","3476399","201803",21/06/2017 00:00:00,12706.49,"59760","Playgroups, Nurseries and Creches","REDACTED DATA","ZIG ZAGS DAY NURSERY","",,""
"London Borough of Redbridge","http://opendatacommunities.org/doc/london-borough-council/redbridge","3BNONSCHFUND","Non-School Funding","6CCHILLOOKED","Children Looked After","REV","Revenue","R2238","Looked After Children Placements LA","05-THIRD","Third Party Payments","05H","Private contractors","6964","Mother & Baby Assess Residential","60344729","201803",01/06/2017 00:00:00,12642.86,"64710","Residential Care Homes","REDACTED DATA","ONEONECOCO","5578324","http://opencorporates.com/companies/gb/5578324","190106339"
"London Borough of Redbridge","http://opendatacommunities.org/doc/london-borough-council/redbridge","3BNONSCHFUND","Non-School Funding","3CNONSCH","Non Schools","REV","Revenue","R3962","Early Years - 3 and 4 Year Olds","05-THIRD","Third Party Payments","05A","Independent units within the council","6517","Non-Maintained Schools","3476428","201803",21/06/2017 00:00:00,12629.55,"67860","Schools - Independent and Preparatory","REDACTED DATA","ADDEEN LTD ( AD- DEEN PRIMARY SCHOOL)","7547913","http://opencorporates.com/companies/gb/7547913",""
"London Borough of Redbridge","http://opendatacommunities.org/doc/london-borough-council/redbridge","9BNONBVO","Outside the BVACOP Objective Structure","9CNONBVO","Outside the BVACOP Objective Structure","BAL","Balance Sheet","B0350","Office Depot Barclaycard","99-NONBV","Capital, Balance Sheet and Control","50Q","Other Balances & Reserves","9912","Personal Account - Creditor","70095214","201803",10/06/2017 00:00:00,12622.79,"22910","Credit Cards and Discount Cards","REDACTED DATA","COMPANY BARCLAYCARD","1026167","http://opencorporates.com/companies/gb/1026167","673478594"
"London Borough of Redbridge","http://opendatacommunities.org/doc/london-borough-council/redbridge","5BGFHOUSING","General Fund Housing","5CHOMELESS","Homelessness","REV","Revenue","R5630","HAC Temporary Accomodation","05-THIRD","Third Party Payments","05H","Private contractors","6900","Nightly Let Plus Charges","70095177","201803",31/01/2017 00:00:00,10471.8,"32695","Estate Agents and Property Buyers","REDACTED DATA","WENTWORTH HOUSING LTD T/A WENTWORTH ESTATES","44388822","http://opencorporates.com/companies/gb/44388822",""
"London Borough of Redbridge","http://opendatacommunities.org/doc/london-borough-council/redbridge","3BNONSCHFUND","Non-School Funding","3CNONSCH","Non Schools","REV","Revenue","R3962","Early Years - 3 and 4 Year Olds","05-THIRD","Third Party Payments","05A","Independent units within the council","6517","Non-Maintained Schools","3476448","201803",21/06/2017 00:00:00,12555.79,"59760","Playgroups, Nurseries and Creches","REDACTED DATA","PEDAGOGY AURAS UK LTD - BARLEYMONT FAIRLOP MONTESSORI NURSERY","7181677","http://opencorporates.com/companies/gb/7181677",""
"London Borough of Redbridge","http://opendatacommunities.org/doc/london-borough-council/redbridge","3BLEACENTFND","LEA Centrally Held School Funds","3CNONSCH","Non Schools","REV","Revenue","R2010","Spec Transport LEA","03-TRANSPORT","Transport","03A","Direct - transport costs","5207","School Support - Contractors (Children Services)","60346466","201803",31/05/2017 00:00:00,8332.5,"51180","Mini Buses - Hire and Leasing","REDACTED DATA","HIGHWAY EXPRESS","3852757","http://opencorporates.com/companies/gb/3852757","730964526"
"London Borough of Redbridge","http://opendatacommunities.org/doc/london-borough-council/redbridge","3BLEACENTFND","LEA Centrally Held School Funds","3CNONSCH","Non Schools","REV","Revenue","R2010","Spec Transport LEA","03-TRANSPORT","Transport","03A","Direct - transport costs","5207","School Support - Contractors (Children Services)","60346466","201803",31/05/2017 00:00:00,2066.6,"51180","Mini Buses - Hire and Leasing","REDACTED DATA","HIGHWAY EXPRESS","3852757","http://opencorporates.com/companies/gb/3852757","730964526"
"London Borough of Redbridge","http://opendatacommunities.org/doc/london-borough-council/redbridge","3BNONSCHFUND","Non-School Funding","6CCHILLOOKED","Children Looked After","REV","Revenue","R2238","Looked After Children Placements LA","05-THIRD","Third Party Payments","05H","Private contractors","6907","Private Homes","60344756","201803",05/06/2017 00:00:00,12471.43,"1880","Adoption and Fostering","REDACTED DATA","ETHELBERT SPECIALIST HOMES LTD","3291503","http://opencorporates.com/companies/gb/3291503",""
"London Borough of Redbridge","http://opendatacommunities.org/doc/london-borough-council/redbridge","3BNONSCHFUND","Non-School Funding","6CCHILLOOKED","Children Looked After","REV","Revenue","R2238","Looked After Children Placements LA","05-THIRD","Third Party Payments","05H","Private contractors","6907","Private Homes","60346523","201803",22/06/2017 00:00:00,12434.4,"17020","Charities and Voluntary Organisations","REDACTED DATA","BARNARDOS (TANNERS LANE)","1227919","http://opencorporates.com/companies/gb/1227919","507477337"
"London Borough of Redbridge","http://opendatacommunities.org/doc/london-borough-council/redbridge","3BNONSCHFUND","Non-School Funding","3CNONSCH","Non Schools","REV","Revenue","R3962","Early Years - 3 and 4 Year Olds","05-THIRD","Third Party Payments","05A","Independent units within the council","6517","Non-Maintained Schools","3476424","201803",21/06/2017 00:00:00,12417.12,"67860","Schools - Independent and Preparatory","REDACTED DATA","APEX PRIMARY SCHOOL(APEX TRUST)","",,""
"London Borough of Redbridge","http://opendatacommunities.org/doc/london-borough-council/redbridge","3BNONSCHFUND","Non-School Funding","3CNONSCH","Non Schools","REV","Revenue","R3962","Early Years - 3 and 4 Year Olds","05-THIRD","Third Party Payments","05A","Independent units within the council","6517","Non-Maintained Schools","3474574","201803",05/06/2017 00:00:00,12367.1,"59760","Playgroups, Nurseries and Creches","REDACTED DATA","DAY NURSERY LIETUTIS LTD","8367692","http://opencorporates.com/companies/gb/8367692",""
"London Borough of Redbridge","http://opendatacommunities.org/doc/london-borough-council/redbridge","6BADULTSOCIA","Adult Social Care","6CADPHYSDIS","Adults Under 65 with Phys Disab or Sensory Impair","REV","Revenue","R4387","PD Nursing","05-THIRD","Third Party Payments","05H","Private contractors","6902","Respite Care","90864982","201803",14/06/2017 00:00:00,12321.43,"53350","Nursing Homes","REDACTED DATA","MARILLAC CARE","236803","http://opencorporates.com/companies/gb/236803",""
"London Borough of Redbridge","http://opendatacommunities.org/doc/london-borough-council/redbridge","4BMANGT&SUPP","Management & Support Services","4CHIGHRDROUT","Highways/Roads (Routine)","REV","Revenue","R7062","Lighting Sched 1","05-THIRD","Third Party Payments","05H","Private contractors","6915","Contractor Payments","3477937","201803",27/06/2017 00:00:00,10211.69,"21555","Construction Contractors - General","REDACTED DATA","SKANSKA CONSTRUCTION UK LTD","191408","http://opencorporates.com/companies/gb/191408","378403142"
"London Borough of Redbridge","http://opendatacommunities.org/doc/london-borough-council/redbridge","6BSOCIALSERV","Social Services","6CCHILLOOKED","Children Looked After","REV","Revenue","R2139","CQ and F - CAMHS","05-THIRD","Third Party Payments","05A","Independent units within the council","6513","Agency & Contracted Services","60329275","201803",09/12/2016 00:00:00,12213.25,"42200","Health Authorities","REDACTED DATA","NORTH EAST LONDON NHS FOUNDATION TRUST","",,"654404447"
"London Borough of Redbridge","http://opendatacommunities.org/doc/london-borough-council/redbridge","6BSOCIALSERV","Social Services","6CCHILLOOKED","Children Looked After","REV","Revenue","R2139","CQ and F - CAMHS","05-THIRD","Third Party Payments","05A","Independent units within the council","6513","Agency & Contracted Services","60329276","201803",09/12/2016 00:00:00,12213.25,"42200","Health Authorities","REDACTED DATA","NORTH EAST LONDON NHS FOUNDATION TRUST","",,"654404447"
"London Borough of Redbridge","http://opendatacommunities.org/doc/london-borough-council/redbridge","6BSOCIALSERV","Social Services","6CCHILLOOKED","Children Looked After","REV","Revenue","R2139","CQ and F - CAMHS","05-THIRD","Third Party Payments","05A","Independent units within the council","6513","Agency & Contracted Services","60329273","201803",09/12/2016 00:00:00,12213.25,"42200","Health Authorities","REDACTED DATA","NORTH EAST LONDON NHS FOUNDATION TRUST","",,"654404447"
"London Borough of Redbridge","http://opendatacommunities.org/doc/london-borough-council/redbridge","6BSOCIALSERV","Social Services","6CCHILLOOKED","Children Looked After","REV","Revenue","R2139","CQ and F - CAMHS","05-THIRD","Third Party Payments","05A","Independent units within the council","6513","Agency & Contracted Services","60329274","201803",09/12/2016 00:00:00,12213.25,"42200","Health Authorities","REDACTED DATA","NORTH EAST LONDON NHS FOUNDATION TRUST","",,"654404447"
"London Borough of Redbridge","http://opendatacommunities.org/doc/london-borough-council/redbridge","3BINDSCHFUND","Individual School Funds","3CNONSCH","Non Schools","REV","Revenue","R2001","Secondary Schools SEN Top Up Fees","05-THIRD","Third Party Payments","05G","Other establishments","7432","OOB Pre 16 Top Up","60346189","201803",13/06/2017 00:00:00,12133.33,"48583","Local Government","REDACTED DATA","ESSEX COUNTY COUNCIL","",,"104252813"
"London Borough of Redbridge","http://opendatacommunities.org/doc/london-borough-council/redbridge","9BNONBVO","Outside the BVACOP Objective Structure","9CNONBVO","Outside the BVACOP Objective Structure","CAP","Capital","C2255","Radial Corridor 3 TFL","99-NONBV","Capital, Balance Sheet and Control","50E","Capital - Contract Payments","9153","Carriageways","3474321","201803",30/05/2017 00:00:00,9646.77,"18632","Civil Engineers","REDACTED DATA","KENSON CONTRACTORS BENINGTON LTD","1314691","http://opencorporates.com/companies/gb/1314691","301629589"
"London Borough of Redbridge","http://opendatacommunities.org/doc/london-borough-council/redbridge","9BNONBVO","Outside the BVACOP Objective Structure","9CNONBVO","Outside the BVACOP Objective Structure","CAP","Capital","C2255","Radial Corridor 3 TFL","99-NONBV","Capital, Balance Sheet and Control","50E","Capital - Contract Payments","9157","Footways & cycle tracks","3474321","201803",30/05/2017 00:00:00,449.27,"18632","Civil Engineers","REDACTED DATA","KENSON CONTRACTORS BENINGTON LTD","1314691","http://opencorporates.com/companies/gb/1314691","301629589"
"London Borough of Redbridge","http://opendatacommunities.org/doc/london-borough-council/redbridge","3BNONSCHFUND","Non-School Funding","3CNONSCH","Non Schools","REV","Revenue","R3962","Early Years - 3 and 4 Year Olds","05-THIRD","Third Party Payments","05A","Independent units within the council","6517","Non-Maintained Schools","3476463","201803",21/06/2017 00:00:00,12079.38,"17580","Childcare Services","REDACTED DATA","LITTLE DIAMONDS LTD","7004176","http://opencorporates.com/companies/gb/7004176",""
"London Borough of Redbridge","http://opendatacommunities.org/doc/london-borough-council/redbridge","3BINDSCHFUND","Individual School Funds","3CDELSECOND","Delegated Individual Secondary School Budgets","REV","Revenue","S3529","KING SOLOMON - IT Whole School Expenditure","04-SUPPLIES","Supplies And Services","04F","Communications and computing","5863","Curriculum Hardware","60346779","201803",18/06/2017 00:00:00,9944.46,"47650","Leasing Services","REDACTED DATA","DE LAGE LANDEN LEASING LTD","2380043","http://opencorporates.com/companies/gb/2380043","621784929"
"London Borough of Redbridge","http://opendatacommunities.org/doc/london-borough-council/redbridge","3BNONSCHFUND","Non-School Funding","3CNONSCH","Non Schools","REV","Revenue","R3962","Early Years - 3 and 4 Year Olds","05-THIRD","Third Party Payments","05A","Independent units within the council","6517","Non-Maintained Schools","3474563","201803",05/06/2017 00:00:00,11919.96,"59760","Playgroups, Nurseries and Creches","REDACTED DATA","GANTS HILL PLAYGROUP","",,""
"London Borough of Redbridge","http://opendatacommunities.org/doc/london-borough-council/redbridge","3BNONSCHFUND","Non-School Funding","3CNONSCH","Non Schools","REV","Revenue","R3962","Early Years - 3 and 4 Year Olds","05-THIRD","Third Party Payments","05A","Independent units within the council","6517","Non-Maintained Schools","3476414","201803",21/06/2017 00:00:00,11902.86,"59760","Playgroups, Nurseries and Creches","REDACTED DATA","MALLARDS WOOD GROUP LTD","4837908","http://opencorporates.com/companies/gb/4837908",""
"London Borough of Redbridge","http://opendatacommunities.org/doc/london-borough-council/redbridge","3BNONSCHFUND","Non-School Funding","3CNONSCH","Non Schools","REV","Revenue","R3962","Early Years - 3 and 4 Year Olds","05-THIRD","Third Party Payments","05A","Independent units within the council","6517","Non-Maintained Schools","3476433","201803",21/06/2017 00:00:00,11838.3,"59760","Playgroups, Nurseries and Creches","REDACTED DATA","AL-FALAH THE SUNFLOWER PRE-SCHOOL","",,""
"London Borough of Redbridge","http://opendatacommunities.org/doc/london-borough-council/redbridge","9BNONBVO","Outside the BVACOP Objective Structure","9CNONBVO","Outside the BVACOP Objective Structure","CAP","Capital","C4281","Ilford County High School (CAPITAL)","99-NONBV","Capital, Balance Sheet and Control","50B","Capital - Contracted Works","9055","External - Consultants Fees","60345282","201803",08/06/2017 00:00:00,9850,"11280","Building Consultants","REDACTED DATA","GARDINER & THEOBALD LLP","OC307124","http://opencorporates.com/companies/gb/OC307124","832776212"
"London Borough of Redbridge","http://opendatacommunities.org/doc/london-borough-council/redbridge","6BADULTSOCIA","Adult Social Care","6CADLEARNDIS","Adults Under 65 with Learning Disabilities","REV","Revenue","R4188","LD - Residential Care","05-THIRD","Third Party Payments","05F","Voluntary associations","6802","Residential Homes","90864882","201803",14/06/2017 00:00:00,1827.32,"64710","Residential Care Homes","REDACTED DATA","EDEN SUPPORTED SERVICES LTD","8534225","http://opencorporates.com/companies/gb/8534225",""
"London Borough of Redbridge","http://opendatacommunities.org/doc/london-borough-council/redbridge","6BADULTSOCIA","Adult Social Care","6CADLEARNDIS","Adults Under 65 with Learning Disabilities","REV","Revenue","R4188","LD - Residential Care","05-THIRD","Third Party Payments","05F","Voluntary associations","6802","Residential Homes","90864882","201803",14/06/2017 00:00:00,20295.38,"64710","Residential Care Homes","REDACTED DATA","EDEN SUPPORTED SERVICES LTD","8534225","http://opencorporates.com/companies/gb/8534225",""
"London Borough of Redbridge","http://opendatacommunities.org/doc/london-borough-council/redbridge","6BADULTSOCIA","Adult Social Care","6CADLEARNDIS","Adults Under 65 with Learning Disabilities","REV","Revenue","R4188","LD - Residential Care","05-THIRD","Third Party Payments","05F","Voluntary associations","6802","Residential Homes","90864882","201803",14/06/2017 00:00:00,-10354.82,"64710","Residential Care Homes","REDACTED DATA","EDEN SUPPORTED SERVICES LTD","8534225","http://opencorporates.com/companies/gb/8534225",""
"London Borough of Redbridge","http://opendatacommunities.org/doc/london-borough-council/redbridge","3BNONSCHFUND","Non-School Funding","3CNONSCH","Non Schools","REV","Revenue","R3962","Early Years - 3 and 4 Year Olds","05-THIRD","Third Party Payments","05A","Independent units within the council","6517","Non-Maintained Schools","3476466","201803",21/06/2017 00:00:00,11659.67,"17580","Childcare Services","REDACTED DATA","BINDU CHILDCARE SERVICES LTD T/A ILFORD PRESCHOOL BREAKFAST & AFTERSCHOOLCLUB","9131239","http://opencorporates.com/companies/gb/9131239",""
